Workbook

Sheet INGRESOS
B6: INGRESOS DEL 16 DE MARZO AL 05 DE SEPTIEMBRE DE 2025
B7: INGRESOS PRINCIPALES | C7: ITEMS SECUNDARIOS | D7: EFECTIVO | E7: TRANSFERENCIA | F7: INGRESO (EFE + TRANS) | G7: VALOR (INGRESO-EGRESOS)
B8: AFILIACIONES Y PERMISOS DE FUNCIONAMIENTO 2024 CANCELADOS DE MARZO 16 A SEPTIMEBRE 05 | D8: 0 | E8: ='AFILIACIONES Y PERMISOS 2024'!G130 -> $ 70.00 | F8: =SUM(E8:E8) -> $ 70.00 | G8: =SUM(E8:E8) -> $ 70.00
B9: AFILIACIONES Y PERMISOS DE FUNCIONAMIENTO 2025 CANCELADOS DE MARZO 16 A SEPTIMEBRE 05 | D9: ='AFILIACIONES Y PERMISOS 2025'!H141 -> $ 340.00 | E9: ='AFILIACIONES Y PERMISOS 2025'!G139-'AFILIACIONES Y PERMISOS 2025'!H141 -> $ 2,970.00 | F9: =SUM(D9:E9) -> $ 3,310.00 | G9: =SUM(D9:E9) -> $ 3,310.00
B10: LICENCIA DEPORTIVA ANUAL (CARNETS) | D10: ='GAL''S 2025 '!F206 -> $ 602.00 | E10: ='GAL''S 2025 '!G206 -> $ 5,662.00 | F10: =D10+E10 -> $ 6,264.00 | G10: =SUM(D10:E10) -> $ 6,264.00
B11: CERTIFICADOS DE ASCENSO | D11: ='CERTIFICADOS DE ASCENSO 2025'!C120 -> $ 886.00 | E11: ='CERTIFICADOS DE ASCENSO 2025'!C121 -> $ 4,001.50 | F11: =D11+E11 -> $ 4,887.50 | G11: =SUM(D11:E11) -> $ 4,887.50
B12: EVENTOS DE MARZO 16 A SEPTIMEBRE 05 | C12: FESTIVAL DE HABILIDADES MOTRICES Y SELECTIVO JUNIOR | D12: ='FESTIVAL Y SELECTIVO JUNIOR'!C41+'FESTIVAL Y SELECTIVO JUNIOR'!C43 -> $ 1,626.00 | E12: ='FESTIVAL Y SELECTIVO JUNIOR'!C42 -> $ 1,235.00 | F12: =D12+E12 -> $ 2,861.00 | G12: =INGRESOS!F12-'FESTIVAL Y SELECTIVO JUNIOR'!C64 -> $ 1,269.85
C13: OPEN DE LA FAMILIA (04-05-2025) | D13: ='OPEN DE LA FAMILIA'!C26+'OPEN DE LA FAMILIA'!C28 -> $ 340.00 | E13: ='OPEN DE LA FAMILIA'!C27 -> $ 1,110.00 | F13: =SUM(D13:E13) -> $ 1,450.00 | G13: =F13-'OPEN DE LA FAMILIA'!C43 -> $ 788.00
C14: TORNEO INTERESCOLAR E INTERCOLEGIAL (10-05-2025) | D14: ='CAMPEONATO ESCOLAR - COLEGIAL'!C108+'CAMPEONATO ESCOLAR - COLEGIAL'!C110 -> $ 2,298.50 | E14: ='CAMPEONATO ESCOLAR - COLEGIAL'!C109 -> $ 8,101.50 | F14: =SUM(D14:E14) -> $ 10,400.00 | G14: =F14-'CAMPEONATO ESCOLAR - COLEGIAL'!C142 -> $ 5,189.88
C15: II OPEN NOVATOS - INTERMEDIOS COMBATE Y POOMSAE - PRIMER OPEN POOMSAE AVANZADO (5Y6-07-2025) | D15: 0 | E15: ='II OPEN INT NOV AVA POOM'!C67 -> $ 14,185.00 | F15: =SUM(D15:E15) -> $ 14,185.00 | G15: =F15-'II OPEN INT NOV AVA POOM'!C98 -> $ 6,074.97
C16: CURSO DE ACTUALIZACIÓN DE ARBITRAJE DE COMBATE (18 Y 19 -07-2025) | D16: ='ACTUALIZACIÓN DE ARBITRAJE'!C196 -> $ 892.50 | E16: ='ACTUALIZACIÓN DE ARBITRAJE'!C197 -> $ 1,725.00 | F16: =D16+E16 -> $ 2,617.50 | G16: =F16-'ACTUALIZACIÓN DE ARBITRAJE'!C214 -> $ 1,626.86
C17: HANMADANG - OPEN CLASIFICADOS (09-08-2025) | D17: ='HANMADANG - OPEN CLASIFICADOS'!C23+'HANMADANG - OPEN CLASIFICADOS'!C25 -> $ 472.00 | E17: ='HANMADANG - OPEN CLASIFICADOS'!C24 -> $ 858.00 | F17: =D17+E17 -> $ 1,330.00 | G17: =F17-'HANMADANG - OPEN CLASIFICADOS'!C47 -> $ 179.05
B18: CHIMBACALLE | C18: MENSUALIDADES | D18: 0 | E18: 0 | F18: $ 4,656.25 | G18: $ 4,656.25
B19: MULTAS | C19: PAGO MULTA BLUE DRAGONS (30-05-2025) | D19: 0 | E19: 0 | F19: $ 100.00 | G19: $ 100.00
C20: PAGO MULTA ATLAS (03-07-2025) | D20: 0 | E20: 0 | F20: $ 100.00 | G20: $ 100.00
C21: PAGO MULTA MINOTAUROS (31-07-2025) | D21: 0 | E21: 0 | F21: $ 100.00 | G21: $ 100.00
B22: OTROS | C22: PAGO DE SALDO POR TRÁMITE DE GAL'S Y CERTIFICADOS (TEAM TAURO) DE ACUERDO A COMPROMISO DE PAGO | D22: 0 | E22: 0 | F22: $ 20.00 | G22: $ 20.00
C23: CURSO DE ACREDITACIÓN ENTRENADORES REZAGADOS | D23: CUENTA ASOTKD-P | E23: $ 40.00 | F23: $ 40.00 | G23: =E23 -> $ 40.00
C24: ALQUILER DE TATAMI A FEDDY PONCE (28-08-2025) | D24: CUENTA ASOTKD-P | E24: $ 30.00 | F24: $ 40.00 | G24: =E24 -> $ 30.00
B25: TOTAL | G25: =SUM(G8:G24) -> $ 34,706.36

Sheet AFILIACIONES Y PERMISOS 2024
D9: N° | E9: CLUBES FILIALES | F9: FUNCIONAMIENTO 2024 | G9: PAGO | H9: N° COMPROBANTE/FECHA | I9: ESTADO | J9: DEUDA
E10: CLUB | F10: REPRESENTANTE
D11: 1 | E11: Apolo | F11: Mario Pinto | G11: ANTERIOR $70 | H11: BP. 34579953 13-11-2024 | I11: PAGADO | J11: 0
D12: 2 | E12: Ares | F12: Fernando Manosalvas | G12: ANTERIOR $70 | H12: BP. 69041936- 05-09-2024 | I12: PAGADO | J12: 0
D13: 3 | E13: Atlas Club | F13: Edgar Varela | G13: ANTERIOR $70 | H13: BP. 110392984 - 13-01-2025 | I13: PAGADO | J13: 0
D14: 4 | E14: BaekJul BG | F14: Jorge Proaño | G14: ANTERIOR $70 | H14: 002312977 - 18-01-2024 | I14: PAGADO | J14: 0
D15: 5 | E15: BaekJul BG (Sucursal) | F15: Daniel Ayala | G15: ANTERIOR $50 | H15: BP. 160291895 - 22-01-2024 | I15: PAGADO | J15: 0
D16: 6 | E16: Bas Panthers | F16: Jonatan Bastidas | G16: ANTERIOR $100 | H16: COP.P.N. 5750- 23-04-2024/ B.P. 25633758 - 14-08-2024 | I16: PAGADO | J16: 0
D17: 7 | E17: Bas Panthers Pintag (Sucursal) | F17: Jonatan Bastidas | G17: ANTERIOR $50 | H17: BG. 0001655422 - 15-08-2024 | I17: PAGADO | J17: 0
D18: 8 | E18: Borja Lions | F18: Edgar Borja | G18: ANTERIOR $70 | H18: BP. 53210770 - 08-02-2024 | I18: PAGADO | J18: 0
D19: 9 | E19: Blue Drangons | F19: William Suntaxi | G19: ANTERIOR $200 | H19: BP. 17281887-26-07-2024 | I19: PAGADO | J19: 0
D20: 10 | E20: Ciudad de Quito | F20: Fernando Jaramillo | G20: ANTERIOR $70 | H20: 34719163 - 16-01-2024 | I20: PAGADO | J20: 0
D21: 11 | E21: Ciudad de Quito (Sucursal) | F21: Adriana Obando | G21: ANTERIOR $50 | H21: BP. 105725396- 05-09-2024 | I21: PAGADO | J21: 0
D22: 12 | E22: Condor | F22: Juan Carlos Ramírez | G22: ANTERIOR $70 | I22: CRUCE DEUDA | J22: 0
D23: 13 | E23: Chen Huu | F23: Pablo Cobos | G23: ANTERIOR $70 | H23: BP. 29399075 15-03-2024 | I23: PAGADO | J23: 0
D24: 14 | E24: Chonkwon | F24: Christian Javier Huaraca | G24: $ 70.00 | H24: BP. 25891003 08-07-2025 | I24: PAGADO | J24: 0
D25: 15 | E25: Chung Song | F25: Carlos Morocho | G25: ANTERIOR $70 | H25: BP. 8942157 06-02-2024 | I25: PAGADO | J25: 0
D26: 16 | E26: Champions for live | F26: Byron Berrones | G26: ANTERIOR $200 | H26: BP. 39643133- 06-09-2024 | I26: PAGADO | J26: 0
D27: 17 | E27: Daigoro | F27: Edison Pérez V. | G27: ANTERIOR $70 | H27: BP. 21042379-05-07-2024 | I27: PAGADO | J27: 0
D28: 18 | E28: Daigoro Sucursal Sector El Beaterio | F28: Edison Pérez V. | G28: ANTERIOR $50 | H28: BP. 21042379-05-07-2024 | I28: PAGADO | J28: 0
D29: 19 | E29: Debak TKD | F29: Jimmy Bolaños | G29: ANTERIOR $146 | H29: PASO DEUDA 18-07-2024 | I29: PAGADO | J29: 0
D30: 20 | E30: Debak TKD Colegio de Liga | F30: Fredy Hidalgo | G30: ANTERIOR $50 | H30: PASO DEUDA 18-07-2024 | I30: PAGADO | J30: 0
D31: 21 | E31: Deciap | F31: Pablo Tayo | G31: ANTERIOR $70 | H31: SERVICIOS PROFESIONALES | I31: CANJE | J31: 0
D32: 22 | E32: Deciap Norte | F32: Joel Mogollon | G32: 0 | I32: PENDIENTE | J32: $ 50.00
D33: 23 | E33: Dojang Taekwondo Melo | F33: Vinicio Melo | G33: ANTERIOR $70 | H33: 73827343 - 16-01-2024 | I33: PAGADO | J33: 0
D34: 24 | E34: Draco | F34: Edison Rodríguez | G34: ANTERIOR $70 | H34: BP.55066275-8-08-2024 | I34: PAGADO | J34: 0
D35: 25 | E35: Dragon Gym | F35: Miguel Aguas | G35: ANTERIOR $70 | H35: BP.103149991-03-06-2024 | I35: PAGADO | J35: 0
D36: 26 | E36: Dragon Lee Gym | F36: Edgar Lema | G36: ANTERIOR $70 | H36: INICIO AÑO 2024 | I36: PAGADO | J36: 0
D37: 27 | E37: Ecuadcuba/ Black Panthers | F37: Eddy Cajigal Kindelan | G37: ANTERIOR $70 | H37: EFECTIVO 16-02-2025 | I37: PAGADO | J37: 0
D38: 28 | E38: Ecuador | F38: Jorge Astudillo | G38: ANTERIOR $70 | H38: 74095048 - 16-01-2024 | I38: PAGADO | J38: 0
D39: 29 | E39: Equilibrio | F39: Juan Valencia | G39: ANTERIOR $70 | H39: 690260924 - 12-01-2024 | I39: PAGADO | J39: 0
D40: 30 | E40: ESPE | F40: Eduardo Loachamín | G40: ANTERIOR $70 | H40: SERVICIOS PROFESIONALES | I40: PAGADO | J40: 0
D41: 31 | E41: ESMIL - Eloy Alfaro | F41: Raúl Aucancela | G41: ANTERIOR | H41: CONVENIO INTERINSTITUCIONAL | I41: CANJE | J41: 0
D42: 32 | E42: Farang | F42: Mesias Rojas | G42: ANTERIOR $70 | H42: BP. 191879288 - 19-08-2024 | I42: PAGADO | J42: 0
D43: 33 | E43: Fitt kwon do | F43: Galo Garzón | G43: ANTERIOR $70 | H43: BP. 36797612-18-09-2024 | I43: PAGADO | J43: 0
D44: 34 | E44: First Class Calderon | F44: Lenin Plazarte | G44: ANTERIOR $70 | H44: B.P. 82900555-28-10-2024/ PA. 6305683 - 15-01-2025 | I44: PAGADO | J44: 0
D45: 35 | E45: Furia Negra | F45: Franklin Caiza | G45: ANTERIOR $70 | H45: BP. 46232939 - 05-09-2024 | I45: PAGADO | J45: 0
D46: 36 | E46: Grand Master | F46: César Tayo | G46: ANTERIOR $70 | H46: PAGO POR USO DE PÁGINA DE EVENTOS | I46: PAGADO | J46: 0
D47: 37 | E47: Goyang - Ideul | F47: Luis Elias Pisuña | G47: ANTERIOR $270 | H47: P.O.00077-11-04-24 | I47: PAGADO | J47: 0
D48: 38 | E48: Han Su | F48: Mauricio Valladares | G48: ANTERIOR $70 | H48: PAGO POR DIPLOMAS | I48: PAGADO | J48: 0
D49: 39 | E49: Himchari Dojang | F49: Claudia Cárdenas | G49: ANTERIOR $70 | H49: BP. 19157477 - 28-08-2024 | I49: PAGADO | J49: 0
D50: 40 | E50: Huang Top Gym | F50: Guido Mejia | G50: ANTERIOR $70 | H50: Pro.155311020900-22-11-24 | I50: PAGADO | J50: 0
D51: 41 | E51: Ilyo MP | F51: Miguel Parra | G51: ANTERIOR $75 | H51: Pro.155311020900-22-11-24 | I51: PAGADO | J51: 0
D52: 42 | E52: Ji Do Kwan | F52: David Del Castillo | G52: ANTERIOR $70 | H52: Prod.1219880209-07-06-24 | I52: PAGADO | J52: 0
D53: 43 | E53: Joseon Legacy | F53: Fernando Moya | G53: ANTERIOR $70 | H53: Pago en curso de entrenadores | I53: PAGADO | J53: 0
D54: 44 | E54: JR Sport | F54: Juan Carlos Ramírez | G54: ANTERIOR $70 | H54: BG 9916798 15-03-2024 | I54: PAGADO | J54: 0
D55: 45 | E55: Juventus | F55: Jhony Pavón | G55: ANTERIOR $70 | H55: BG. 0003214632-05-09-2024 | I55: PAGADO | J55: 0
D56: 46 | E56: Jerathel | F56: Samantha Mogollon | G56: ANTERIOR $50 | H56: EN DB.P.125575249 - 28-10-2024 | I56: PAGADO | J56: 0
D57: 47 | E57: Ko América | F57: Miguel Angél Pavón | G57: ANTERIOR $70 | H57: PASO SERVICIO DE INTERNET FIJO XTRIM TV CABLE | I57: PAGADO | J57: 0
D58: 48 | E58: Ko América Caupicho | F58: Bryan Chalcualan | G58: ANTERIOR $50 | H58: PASO SERVICIO DE INTERNET FIJO XTRIM TV CABLE | I58: PAGADO | J58: 0
D59: 49 | E59: Ko América Santo Tomas | F59: Bryan Chalcualan | G59: ANTERIOR $50 | H59: BP. 51813288- 12-07-2024 | I59: PAGADO | J59: 0
D60: 50 | E60: Ko América Dragon de Fuego | F60: Luis Sandoval | G60: ANTERIOR $50 | H60: BP. 26570994-02-10-2024 | I60: PAGADO | J60: 0
D61: 51 | E61: Korean Dragon | F61: Fabián Moreno | G61: ANTERIOR $70 | H61: BP.20228234 - 23-07-2024 | I61: PAGADO | J61: 0
D62: 52 | E62: Koryo | F62: Guillermo Puga - Sharon López | G62: ANTERIOR $70 | H62: B.P. 99611502- 16-05-24 | I62: PAGADO | J62: 0
D63: 53 | E63: Koryo Sucursal | F63: Edwin Delgado | G63: ANTERIOR $50 | H63: B.P. 99611502- 16-05-24 | I63: PAGADO | J63: 0
D64: 54 | E64: Koryo Sucursal | F64: Dayana Folleco | G64: ANTERIOR $50 | H64: SERVICIOS PROFESIONALES | I64: PAGADO | J64: 0
D65: 55 | E65: Kukkiwon | F65: David Chicaiza | G65: ANTERIOR $70 | H65: BP. 186207888 5-07-2024 | I65: PAGADO | J65: 0
D66: 56 | E66: Kumgan Dul | F66: Fabián García | G66: ANTERIOR $70 | H66: BP. 16642518-30-12-2024 | I66: PAGADO | J66: 0
D67: 57 | E67: Kyorugui Gym | F67: Vinicio Cardona | G67: ANTERIOR $45 | H67: 2024-09-06 | I67: PAGADO | J67: 0
D68: 58 | E68: León | F68: Romel Pilaquinga | G68: ANTERIOR $30 | H68: BP. 61286404- 05-09-2024 | I68: PAGADO | J68: 0
D69: 59 | E69: Liga Deportiva Cantonal Mejía | F69: Fernando Manosalvas | G69: ANTERIOR $70 | H69: BP. 6894312 10-07-2024 | I69: PAGADO | J69: 0
D70: 60 | E70: Lithe body | F70: Norma Ortíz | G70: ANTERIOR $70 | H70: BP. 41487117- 20-02-2024 | I70: PAGADO | J70: 0
D71: 61 | E71: Lobos | F71: Cristian Flores | G71: ANTERIOR $70 | H71: BP. 10046769 - 15-01-2025 | I71: PAGADO | J71: 0
D72: 62 | E72: Los Pumas | F72: Galo Gavilanez | G72: ANTERIOR $70 | H72: BP. 46146086-05-09-2024 | I72: PAGADO | J72: 0
D73: 63 | E73: Master Home | F73: Marlon Lema | G73: ANTERIOR $70 | H73: DEPÓSITO 12-12-2024 | I73: PAGADO | J73: 0
D74: 64 | E74: Marcial Club Granda | F74: Luis Granda | G74: ANTERIOR $70 | H74: 19254425 - 12-01-2024 | I74: PAGADO | J74: 0
D75: 65 | E75: Mercenarios | F75: Luis Cano | G75: ANTERIOR $70 | H75: OPEN DE LIMA | I75: CANJE DEUDA | J75: 0
D76: 66 | E76: Mikido | F76: Daniel Guerra | G76: ANTERIOR $270 | H76: B.P. 93929997-26-03-2024 | I76: PAGADO | J76: 0
D77: 67 | E77: Millenium | F77: Jean Galora | G77: ANTERIOR $70 | H77: 42113-16-05-24 | I77: PAGADO | J77: 0
D78: 68 | E78: Michay | F78: Luisa Vega | G78: ANTERIOR $70 | H78: BP. 20092834- 05-03-2024 | I78: PAGADO | J78: 0
D79: 69 | E79: Minotaurus | F79: Marco Duchi | G79: ANTERIOR $70 | H79: 71140294 - 17-01-2024 | I79: PAGADO | J79: 0
D80: 70 | E80: Mit-TKD | F80: Mellany Inasunta | G80: ANTERIOR $70 | H80: 92260917 - 04-01-2024 | I80: PAGADO | J80: 0
D81: 71 | E81: Mit -TKD Sucursal | F81: Jared Vargas | G81: ANTERIOR $50 | H81: 47864538 - 16-01-2024 | I81: PAGADO | J81: 0
D82: 72 | E82: Paladins | F82: Jeann Paladines | G82: ANTERIOR $70 | H82: BP. 234822309-10-06-2024 | I82: PAGADO | J82: 0
D83: 73 | E83: Pandademon | F83: Andrés Herrera | G83: ANTERIOR $70 | H83: BP. 61932362- 13-01-2024 | I83: PAGADO | J83: 0
D84: 74 | E84: Pionero Fortis | F84: Xavier Moreira Fortis | G84: ANTERIOR $70 | H84: B.P. 3585973-13-12-20 | I84: PAGADO | J84: 0
D85: 75 | E85: Pionero Mejía | F85: Luís Burbano | G85: ANTERIOR $70 | H85: BP. 38675762- 13-01-2025 | I85: PAGADO | J85: 0
D86: 76 | E86: Pyongyang | F86: Luisa Vega | G86: ANTERIOR $70 | H86: BP. 46309319 - 24-01-2024 | I86: PAGADO | J86: 0
D87: 77 | E87: Raig de llum | F87: Fernando Ruiz | G87: ANTERIOR $70 | H87: BP.29220414-22-05-2024 | I87: PAGADO | J87: 0
D88: 78 | E88: Tanaka Red | F88: Carlos Estrella | G88: ANTERIOR $70 | H88: PRO.190784020900-23-01-2024 | I88: PAGADO | J88: 0
D89: 79 | E89: Renacer | F89: Milton Ramos | G89: ANTERIOR $70 | H89: 2304516 - 12-01-2024 | I89: PAGADO | J89: 0
D90: 80 | E90: Rojas Iron First | F90: Jorge Rojas | G90: ANTERIOR $70 | H90: 45438497- 12-01-2024 | I90: PAGADO | J90: 0
D91: 81 | E91: S.D.Central | F91: Carlos Reinoso | G91: ANTERIOR $70 | H91: BP. 7707848 - 22-01-2024 | I91: PAGADO | J91: 0
D92: 82 | E92: San Francisco Tigres | F92: Carlos Mejía | G92: ANTERIOR $70 | H92: BP. 27638772 - 05-11-2024 | I92: PAGADO | J92: 0
D93: 83 | E93: San Sebastián | F93: Raúl Tipán | G93: 0 | H93: PASO DEUDA Y 1 DEP A JUEGOS | I93: PAGADO | J93: 0
D94: 84 | E94: Scorpius | F94: Dario Flores | G94: ANTERIOR $70 | H94: Prd.389542020900-05-09-24 | I94: PAGADO | J94: 0
D95: 85 | E95: Seúl | F95: Galo Garzón | G95: ANTERIOR $65 | H95: 1039095 - 27-12-2023 (1 jue N) | I95: PAGADO | J95: 0
D96: 86 | E96: Seúl Capelo (Sucursal) | F96: Fredy Castillo | G96: ANTERIOR $50 | H96: BP. 44842339- 05-09-2024 | I96: PAGADO | J96: 0
D97: 87 | E97: Seúl Carapungo (Sucursal) | F97: José Donoso | G97: ANTERIOR $50 | H97: B.G.2285212-2-04-24 | I97: PAGADO | J97: 0
D98: 88 | E98: Seúl Yeong-Gu Carcelen | F98: Brusby Muñoz | G98: ANTERIOR $50 | H98: BP. 24853537 - 21-05-2024 | I98: PAGADO | J98: 0
D99: 89 | E99: Seúl Gedeon (Sucrusal) | F99: José Luís Palacios | G99: ANTERIOR $50 | H99: BG. 0009916524 - 18-03-2024 | I99: PAGADO | J99: 0
D100: 90 | E100: Seúl Chung UI (sucursal) | F100: Juan Manuel Villacres | G100: ANTERIOR $50 | H100: BP. 11085488 - 22-03-2024 | I100: PAGADO | J100: 0
D101: 91 | E101: Seúl Vale Todo Capapungo | F101: Angél Vayas | G101: ANTERIOR $50 | H101: BP. 93202077- 05-09-2024 | I101: PAGADO | J101: 0
D102: 92 | E102: Seúl La Salle | F102: Angelica Guerrero | G102: ANTERIOR $50 | H102: 002-00015-22-05-2024 | I102: PAGADO | J102: 0
D103: 93 | E103: Shogun | F103: Carlos Vélez | G103: ANTERIOR $70 | H103: BP. 14359822 - 21-03-2024 | I103: PAGADO | J103: 0
D104: 94 | E104: Simjang Team Club de TKD | F104: Marco Mogollon | G104: ANTERIOR $270 | H104: 03-01-2024 - 20218020 | I104: PAGADO | J104: 0
D105: 95 | E105: Suryun | F105: Edison Gallardo | G105: ANTERIOR $70 | H105: CANJE Y $ 20 BP. 138566834 19-08-2024 | I105: PAGADO | J105: 0
D106: 96 | E106: Tae Baek Junior | F106: Edwin Arteaga Jr. | G106: ANTERIOR $70 | H106: BP. 141222211-11-11-2024 | I106: PAGADO | J106: 0
D107: 97 | E107: Tae Baek Junior Sucursal Solanda | F107: Edwin Arteaga Jr. | G107: 0 | I107: PENDIENTE | J107: $ 50.00
D108: 98 | E108: Tae Baek | F108: Edwin Arteaga | G108: ANTERIOR $70 | H108: BP. 51380759- 05-09-2024 | I108: PAGADO | J108: 0
D109: 99 | E109: Tae Kings | F109: Jorge Astudillo S. | G109: ANTERIOR $70 | H109: Pa. 4290202-14-10-2024 | I109: PAGADO | J109: 0
D110: 100 | E110: Tae Sho Ku | F110: Marcelo Ochoa | G110: ANTERIOR $70 | H110: BP. 29348779-26-06-2024 | I110: PAGADO | J110: 0
D111: 101 | E111: Tae Sho Ku | F111: Gissela Estrella | G111: ANTERIOR $50 | H111: B.P. 67213266-17-05-24 | I111: PAGADO | J111: 0
D112: 102 | E112: TaeDo | F112: Vicente Lazcano | G112: ANTERIOR $70 | H112: BP. 111358254- 05-09-2024 | I112: PAGADO | J112: 0
D113: 103 | E113: Taekwondo Trainig Center | F113: Paúl Orellana | G113: ANTERIOR $70 | H113: BG. 305852 - 12-03-2025 | I113: PAGADO | J113: 0
D114: 104 | E114: Taekwondo Jitae | F114: Emperatriz Quinga | G114: ANTERIOR $70 | H114: 92326958 - 17-01-2024 | I114: PAGADO | J114: 0
D115: 105 | E115: Taekwondo Jucaro | F115: Danilo Xavier Peréz | G115: ANTERIOR $70 | H115: CANJE S. PROFESIONALES 03-02-2024 ($245) | I115: PAGADO | J115: 0
D116: 106 | E116: Tae Woong | F116: Patricia Tuqueres | G116: ANTERIOR $70 | H116: DEPÓSITO | I116: PAGADO | J116: 0
D117: 107 | E117: Team Tauro Taekwondo | F117: José Chiriboga | G117: ANTERIOR $70 | H117: 982779 - 19-01-2024 | I117: PENDIENTE | J117: $ 150.00
D118: 108 | E118: Team Vencedores | F118: Victor Hugo Quishpe | G118: ANTERIOR $70 | H118: BP. 52426968 - 14-10-2024 | I118: PAGADO | J118: 0
D119: 109 | E119: Tekken | F119: Gustavo López | G119: ANTERIOR $70 | H119: OFI. 3294433- 04-02-2024 | I119: PAGADO | J119: 0
D120: 110 | E120: Total Kombat | F120: Raúl Aucancela | G120: ANTERIOR $70 | H120: SALDO A FAVOR POR PAGO DE U. H. | I120: PAGADO | J120: 0
D121: 111 | E121: Total Kombat Rhinos Sucursal | F121: Gustavo Llamuca | G121: ANTERIOR $50 | H121: SALDO A FAVOR POR PAGO DE U. H. | I121: PAGADO | J121: 0
D122: 112 | E122: U San Francisco USFQ | F122: Carlos Reinoso | G122: ANTERIOR $70 | H122: PASO DEUDA | I122: PAGADO | J122: 0
D123: 113 | E123: Universal | F123: Jorge Sisalema | G123: ANTERIOR $70 | H123: EFECTIVO | I123: PAGADO | J123: 0
D124: 114 | E124: Universidad Central (CAMU) | F124: Anthony Rendón | G124: ANTERIOR $70 | H124: BP. 209766626-18-09-2024 | I124: PAGADO | J124: 0
D125: 115 | E125: Universidad Hemisferios | F125: Raúl Aucancela | G125: ANTERIOR $267,3 | H125: BP.318788754-18/3/2024 | I125: PAGADO | J125: 0
D126: 116 | E126: Valle | F126: Jorge Portilla | G126: 0 | I126: PENDIENTE | J126: $ 140.00 | K126: EN PROCESO DE DESAFILIACIÓN POR DEUDA
D127: 117 | E127: Venom | F127: Eddy Cajigal K. | G127: ANTERIOR $30 | H127: PRO.157300020900-1-10-24 | I127: PAGADO | J127: 0
D128: 118 | E128: Vill Gym | F128: Hernán Villacis | G128: ANTERIOR $70 | H128: BP. 7707848 - 22-01-2024 | I128: PAGADO | J128: 0
D129: 119 | E129: Yong Tiger | F129: Wilson Rodríguez | G129: ANTERIOR $70 | H129: DESCUENTO EN EVENTOS | I129: PAGADO | J129: 0
E130: TOTAL PAGOS SALDOS 2024 | G130: =SUM(G11:G129) -> $ 70.00 | J130: =SUM(J11:J129) -> $ 390.00 | K130: POR COBRAR
E133: Se descuenta 5 USD por cada alumno que participe en Juegos Nacionales
E134: AFILIACIÓN NUEVO CLUB
E135: PERSMISO ANUAL DE FUNCIONAMIENTO
E136: REAFILIACIÓN
E138: PAGOS DEL 16-03-2025 AL 05-09-2025

Sheet AFILIACIONES Y PERMISOS 2025
D9: N° | E9: CLUBES FILIALES | F9: FUNCIONAMIENTO 2023 | G9: PAGO | H9: N° COMPROBANTE/FECHA | I9: ESTADO | J9: DEUDA
E10: CLUB | F10: REPRESENTANTE
D11: 1 | E11: Apolo | F11: Mario Pinto | G11: 0 | I11: PENDIENTE | J11: $ 70.00
D12: 2 | E12: Apolo Sucursal | F12: Edison Gaullichico | G12: $ 50.00 | H12: BP. 32347039 - 07-05-2025 | I12: PAGADO | J12: 0
D13: 3 | E13: Ares | F13: Fernando Manosalvas | G13: $ 70.00 | H13: BP. 33565169 - 13-05-2025 | I13: PAGADO | J13: 0
D14: 4 | E14: Ares (Sucursal San Francisco de Huarcay) | F14: Fernando Manosalvas | G14: $ 60.00 | H14: BP.42048196 - 13-05-2025 | I14: PAGADO | J14: 0
D15: 5 | E15: Atlas Club | F15: Edgar Varela | G15: $ 70.00 | H15: BP. 14244613 - 14-05-2025 | I15: PAGADO | J15: 0
D16: 6 | E16: BaekJul BG | F16: Jorge Proaño | G16: ANTERIOR $70 | H16: PAP. 3528183 - 16-01-2025 | I16: PAGADO | J16: 0
D17: 7 | E17: BaekJul Team AyalaZ (Sucursal) | F17: Daniel Ayala | G17: ANTERIOR $50 | H17: BP.13802498 - 14-01-2025 | I17: PAGADO | J17: 0
D18: 8 | E18: BaekJul Team Fernández (Sucursal) | F18: Freddy Fernández | G18: ANTERIOR $50 | H18: BP. 67130502- 08-10-2024 | I18: PAGADO | J18: 0
D19: 9 | E19: Bas Panthers | F19: Jonatan Bastidas | G19: 0 | I19: PENDIENTE | J19: $ 70.00
D20: 10 | E20: Bas Panthers Pintag (Sucursal) | F20: Jonatan Bastidas | G20: 0 | I20: PENDIENTE | J20: $ 50.00
D21: 11 | E21: Borja's Lions | F21: Edgar Borja | G21: ANTERIOR $70 | H21: BP. 53210770 - 08-02-2025 | I21: PAGADO | J21: 0
D22: 12 | E22: Blue Drangons | F22: William Suntaxi | G22: $ 70.00 | H22: BP. 37770529 - 09-04-2025 | I22: PAGADO | J22: 0
D23: 13 | E23: Ciudad de Quito | F23: Fernando Jaramillo | G23: $ 70.00 | H23: BP. 70238202 - 27-05-2025 | I23: PAGADO | J23: 0
D24: 14 | E24: Ciudad de Quito (Sucursal) | F24: Adriana Obando | G24: 0 | I24: PENDIENTE | J24: $ 50.00
D25: 15 | E25: Condor | F25: Efren Torres | G25: 0 | I25: PENDIENTE | J25: $ 70.00
D26: 16 | E26: Chen Huu | F26: Pablo Cobos | G26: ANTERIOR $70 | H26: BP. 165476447 24-02-2025 | I26: PAGADO | J26: 0
D27: 17 | E27: Chung Song | F27: Carlos Morocho | G27: $ 70.00 | H27: BP. 18792992 13-05-2025 | I27: PAGADO | J27: 0
D28: 18 | E28: Chonkwon | F28: Christian Javier Huaraca | G28: 0 | I28: PENDIENTE | J28: $ 70.00
D29: 19 | E29: Champions For Life | F29: Byron Berrones | G29: ANTERIOR $65 | H29: BP.56940902 -04-02 2025 1 DEPORTISTA EN JJ. NN. | I29: PAGADO | J29: 0
D30: 20 | E30: Daigoro | F30: Edison Pérez V. | G30: $ 70.00 | H30: BP. 150348368 12-05-2025 | I30: PAGADO | J30: 0
D31: 21 | E31: Daigoro Sector El Beaterio (Sucursal) | F31: Edison Pérez V. | G31: 0 | I31: PENDIENTE | J31: $ 50.00
D32: 22 | E32: Debak TKD | F32: Jimmy Bolaños | G32: $ 40.00 | H32: BP.77601967-14-03-2025 8 JJ. NN. | I32: PAGADO | J32: 0
D33: 23 | E33: Debak TKD Colegio de Liga (Sucursal) | F33: Adrián Lara | G33: $ 50.00 | H33: BP.77601967-14-03-2025 8 JJ. NN. | I33: PAGADO | J33: 0
D34: 24 | E34: Debak TKD Carcelén Bajo (Sucursal) | F34: Jared Vargas | G34: ANTERIOR $50 | H34: BP. 61173349 - 07-03-2025 | I34: PAGADO | J34: 0
D35: 25 | E35: Deciap | F35: Pablo Tayo | G35: 0 | I35: CRUCE COLABORACIÓN CON SISTEMAS EN EVENTOS | J35: 0
D36: 26 | E36: Deciap Norte (Sucursal) | F36: Joel Mogollon | G36: 0 | I36: PENDIENTE | J36: $ 50.00
D37: 27 | E37: Dojang Taekwondo Melo | F37: Vinicio Melo | G37: ANTERIOR $70 | H37: BP. 22714106 - 06-03-2025 | I37: PAGADO | J37: 0
D38: 28 | E38: Draco | F38: Edison Rodríguez | G38: $ 70.00 | H38: BP. 197150488 - 18-08-2025 | I38: PAGADO | J38: 0
D39: 29 | E39: Dragon Gym | F39: Miguel Aguas | G39: $ 70.00 | H39: BP. 21113160 - 15-05-2025 | I39: PAGADO | J39: 0
D40: 30 | E40: Dragon Lee Gym | F40: Edgar Lema | G40: ANTERIOR $70 | H40: BP. 48960200- 16-01-2025 | I40: PAGADO | J40: 0
D41: 31 | E41: Ecuadcuba/ Black Panthers | F41: Eddy Cajigal Kindelan | G41: 0 | I41: PENDIENTE | J41: $ 70.00
D42: 32 | E42: Ecuador | F42: Jorge Astudillo | G42: ANTERIOR $70 | H42: BP. 41631917- 08-01-2025 | I42: PAGADO | J42: 0
D43: 33 | E43: Equilibrio | F43: Juan Valencia | G43: ANTERIOR $70 | H43: BR.826500- 27-01-2025 | I43: PAGADO | J43: 0
D44: 34 | E44: ESPE | F44: Eduardo Loachamín | G44: $ 70.00 | H44: CRUCE DE CUENTAS | I44: PAGADO | J44: 0
D45: 36 | E45: Farang | F45: Mesias Rojas | G45: 0 | I45: PENDIENTE | J45: $ 70.00
D46: 37 | E46: Fitt kwon do | F46: Galo Garzón | G46: 0 | I46: PENDIENTE | J46: $ 70.00
D47: 38 | E47: First Class Calderon | F47: Lenin Plazarte | G47: ANTERIOR $50 | H47: BP. 223594331 - 12-08-2024 | I47: PENDIENTE | J47: $ 20.00
D48: 39 | E48: Furia Negra | F48: Franklin Caiza | G48: $ 70.00 | H48: BP. 61724020 - 14-03-2025 | I48: PAGADO | J48: 0
D49: 40 | E49: Grand Master | F49: César Tayo | G49: 0 | H49: SE ACUERDA COMPROMISO DE PAGO POR APOYO EN EVENTOS | I49: PENDIENTE | J49: $ 70.00
D50: 41 | E50: Goyang - Ideul | F50: Luis Elias Pisuña | G50: 0 | I50: PENDIENTE | J50: $ 70.00
D51: 42 | E51: Han Su | F51: Mauricio Valladares | G51: $ 70.00 | H51: EFECTIVO 23-03-2025 | I51: PAGADO | J51: 0
D52: 43 | E52: Han Kum Do | F52: Nicole Tapia | G52: ANTERIOR $70 | H52: BG. 0000350660-13-01-2025 | I52: PENDIENTE | J52: $ 200.00
D53: 44 | E53: Himchari Dojang | F53: Claudia Cárdenas | G53: $ 70.00 | H53: BP. 62940748 - 10-05-2025 | I53: PAGADO | J53: 0
D54: 45 | E54: Huang Top Gym | F54: Guido Mejia | G54: $ 70.00 | H54: PRO.604973020900-23-04-25 | I54: PAGADO | J54: 0
D55: 46 | E55: Ilyo MP | F55: Miguel Parra | G55: 0 | I55: PENDIENTE | J55: $ 70.00
D56: 47 | E56: Ji Do Kwan | F56: David Del Castillo | G56: $ 70.00 | H56: PRO. 288744020900-10-05-25 | I56: PAGADO | J56: 0
D57: 48 | E57: Joseon Legacy | F57: Fernando Moya | G57: 0 | I57: PENDIENTE | J57: $ 70.00
D58: 49 | E58: JR Sport | F58: Juan Carlos Ramírez | G58: 0 | I58: PENDIENTE | J58: $ 70.00
D59: 50 | E59: Juventus | F59: Jhony Pavón | G59: 0 | I59: PENDIENTE | J59: $ 70.00
D60: 51 | E60: Jerathel | F60: Samantha Mogollon | G60: ANTERIOR $70 | H60: BP. 12782374 - 28-01-2024 | I60: PAGADO | J60: 0
D61: 52 | E61: Jerathel Armenia | F61: Samantha Mogollon | G61: $ 50.00 | H61: BP. 15683593 - 07-05-2025
D62: 53 | E62: Ko América | F62: Miguel Angél Pavón | G62: ANTERIOR $65 | H62: BP.13888302-07-01-2024 1 DEPORTISTA EN JJ. NN. | I62: PAGADO | J62: 0
D63: 54 | E63: Ko América Caupicho (Sucursal) | F63: Bryan Chalcualan | G63: $ 50.00 | H63: BP. 53143581 - 10-04-2025 | I63: PAGADO | J63: 0
D64: 55 | E64: Ko América Santo Tomas (Sucursal) | F64: Bryan Chalcualan | G64: $ 50.00 | H64: BP. 53143581 - 10-04-2025 | I64: PAGADO | J64: 0
D65: 56 | E65: Ko América Dragon de Fuego (Sucursal) | F65: Luis Sandoval | G65: 0 | I65: PENDIENTE | J65: $ 50.00
D66: 57 | E66: Korean Dragon | F66: Fabián Moreno | G66: $ 35.00 | H66: BP. 16157592 - 31-07-2025 | I66: PAGADO | J66: $ 35.00
D67: 58 | E67: Koryo | F67: Guillermo Puga - Sharon López | G67: 0 | I67: PENDIENTE | J67: $ 70.00
D68: 59 | E68: Koryo Sucursal | F68: Guillermo Puga - Sharon López | G68: 0 | I68: PENDIENTE | J68: $ 50.00
D69: 61 | E69: Kukkiwon | F69: David Chicaiza | G69: $ 70.00 | H69: BP. 7223712 - 14-05-2025 | I69: PAGADO | J69: 0
D70: 62 | E70: Kumgan Dul | F70: Fabián García | G70: 0 | I70: PENDIENTE | J70: $ 70.00
D71: 63 | E71: Kyorugui Gym | F71: Vinicio Cardona | G71: $ 70.00 | H71: EFECTIVO 13-05-2025 | I71: PAGADO | J71: 0
D72: 64 | E72: León | F72: Romel Pilaquinga | G72: $ 70.00 | H72: BP. 32732187- 12-05-2025 | I72: PAGADO | J72: 0
D73: 65 | E73: León (Sucursal Norte) | F73: Ian Catota | G73: ANTERIOR $50 | H73: BP. 15791114 - 14-01-2024 | I73: PAGADO | J73: 0
D74: 66 | E74: Liga Deportiva Cantonal Mejía | F74: Vladimir Viana | G74: $ 70.00 | H74: BP. 115743057 - 19-05-2025 | I74: PENDIENTE | J74: $ 70.00
D75: 67 | E75: Lithe body | F75: Norma Ortíz | G75: $ 70.00 | H75: BP. 14550841- 17-07-2025 | I75: PAGADO | J75: 0
D76: 68 | E76: Lobos | F76: Cristian Flores | G76: 0 | I76: PENDIENTE | J76: $ 70.00
D77: 69 | E77: Los Pumas | F77: Galo Gavilanez | G77: $ 70.00 | H77: BP. 5161256- 12-05-2025 | I77: PAGADO | J77: 0
D78: 70 | E78: Master Home | F78: Marlon Lema | G78: 0 | I78: PENDIENTE | J78: $ 70.00
D79: 71 | E79: Marcial Club Granda | F79: Luis Granda | G79: $ 70.00 | H79: BP. 3172970- 12-05-2025 | I79: PAGADO | J79: 0
D80: 72 | E80: Mercenarios | F80: Luis Cano | G80: 0 | I80: PENDIENTE | J80: $ 70.00
D81: 73 | E81: Mikido | F81: Daniel Guerra | G81: ANTERIOR $70 | H81: BP. 32299486 - 06-02-2025 | I81: PAGADO | J81: 0
D82: 74 | E82: Millenium | F82: Jean Galora | G82: 0 | I82: PENDIENTE | J82: $ 70.00
D83: 75 | E83: Michay | F83: Luisa Vega | G83: ANTERIOR $70 | H83: BP. 88911303 - 24-02-2025 | I83: PAGADO | J83: 0
D84: 76 | E84: Minotaurus | F84: Marco Duchi | G84: ANTERIOR $70 | H84: BP. 7688068 - 11-03-2025 | I84: PAGADO | J84: 0
D85: 77 | E85: Mit-TKD | F85: Mellany Inasunta | G85: ANTERIOR $70 | H85: BP. 83102853 - 05-03-2025 | I85: PAGADO | J85: 0
D86: 78 | E86: Paladins | F86: Jeann Paladines | G86: $ 70.00 | H86: BP. 14824398- 14-03-2025 | I86: PAGADO | J86: 0
D87: 79 | E87: Pandademon | F87: Andrés Herrera | G87: 0 | I87: PENDIENTE | J87: $ 70.00
D88: 80 | E88: Pionero Fortis | F88: Xavier Moreira Fortis | G88: $ 70.00 | H88: BP. 6060495- 29-07-2025 | I88: PAGADO | J88: 0
D89: 81 | E89: Pionero Mejía | F89: Luís Burbano | G89: ANTERIOR $70 | H89: BG. 0000519175-06-02-2025 | I89: PAGADO | J89: 0
D90: 82 | E90: Pyongyang | F90: Luisa Vega | G90: ANTERIOR $70 | H90: BP. 88911303 - 24-02-2025 | I90: PAGADO | J90: 0
D91: 83 | E91: Raig de llum | F91: Fernando Ruiz | G91: $ 70.00 | H91: BP. 41798746 - 09-05-2025 | I91: PAGADO | J91: 0
D92: 84 | E92: Tanaka Red | F92: Carlos Estrella | G92: ANTERIOR $70 | H92: PRO. 675070 - 15-01-2025 | I92: PAGADO | J92: 0
D93: 85 | E93: Renacer | F93: Milton Ramos | G93: ANTERIOR $70 | H93: PA. 8714977 - 25-02-2025 | I93: PAGADO | J93: 0
D94: 86 | E94: Ryong Tae | F94: Diego Merino | G94: $ 100.00 | H94: EFECTIVO 10-05-2025 | I94: PAGADO | J94: 0
D95: 87 | E95: Rojas Iron First | F95: Jorge Rojas | G95: 0 | I95: PENDIENTE | J95: $ 70.00
D96: 88 | E96: S. D. Central | F96: Carlos Reinoso | G96: $ 60.00 | H96: EFECTIVO 13-05-2025 2 DEP EN JJ. NN. | I96: PENDIENTE | J96: 0
D97: 89 | E97: S. D. Central Carapungo (Sucursal) | F97: Guillermo Morán | G97: ANTERIOR $50 | H97: BP. 155411989 - 11-03-2025 | I97: PAGADO | J97: 0
D98: 90 | E98: San Francisco Tigres | F98: Carlos Mejía | G98: $ 40.00 | H98: BP. 23267039 - 08-07-2025 | I98: PENDIENTE | J98: $ 30.00
D99: 91 | E99: San Sebastián | F99: Raúl Tipán | G99: ANTERIOR $60 | H99: BP.110817481 -10-03-2025 2 DEPORTISTAS EN JJ. NN. | I99: PAGADO | J99: 0
D100: 92 | E100: Sabonim | F100: Esteban Altamirano | G100: $ 70.00 | H100: BP. 37483412 - 16-05-2025 | I100: PENDIENTE | J100: $ 200.00
D101: 93 | E101: Scorpius | F101: Dario Flores | G101: 0 | I101: PENDIENTE | J101: $ 70.00
D102: 94 | E102: Seúl | F102: Galo Garzón | G102: $ 70.00 | H102: BI. 7639939 - 12-05-2025 | I102: PAGADO | J102: 0
D103: 95 | E103: Seúl Capelo (Sucursal) | F103: Fredy Castillo | G103: 0 | I103: PENDIENTE | J103: $ 50.00
D104: 96 | E104: Seúl Carapungo (Sucursal) | F104: José Donoso | G104: 0 | I104: PENDIENTE | J104: $ 50.00
D105: 97 | E105: Seúl Yeong-Gu Carcelen | F105: Brusby Muñoz | G105: 0 | I105: PENDIENTE | J105: $ 50.00
D106: 98 | E106: Seúl Gedeon (Sucursal) | F106: José Luís Palacios | G106: 0 | I106: PENDIENTE | J106: $ 50.00
D107: 99 | E107: Seúl Chung UI (sucursal) | F107: Juan Manuel Villacres | G107: $ 50.00 | H107: PRO. 866797020900-12-05-2025 | I107: PAGADO | J107: 0
D108: 100 | E108: Seúl Vale Todo Capapungo | F108: Angél Vayas | G108: $ 50.00 | H108: BP. 76576064 - 16-05-2025 | I108: PAGADO | J108: 0
D109: 102 | E109: Shogun | F109: Carlos Vélez | G109: ANTERIOR $70 | H109: BP. 75401887 - 17-02-2025 | I109: PAGADO | J109: 0
D110: 103 | E110: Simjang Team Club de TKD | F110: Marco Mogollon | G110: ANTERIOR $70 | H110: BP. 12570316 - 28-01-2025 | I110: PAGADO | J110: 0
D111: 104 | E111: Suryun | F111: Edison Gallardo | G111: $ 70.00 | H111: BP. 799141383286-10-05-2025 | I111: PAGADO | J111: 0
D112: 105 | E112: Tae Baek Junior | F112: Edwin Arteaga Jr. | G112: 0 | I112: PENDIENTE | J112: $ 70.00
D113: 106 | E113: Tae Baek Junior Sucursal Solanda | F113: Edwin Arteaga Jr. | G113: 0 | I113: PENDIENTE | J113: $ 50.00
D114: 107 | E114: Tae Baek | F114: Edwin Arteaga | G114: ANTERIOR $70 | H114: BP. 2670551 - 28-01-2025 | I114: PAGADO | J114: 0
D115: 108 | E115: Tae Kings | F115: Jorge Astudillo S. | G115: 0 | I115: PENDIENTE | J115: $ 70.00
D116: 109 | E116: Tae Sho Ku | F116: Marcelo Ochoa | G116: $ 65.00 | H116: BP. 6832330- 10-05-2025 1 jue | I116: PAGADO | J116: 0
D117: 110 | E117: Tae Sho Ku Team Valle (Sucursal) | F117: Gissela Estrella | G117: 0 | I117: PENDIENTE | J117: $ 50.00
D118: 111 | E118: TaeDo | F118: Vicente Lascano | G118: $ 70.00 | H118: BP. 27131636 - 14-05-2025 | I118: PAGADO | J118: 0
D119: 112 | E119: Moodukkwan Trainig Center | F119: Paúl Orellana | G119: ANTERIOR $70 | H119: BG. 305852 - 12-03-2025 | I119: PAGADO | J119: 0
D120: 113 | E120: Moodukkwan HSTKD | F120: Henry Sigchos | G120: $ 50.00 | H120: BP. 51192594 - 21-03-2025 Y BP. 224008468 - 05-05-2025 | I120: PAGADO | J120: 0
D121: 114 | E121: Taekwondo Jitae | F121: Emperatriz Quinga | G121: $ 70.00 | H121: BP. 129270870 - 12-05-2025 $10 EN EFECTIVO | I121: PAGADO | J121: 0
D122: 115 | E122: Taekwondo Jucaro | F122: Danilo Xavier Peréz | G122: $ 70.00 | H122: PRO. 743290020900-12-05-2025 | I122: PAGADO | J122: 0
D123: 116 | E123: Tae Woong | F123: Patricia Túqueres | G123: $ 70.00 | H123: BP. 24063891 - 18-06-2025 | I123: PAGADO | J123: 0
D124: 117 | E124: Tae Woong Pomasqui | F124: Sara Túqueres | G124: $ 50.00 | H124: BP. 69103048 - 25-03-2025 | I124: PAGADO | J124: 0
D125: 118 | E125: Team Tauro Taekwondo | F125: José Chiriboga | G125: 0 | I125: PENDIENTE | J125: $ 220.00
D126: 119 | E126: Team Vencedores | F126: Victor Hugo Quishpe | G126: 0 | I126: PENDIENTE | J126: $ 70.00
D127: 120 | E127: Tekken | F127: Gustavo López | G127: ANTERIOR $70 | H127: PA. 7152417 - 13-01-2025 | I127: PAGADO | J127: 0
D128: 121 | E128: Total Kombat | F128: Raúl Aucancela | G128: $ 30.00 | H128: $ 40 A FAVOR TRÁMITE 10-12-2024 Y 30 EFECTIVO 12-05-2025 | I128: PAGADO | J128: 0
D129: 122 | E129: Total Kombat Rhinos Sucursal | F129: Gustavo Llamuca | G129: $ 50.00 | H129: BP. 38927522 - 12-05-2025 | I129: PAGADO | J129: 0
D130: 123 | E130: Total Kombat Cobra Kay | F130: Raúl Aucancela | G130: ANTERIOR $50 | H130: BP. 38627760 - 10-03-2025 | I130: PAGADO | J130: 0
D131: 124 | E131: Total Kombat - Kukkiwon CC. | F131: Carlos Chicaiza | G131: $ 50.00 | H131: BP. 47387990 - 06-05-2025 | I131: PAGADO | J131: 0
D132: 125 | E132: U. San Francisco USFQ | F132: Carlos Reinoso | G132: 0 | I132: PENDIENTE | J132: $ 70.00
D133: 126 | E133: Universal | F133: Jorge Sisalema | G133: ANTERIOR $70 | H133: PA. 3309797 - 27-02-2025 | I133: PAGADO | J133: 0
D134: 127 | E134: Universidad Central (CAMU) | F134: Anthony Rendón | G134: $ 70.00 | H134: BP. 27164909 - 14-05-2025 | I134: PAGADO | J134: 0
D135: 129 | E135: Universidad UTE | F135: Adriana Obando | G135: ANTERIOR $262,57 | H135: BP. 11052417 - 28-01-2025 | I135: PAGADO | J135: 0
D136: 130 | E136: Venom | F136: Eddy Cajigal K. | G136: $ 20.00 | H136: PRO. 908440 - 06-03-2025 / PRO. 685763020900 - 02-04-2025 | I136: PENDIENTE | J136: $ 24.00
D137: 131 | E137: Vill Gym | F137: Hernán Villacis | G137: $ 70.00 | H137: BP. 42347021 - 06-05-2025 | I137: PAGADO | J137: 0
D138: 132 | E138: Yong Tiger | F138: Wilson Rodríguez | G138: 0 | I138: PENDIENTE | J138: $ 70.00
E139: TOTAL PAGOS 2025 | G139: =SUM(G11:G138) -> $ 3,310.00 | J139: =SUM(J11:J138) -> $ 3,289.00 | K139: POR COBRAR
G141: EFECTIVO | H141: =G51+G71+G94+G96+10+G128 -> 340.00
E142: Se descuenta 5 USD por cada alumno que participe en Juegos Nacionales
E143: AFILIACIÓN NUEVO CLUB
E144: PERSMISO ANUAL DE FUNCIONAMIENTO
E145: REAFILIACIÓN
E147: PAGOS DEL 16-03-2025 AL 05-09-2025

Sheet GAL'S 2025
A2: LICENCIAS DE COMPETIDOR (16 DE MARZO 2025 AL 05 SEPTIEMBRE 2025)
A3: FECHA | B3: CLUB | C3: CANT. | D3: PRECIO UNITARIO | E3: VALOR A PAGAR | F3: EFECTIVO | G3: TRANSFERENCIA | H3: VALOR CANCELADO | I3: ESTADO | J3: SALDO | K3: OBSERVACIONES
A4: 2025-03-17 | B4: TAEGUK JUCARO | C4: 2 | D4: $ 2.00 | E4: =C4*Tabla1442[[#This Row],[PRECIO UNITARIO]] -> $ 4.00 | F4: 0 | G4: $ 4.00 | H4: =F4+G4 -> $ 4.00 | I4: =IF((E4=H4),"CANCELADO","SALDO PENDIENTE") -> CANCELADO | J4: =Tabla1442[[#This Row],[VALOR A PAGAR]]-Tabla1442[[#This Row],[VALOR CANCELADO]] -> 0 | K4: IMPRESIÓN CARNETS DE ENTRENADOR
A5: 2025-03-20 | B5: UTE | C5: 7 | D5: $ 8.00 | E5: =C5*Tabla1442[[#This Row],[PRECIO UNITARIO]] -> $ 56.00 | F5: 0 | G5: $ 56.00 | H5: $ 56.00 | I5: CANCELADO | J5: =Tabla1442[[#This Row],[VALOR A PAGAR]]-Tabla1442[[#This Row],[VALOR CANCELADO]] -> 0
A6: 2025-03-20 | B6: HANSU | C6: 7 | D6: $ 8.00 | E6: =C6*Tabla1442[[#This Row],[PRECIO UNITARIO]] -> $ 56.00 | F6: 0 | G6: $ 56.00 | H6: $ 56.00 | I6: CANCELADO | J6: =Tabla1442[[#This Row],[VALOR A PAGAR]]-Tabla1442[[#This Row],[VALOR CANCELADO]] -> 0
A7: 2025-03-21 | B7: GOYANG - IDEUL | C7: 3 | D7: $ 8.00 | E7: =C7*Tabla1442[[#This Row],[PRECIO UNITARIO]] -> $ 24.00 | F7: 0 | G7: $ 24.00 | H7: $ 24.00 | I7: CANCELADO | J7: =Tabla1442[[#This Row],[VALOR A PAGAR]]-Tabla1442[[#This Row],[VALOR CANCELADO]] -> 0
A8: 2025-03-21 | B8: CIUDAD DE QUITO | C8: 2 | D8: $ 8.00 | E8: =C8*Tabla1442[[#This Row],[PRECIO UNITARIO]] -> $ 16.00 | F8: 0 | G8: $ 16.00 | H8: $ 16.00 | I8: CANCELADO | J8: =Tabla1442[[#This Row],[VALOR A PAGAR]]-Tabla1442[[#This Row],[VALOR CANCELADO]] -> 0
A9: 2025-03-21 | B9: DRAGON GYM | C9: 2 | D9: $ 8.00 | E9: =C9*Tabla1442[[#This Row],[PRECIO UNITARIO]] -> $ 16.00 | F9: 0 | G9: $ 16.00 | H9: $ 16.00 | I9: CANCELADO | J9: =Tabla1442[[#This Row],[VALOR A PAGAR]]-Tabla1442[[#This Row],[VALOR CANCELADO]] -> 0 | K9: CANCELA CON 34 CERTIFICADOS DE ASCENSO
A10: 2025-03-24 | B10: TAEBAEK ECUADOR | C10: 1 | D10: $ 8.00 | E10: =C10*Tabla1442[[#This Row],[PRECIO UNITARIO]] -> $ 8.00 | F10: 0 | G10: $ 8.00 | H10: $ 8.00 | I10: CANCELADO | J10: =Tabla1442[[#This Row],[VALOR A PAGAR]]-Tabla1442[[#This Row],[VALOR CANCELADO]] -> 0
A11: 2025-03-25 | B11: SHOGUN | C11: 10 | D11: $ 6.00 | E11: =C11*Tabla1442[[#This Row],[PRECIO UNITARIO]] -> $ 60.00 | F11: 0 | G11: $ 60.00 | H11: $ 60.00 | I11: CANCELADO | J11: =Tabla1442[[#This Row],[VALOR A PAGAR]]-Tabla1442[[#This Row],[VALOR CANCELADO]] -> 0
A12: 2025-03-25 | B12: FARANG | C12: 1 | D12: $ 8.00 | E12: =C12*Tabla1442[[#This Row],[PRECIO UNITARIO]] -> $ 8.00 | F12: 0 | G12: $ 8.00 | H12: $ 8.00 | I12: CANCELADO | J12: =Tabla1442[[#This Row],[VALOR A PAGAR]]-Tabla1442[[#This Row],[VALOR CANCELADO]] -> 0
A13: 2025-03-26 | B13: SOCIEDAD DEPORTIVA CENTRAL | C13: 1 | D13: $ 8.00 | E13: =C13*Tabla1442[[#This Row],[PRECIO UNITARIO]] -> $ 8.00 | F13: $ 8.00 | G13: 0 | H13: $ 8.00 | I13: CANCELADO | J13: =Tabla1442[[#This Row],[VALOR A PAGAR]]-Tabla1442[[#This Row],[VALOR CANCELADO]] -> 0
A14: 2025-03-27 | B14: BAEKJUL TEAM AYALAZ | C14: 4 | D14: $ 8.00 | E14: =C14*Tabla1442[[#This Row],[PRECIO UNITARIO]] -> $ 32.00 | F14: 0 | G14: $ 32.00 | H14: $ 32.00 | I14: CANCELADO | J14: =Tabla1442[[#This Row],[VALOR A PAGAR]]-Tabla1442[[#This Row],[VALOR CANCELADO]] -> 0 | K14: CANCELA CON 3 CERTIFICADOS DE ASCENSO
A15: 2025-03-25 | B15: LEÓN | C15: 6 | D15: $ 2.00 | E15: =C15*Tabla1442[[#This Row],[PRECIO UNITARIO]] -> $ 12.00 | F15: $ 12.00 | G15: 0 | H15: $ 12.00 | I15: CANCELADO | J15: =Tabla1442[[#This Row],[VALOR A PAGAR]]-Tabla1442[[#This Row],[VALOR CANCELADO]] -> 0 | K15: SOLO IMPRESIÓN DE 6 GAL'S DIGITALES
A16: 2025-03-25 | B16: LEÓN | C16: 1 | D16: $ 8.00 | E16: =C16*Tabla1442[[#This Row],[PRECIO UNITARIO]] -> $ 8.00 | F16: $ 8.00 | G16: 0 | H16: $ 8.00 | I16: CANCELADO | J16: =Tabla1442[[#This Row],[VALOR A PAGAR]]-Tabla1442[[#This Row],[VALOR CANCELADO]] -> 0 | K16: ENVÍA DATOS PARA TRÁMITE EL 07-05-2025
A17: 2025-03-26 | B17: SEUL GEDEON | C17: 2 | D17: $ 8.00 | E17: =C17*Tabla1442[[#This Row],[PRECIO UNITARIO]] -> $ 16.00 | F17: $ 16.00 | G17: 0 | H17: $ 16.00 | I17: CANCELADO | J17: =Tabla1442[[#This Row],[VALOR A PAGAR]]-Tabla1442[[#This Row],[VALOR CANCELADO]] -> 0
A18: 2025-03-26 | B18: SEUL GEDEON | C18: 1 | D18: $ 2.00 | E18: =C18*Tabla1442[[#This Row],[PRECIO UNITARIO]] -> $ 2.00 | F18: $ 2.00 | G18: 0 | H18: $ 2.00 | I18: CANCELADO | J18: =Tabla1442[[#This Row],[VALOR A PAGAR]]-Tabla1442[[#This Row],[VALOR CANCELADO]] -> 0 | K18: DEPORTISTA CON CAPACIDADES ESPECIALES
A19: 2025-03-31 | B19: MIKIDO | C19: 16 | D19: $ 8.00 | E19: =C19*Tabla1442[[#This Row],[PRECIO UNITARIO]] -> $ 128.00 | F19: 0 | G19: $ 128.00 | H19: $ 128.00 | I19: CANCELADO | J19: =Tabla1442[[#This Row],[VALOR A PAGAR]]-Tabla1442[[#This Row],[VALOR CANCELADO]] -> 0 | K19: CANCELA CON 20 CERTIFICADOS DE ASCENSO
A20: 2025-04-01 | B20: ECUADOR | C20: 2 | D20: $ 6.00 | E20: =C20*Tabla1442[[#This Row],[PRECIO UNITARIO]] -> $ 12.00 | F20: 0 | G20: $ 12.00 | H20: $ 12.00 | I20: CANCELADO | J20: =Tabla1442[[#This Row],[VALOR A PAGAR]]-Tabla1442[[#This Row],[VALOR CANCELADO]] -> 0 | K20: CANCELA CON 18 CERTIFICADOS DE ASCENSO
A21: 2025-04-02 | B21: VENOM | C21: 9 | D21: $ 6.00 | E21: =C21*Tabla1442[[#This Row],[PRECIO UNITARIO]] -> $ 54.00 | F21: 0 | G21: $ 54.00 | H21: $ 54.00 | I21: CANCELADO | J21: =Tabla1442[[#This Row],[VALOR A PAGAR]]-Tabla1442[[#This Row],[VALOR CANCELADO]] -> 0 | K21: CANCELA EN DOS PAGOS Y CON ABONO POR PERMISO DE FUNCIONAMIENTO
A22: 2025-04-02 | B22: TAE SHO KU | C22: 3 | D22: $ 8.00 | E22: =C22*Tabla1442[[#This Row],[PRECIO UNITARIO]] -> $ 24.00 | F22: 0 | G22: $ 24.00 | H22: $ 24.00 | I22: CANCELADO | J22: =Tabla1442[[#This Row],[VALOR A PAGAR]]-Tabla1442[[#This Row],[VALOR CANCELADO]] -> 0
A23: 2025-04-03 | B23: SOCIEDAD DEPORTIVA CENTRAL | C23: 1 | D23: $ 8.00 | E23: =C23*Tabla1442[[#This Row],[PRECIO UNITARIO]] -> $ 8.00 | F23: $ 8.00 | G23: 0 | H23: $ 8.00 | I23: CANCELADO | J23: =Tabla1442[[#This Row],[VALOR A PAGAR]]-Tabla1442[[#This Row],[VALOR CANCELADO]] -> 0
A24: 2025-04-04 | B24: BORJA'S LIONS | C24: 25 | D24: $ 6.00 | E24: =C24*Tabla1442[[#This Row],[PRECIO UNITARIO]] -> $ 150.00 | F24: 0 | G24: $ 150.00 | H24: $ 150.00 | I24: CANCELADO | J24: =Tabla1442[[#This Row],[VALOR A PAGAR]]-Tabla1442[[#This Row],[VALOR CANCELADO]] -> 0 | K24: CANCELA CON 25 CERTIFICADOS DE ASCENSO
A25: 2025-04-07 | B25: ASOTKD - P (CHIMBACALLE) | C25: 8 | D25: $ 8.00 | E25: =C25*Tabla1442[[#This Row],[PRECIO UNITARIO]] -> $ 64.00 | F25: $ 64.00 | G25: 0 | H25: $ 64.00 | I25: CANCELADO | J25: =Tabla1442[[#This Row],[VALOR A PAGAR]]-Tabla1442[[#This Row],[VALOR CANCELADO]] -> 0
A26: 2025-04-07 | B26: SEUL | C26: 2 | D26: $ 8.00 | E26: =C26*Tabla1442[[#This Row],[PRECIO UNITARIO]] -> $ 16.00 | F26: 0 | G26: $ 16.00 | H26: $ 16.00 | I26: CANCELADO | J26: =Tabla1442[[#This Row],[VALOR A PAGAR]]-Tabla1442[[#This Row],[VALOR CANCELADO]] -> 0
A27: 2025-04-07 | B27: ASOTKD - P (VICENTINA) | C27: 2 | D27: $ 8.00 | E27: =C27*Tabla1442[[#This Row],[PRECIO UNITARIO]] -> $ 16.00 | F27: $ 16.00 | H27: $ 16.00 | I27: CANCELADO | J27: =Tabla1442[[#This Row],[VALOR A PAGAR]]-Tabla1442[[#This Row],[VALOR CANCELADO]] -> 0
A28: 2025-04-08 | B28: TAE WOONG | C28: 10 | D28: $ 8.00 | E28: =C28*Tabla1442[[#This Row],[PRECIO UNITARIO]] -> $ 80.00 | F28: 0 | G28: $ 80.00 | H28: $ 80.00 | I28: CANCELADO | J28: =Tabla1442[[#This Row],[VALOR A PAGAR]]-Tabla1442[[#This Row],[VALOR CANCELADO]] -> 0 | K28: CANCELA CON 2 CERTIFICADOS DE ASCENSO
A29: 2025-04-08 | B29: TAE WOONG | C29: 1 | D29: $ 2.00 | E29: =C29*Tabla1442[[#This Row],[PRECIO UNITARIO]] -> $ 2.00 | F29: 0 | G29: $ 2.00 | H29: $ 2.00 | I29: CANCELADO | J29: =Tabla1442[[#This Row],[VALOR A PAGAR]]-Tabla1442[[#This Row],[VALOR CANCELADO]] -> 0 | K29: CANCELA CON 2 CERTIFICADOS DE ASCENSO
A30: 2025-04-09 | B30: KUMGANG DUL | C30: 4 | D30: $ 6.00 | E30: =C30*Tabla1442[[#This Row],[PRECIO UNITARIO]] -> $ 24.00 | F30: 0 | G30: $ 24.00 | H30: $ 24.00 | I30: CANCELADO | J30: =Tabla1442[[#This Row],[VALOR A PAGAR]]-Tabla1442[[#This Row],[VALOR CANCELADO]] -> 0 | K30: PARA EMISIÓN DE CERTIFICADOS DE ASCENSO 2024
A31: 2025-04-09 | B31: KUMGANG DUL | C31: 1 | D31: $ 8.00 | E31: =C31*Tabla1442[[#This Row],[PRECIO UNITARIO]] -> $ 8.00 | F31: 0 | G31: $ 8.00 | H31: $ 8.00 | I31: CANCELADO | J31: =Tabla1442[[#This Row],[VALOR A PAGAR]]-Tabla1442[[#This Row],[VALOR CANCELADO]] -> 0
A32: 2025-04-09 | B32: CAMU | C32: 12 | D32: $ 8.00 | E32: =C32*Tabla1442[[#This Row],[PRECIO UNITARIO]] -> $ 96.00 | F32: 0 | G32: $ 96.00 | H32: $ 96.00 | I32: CANCELADO | J32: =Tabla1442[[#This Row],[VALOR A PAGAR]]-Tabla1442[[#This Row],[VALOR CANCELADO]] -> 0 | K32: SOLICITA CON 20 CERTIFICADOS DE ASCENSO
A33: 2025-04-10 | B33: KO AMÉRICA | C33: 25 | D33: $ 6.00 | E33: =C33*Tabla1442[[#This Row],[PRECIO UNITARIO]] -> $ 150.00 | F33: 0 | G33: $ 150.00 | H33: $ 150.00 | I33: CANCELADO | J33: =Tabla1442[[#This Row],[VALOR A PAGAR]]-Tabla1442[[#This Row],[VALOR CANCELADO]] -> 0
A34: 2025-04-11 | B34: KUKKIWON | C34: 2 | D34: $ 8.00 | E34: =C34*Tabla1442[[#This Row],[PRECIO UNITARIO]] -> $ 16.00 | F34: 0 | G34: $ 16.00 | H34: $ 16.00 | I34: CANCELADO | J34: =Tabla1442[[#This Row],[VALOR A PAGAR]]-Tabla1442[[#This Row],[VALOR CANCELADO]] -> 0
A35: 2025-04-14 | B35: JIDOKWAN | C35: 1 | D35: $ 8.00 | E35: =C35*Tabla1442[[#This Row],[PRECIO UNITARIO]] -> $ 8.00 | F35: 0 | G35: $ 8.00 | H35: $ 8.00 | I35: CANCELADO | J35: =Tabla1442[[#This Row],[VALOR A PAGAR]]-Tabla1442[[#This Row],[VALOR CANCELADO]] -> 0
A36: 2025-04-14 | B36: KYORUGUI GYM | C36: 2 | D36: $ 6.00 | E36: =C36*Tabla1442[[#This Row],[PRECIO UNITARIO]] -> $ 12.00 | F36: 0 | G36: $ 12.00 | H36: $ 12.00 | I36: CANCELADO | J36: =Tabla1442[[#This Row],[VALOR A PAGAR]]-Tabla1442[[#This Row],[VALOR CANCELADO]] -> 0
A37: 2025-04-14 | B37: BAEKJUL TEAM FERNÁNDEZ | C37: 4 | D37: $ 8.00 | E37: =C37*Tabla1442[[#This Row],[PRECIO UNITARIO]] -> $ 32.00 | F37: 0 | G37: $ 32.00 | H37: $ 32.00 | I37: CANCELADO | J37: =Tabla1442[[#This Row],[VALOR A PAGAR]]-Tabla1442[[#This Row],[VALOR CANCELADO]] -> 0
A38: 2025-04-14 | B38: SOCIEDAD DEPORTIVA CENTRAL | C38: 2 | D38: $ 8.00 | E38: =C38*Tabla1442[[#This Row],[PRECIO UNITARIO]] -> $ 16.00 | F38: $ 16.00 | G38: 0 | H38: $ 16.00 | I38: CANCELADO | J38: =Tabla1442[[#This Row],[VALOR A PAGAR]]-Tabla1442[[#This Row],[VALOR CANCELADO]] -> 0
A39: 2025-04-15 | B39: YONG TIGER | C39: 3 | D39: $ 6.00 | E39: =C39*Tabla1442[[#This Row],[PRECIO UNITARIO]] -> $ 18.00 | F39: 0 | G39: $ 18.00 | H39: $ 18.00 | I39: CANCELADO | J39: =Tabla1442[[#This Row],[VALOR A PAGAR]]-Tabla1442[[#This Row],[VALOR CANCELADO]] -> 0 | K39: EN 3 DEPÓSITOS LE QUEDA UN SALDO A FAVOR DE $12
A40: 2025-04-16 | B40: BAEKJUL TEAM FERNÁNDEZ | C40: 3 | D40: $ 8.00 | E40: =C40*Tabla1442[[#This Row],[PRECIO UNITARIO]] -> $ 24.00 | F40: 0 | G40: $ 24.00 | H40: $ 24.00 | I40: CANCELADO | J40: =Tabla1442[[#This Row],[VALOR A PAGAR]]-Tabla1442[[#This Row],[VALOR CANCELADO]] -> 0
A41: 2025-04-21 | B41: ARES | C41: 2 | D41: $ 8.00 | E41: =C41*Tabla1442[[#This Row],[PRECIO UNITARIO]] -> $ 16.00 | F41: 0 | G41: $ 16.00 | H41: $ 16.00 | I41: CANCELADO | J41: =Tabla1442[[#This Row],[VALOR A PAGAR]]-Tabla1442[[#This Row],[VALOR CANCELADO]] -> 0
A42: 2025-04-21 | B42: MICHAYDO | C42: 1 | D42: $ 8.00 | E42: =C42*Tabla1442[[#This Row],[PRECIO UNITARIO]] -> $ 8.00 | F42: 0 | G42: $ 8.00 | H42: $ 8.00 | I42: CANCELADO | J42: =Tabla1442[[#This Row],[VALOR A PAGAR]]-Tabla1442[[#This Row],[VALOR CANCELADO]] -> 0 | K42: CANCELA CON 2 CERTIFICADOS DE ASCENSO
A43: 2025-04-21 | B43: ARES | C43: 21 | D43: $ 2.00 | E43: =C43*Tabla1442[[#This Row],[PRECIO UNITARIO]] -> $ 42.00 | F43: 0 | G43: $ 42.00 | H43: $ 42.00 | I43: CANCELADO | J43: =Tabla1442[[#This Row],[VALOR A PAGAR]]-Tabla1442[[#This Row],[VALOR CANCELADO]] -> 0 | K43: SOLO IMPRESIÓN DE GAL'S DIGITALES DEL 24-02-2025
A44: 2025-04-22 | B44: CHUNG SONG | C44: 2 | D44: $ 6.00 | E44: =C44*Tabla1442[[#This Row],[PRECIO UNITARIO]] -> $ 12.00 | F44: 0 | G44: $ 12.00 | H44: $ 12.00 | I44: CANCELADO | J44: =Tabla1442[[#This Row],[VALOR A PAGAR]]-Tabla1442[[#This Row],[VALOR CANCELADO]] -> 0 | K44: CANCELA CON 34 CERTIFICADOS DE ASCENSO
A45: 2025-04-22 | B45: ARES | C45: 1 | D45: $ 8.00 | E45: =C45*Tabla1442[[#This Row],[PRECIO UNITARIO]] -> $ 8.00 | F45: $ 8.00 | G45: 0 | H45: $ 8.00 | I45: CANCELADO | J45: =Tabla1442[[#This Row],[VALOR A PAGAR]]-Tabla1442[[#This Row],[VALOR CANCELADO]] -> 0
A46: 2025-04-22 | B46: SEUL CARAPUNGO | C46: 3 | D46: $ 8.00 | E46: =C46*Tabla1442[[#This Row],[PRECIO UNITARIO]] -> $ 24.00 | F46: 0 | G46: $ 24.00 | H46: $ 24.00 | I46: CANCELADO | J46: =Tabla1442[[#This Row],[VALOR A PAGAR]]-Tabla1442[[#This Row],[VALOR CANCELADO]] -> 0
A47: 2025-04-22 | B47: SEUL CARAPUNGO | C47: 5 | D47: $ 6.00 | E47: =C47*Tabla1442[[#This Row],[PRECIO UNITARIO]] -> $ 30.00 | F47: 0 | G47: $ 30.00 | H47: $ 30.00 | I47: CANCELADO | J47: =Tabla1442[[#This Row],[VALOR A PAGAR]]-Tabla1442[[#This Row],[VALOR CANCELADO]] -> 0
A48: 2025-04-22 | B48: SEUL CARAPUNGO | C48: 1 | D48: $ 2.00 | E48: =C48*Tabla1442[[#This Row],[PRECIO UNITARIO]] -> $ 2.00 | F48: 0 | G48: $ 2.00 | H48: $ 2.00 | I48: CANCELADO | J48: =Tabla1442[[#This Row],[VALOR A PAGAR]]-Tabla1442[[#This Row],[VALOR CANCELADO]] -> 0 | K48: DEPORTISTA CON CAPACIDADES ESPECIALES
A49: 2025-04-22 | B49: DRAGON LEE GYM | C49: 1 | D49: $ 8.00 | E49: =C49*Tabla1442[[#This Row],[PRECIO UNITARIO]] -> $ 8.00 | F49: 0 | G49: $ 8.00 | H49: $ 8.00 | I49: CANCELADO | J49: =Tabla1442[[#This Row],[VALOR A PAGAR]]-Tabla1442[[#This Row],[VALOR CANCELADO]] -> 0 | K49: CANCELA CON 1 CERTIFICADO DE ASCENSO
A50: 2025-04-23 | B50: PVM - ROJAS IAN IRON FIST | C50: 1 | D50: $ 8.00 | E50: =C50*Tabla1442[[#This Row],[PRECIO UNITARIO]] -> $ 8.00 | F50: 0 | G50: $ 8.00 | H50: $ 8.00 | I50: CANCELADO | J50: =Tabla1442[[#This Row],[VALOR A PAGAR]]-Tabla1442[[#This Row],[VALOR CANCELADO]] -> 0
A51: 2025-04-24 | B51: ARES | C51: 1 | D51: $ 8.00 | E51: =C51*Tabla1442[[#This Row],[PRECIO UNITARIO]] -> $ 8.00 | F51: 0 | G51: $ 8.00 | H51: $ 8.00 | I51: CANCELADO | J51: =Tabla1442[[#This Row],[VALOR A PAGAR]]-Tabla1442[[#This Row],[VALOR CANCELADO]] -> 0
A52: 2025-04-24 | B52: DECIAP | C52: 1 | D52: $ 2.00 | E52: =C52*Tabla1442[[#This Row],[PRECIO UNITARIO]] -> $ 2.00 | F52: 0 | G52: 0 | H52: 0 | I52: SALDO PENDIENTE | J52: =Tabla1442[[#This Row],[VALOR A PAGAR]]-Tabla1442[[#This Row],[VALOR CANCELADO]] -> $ 2.00 | K52: IMPRESIÓN CARNET PERSONA CON CAPACIDADES ESPECIALES
A53: 2025-04-24 | B53: KORYO | C53: 10 | D53: $ 8.00 | E53: =C53*Tabla1442[[#This Row],[PRECIO UNITARIO]] -> $ 80.00 | F53: 0 | G53: $ 80.00 | H53: $ 80.00 | I53: CANCELADO | J53: =Tabla1442[[#This Row],[VALOR A PAGAR]]-Tabla1442[[#This Row],[VALOR CANCELADO]] -> 0 | K53: CANCELA CON 10 CERTIFICADOS DE ASCENSO
A54: 2025-04-25 | B54: SEUL CARAPUNGO | C54: 2 | D54: $ 8.00 | E54: =C54*Tabla1442[[#This Row],[PRECIO UNITARIO]] -> $ 16.00 | F54: 0 | G54: $ 16.00 | H54: $ 16.00 | I54: CANCELADO | J54: =Tabla1442[[#This Row],[VALOR A PAGAR]]-Tabla1442[[#This Row],[VALOR CANCELADO]] -> 0
A55: 2025-04-29 | B55: DRAGON GYM | C55: 1 | D55: $ 2.00 | E55: =C55*Tabla1442[[#This Row],[PRECIO UNITARIO]] -> $ 2.00 | F55: 0 | G55: $ 2.00 | H55: $ 2.00 | I55: CANCELADO | J55: =Tabla1442[[#This Row],[VALOR A PAGAR]]-Tabla1442[[#This Row],[VALOR CANCELADO]] -> 0 | K55: REIMPRESIÓN DE GAL
A56: 2025-04-30 | B56: ESPE | C56: 1 | D56: $ 6.00 | E56: =C56*Tabla1442[[#This Row],[PRECIO UNITARIO]] -> $ 6.00 | F56: 0 | G56: $ 6.00 | H56: $ 6.00 | I56: CANCELADO | J56: =Tabla1442[[#This Row],[VALOR A PAGAR]]-Tabla1442[[#This Row],[VALOR CANCELADO]] -> 0 | K56: CRUCE DEUDA TRÁMITES EN SRI DE ASOTKDP POR EDUARDO LOACHAMÍN
A57: 2025-04-30 | B57: ESPE | C57: 1 | D57: $ 8.00 | E57: =C57*Tabla1442[[#This Row],[PRECIO UNITARIO]] -> $ 8.00 | F57: 0 | G57: $ 8.00 | H57: $ 8.00 | I57: CANCELADO | J57: =Tabla1442[[#This Row],[VALOR A PAGAR]]-Tabla1442[[#This Row],[VALOR CANCELADO]] -> 0
A58: 2025-05-05 | B58: VILL GYM | C58: 10 | D58: $ 8.00 | E58: =C58*Tabla1442[[#This Row],[PRECIO UNITARIO]] -> $ 80.00 | F58: 0 | G58: $ 80.00 | H58: $ 80.00 | I58: CANCELADO | J58: =Tabla1442[[#This Row],[VALOR A PAGAR]]-Tabla1442[[#This Row],[VALOR CANCELADO]] -> 0 | K58: CANCELA CON 13 CERTIFICADOS DE ASCENSO
A59: 2025-05-06 | B59: RAIG DE LLUM | C59: 9 | D59: $ 8.00 | E59: =C59*Tabla1442[[#This Row],[PRECIO UNITARIO]] -> $ 72.00 | F59: 0 | G59: $ 72.00 | H59: $ 72.00 | I59: CANCELADO | J59: =Tabla1442[[#This Row],[VALOR A PAGAR]]-Tabla1442[[#This Row],[VALOR CANCELADO]] -> 0 | K59: CANCELA CON 19 CERTIFICADOS DE ASCENSO
A60: 2025-05-06 | B60: KORYO | C60: 3 | D60: $ 8.00 | E60: =C60*Tabla1442[[#This Row],[PRECIO UNITARIO]] -> $ 24.00 | F60: 0 | G60: $ 24.00 | H60: $ 24.00 | I60: CANCELADO | J60: =Tabla1442[[#This Row],[VALOR A PAGAR]]-Tabla1442[[#This Row],[VALOR CANCELADO]] -> 0
A61: 2025-05-07 | B61: BAS PANTHERS | C61: 3 | D61: $ 8.00 | E61: =C61*Tabla1442[[#This Row],[PRECIO UNITARIO]] -> $ 24.00 | F61: 0 | G61: $ 24.00 | H61: $ 24.00 | I61: CANCELADO | J61: =Tabla1442[[#This Row],[VALOR A PAGAR]]-Tabla1442[[#This Row],[VALOR CANCELADO]] -> 0 | K61: CANCELA CON 29 CERTIFICADOS DE ASCENSO
A62: 2025-05-07 | B62: LEÓN | C62: 4 | D62: $ 8.00 | E62: =C62*Tabla1442[[#This Row],[PRECIO UNITARIO]] -> $ 32.00 | F62: 0 | G62: $ 32.00 | H62: $ 32.00 | I62: CANCELADO | J62: =Tabla1442[[#This Row],[VALOR A PAGAR]]-Tabla1442[[#This Row],[VALOR CANCELADO]] -> 0
A63: 2025-05-09 | B63: CHUNG SONG | C63: 1 | D63: $ 6.00 | E63: =C63*Tabla1442[[#This Row],[PRECIO UNITARIO]] -> $ 6.00 | F63: 0 | G63: $ 6.00 | H63: $ 6.00 | I63: CANCELADO | J63: =Tabla1442[[#This Row],[VALOR A PAGAR]]-Tabla1442[[#This Row],[VALOR CANCELADO]] -> 0 | K63: ENVÍA DATOS POR WHATSAPP
A64: 2025-05-09 | B64: BORJA'S LIONS | C64: 1 | D64: $ 6.00 | E64: =C64*Tabla1442[[#This Row],[PRECIO UNITARIO]] -> $ 6.00 | F64: 0 | G64: $ 6.00 | H64: $ 6.00 | I64: CANCELADO | J64: =Tabla1442[[#This Row],[VALOR A PAGAR]]-Tabla1442[[#This Row],[VALOR CANCELADO]] -> 0
A65: 2025-05-10 | B65: KORYO DF DOJANG | C65: 1 | D65: $ 8.00 | E65: =C65*Tabla1442[[#This Row],[PRECIO UNITARIO]] -> $ 8.00 | F65: $ 8.00 | G65: 0 | H65: $ 8.00 | I65: CANCELADO | J65: =Tabla1442[[#This Row],[VALOR A PAGAR]]-Tabla1442[[#This Row],[VALOR CANCELADO]] -> 0
A66: 2025-05-12 | B66: ECUADOR | C66: 2 | D66: $ 6.00 | E66: =C66*Tabla1442[[#This Row],[PRECIO UNITARIO]] -> $ 12.00 | F66: 0 | G66: $ 12.00 | H66: $ 12.00 | I66: CANCELADO | J66: =Tabla1442[[#This Row],[VALOR A PAGAR]]-Tabla1442[[#This Row],[VALOR CANCELADO]] -> 0 | K66: CANCELA CON 20 CERTIFICADOS DE ASCENSO
A67: 2025-05-12 | B67: MARCIAL GRANDA | C67: 1 | D67: $ 8.00 | E67: =C67*Tabla1442[[#This Row],[PRECIO UNITARIO]] -> $ 8.00 | F67: 0 | G67: $ 8.00 | H67: $ 8.00 | I67: CANCELADO | J67: =Tabla1442[[#This Row],[VALOR A PAGAR]]-Tabla1442[[#This Row],[VALOR CANCELADO]] -> 0
A68: 2025-05-12 | B68: KYORUGUI GYM | C68: 2 | D68: $ 6.00 | E68: =C68*Tabla1442[[#This Row],[PRECIO UNITARIO]] -> $ 12.00 | F68: 0 | G68: $ 12.00 | H68: =F68+G68 -> $ 12.00 | I68: =IF((E68=H68),"CANCELADO","SALDO PENDIENTE") -> CANCELADO | J68: =Tabla1442[[#This Row],[VALOR A PAGAR]]-Tabla1442[[#This Row],[VALOR CANCELADO]] -> 0
A69: 2025-05-12 | B69: BORJA'S LIONS | C69: 3 | D69: $ 8.00 | E69: =C69*Tabla1442[[#This Row],[PRECIO UNITARIO]] -> $ 24.00 | F69: 0 | G69: $ 24.00 | H69: $ 24.00 | I69: CANCELADO | J69: =Tabla1442[[#This Row],[VALOR A PAGAR]]-Tabla1442[[#This Row],[VALOR CANCELADO]] -> 0
A70: 2025-05-12 | B70: BORJA'S LIONS | C70: 3 | D70: $ 2.00 | E70: =C70*Tabla1442[[#This Row],[PRECIO UNITARIO]] -> $ 6.00 | F70: 0 | G70: $ 6.00 | H70: $ 6.00 | I70: CANCELADO | J70: =Tabla1442[[#This Row],[VALOR A PAGAR]]-Tabla1442[[#This Row],[VALOR CANCELADO]] -> 0
A71: 2025-05-13 | B71: PIONERO FORTIS | C71: 11 | D71: $ 8.00 | E71: =C71*Tabla1442[[#This Row],[PRECIO UNITARIO]] -> $ 88.00 | F71: $ 8.00 | G71: $ 80.00 | H71: $ 88.00 | I71: CANCELADO | J71: =Tabla1442[[#This Row],[VALOR A PAGAR]]-Tabla1442[[#This Row],[VALOR CANCELADO]] -> 0
A72: 2025-05-14 | B72: RENACER | C72: 1 | D72: $ 2.00 | E72: =C72*Tabla1442[[#This Row],[PRECIO UNITARIO]] -> $ 2.00 | F72: $ 2.00 | G72: 0 | H72: $ 2.00 | I72: CANCELADO | J72: =Tabla1442[[#This Row],[VALOR A PAGAR]]-Tabla1442[[#This Row],[VALOR CANCELADO]] -> 0 | K72: IMPRESIÓN GAL DE ENTRRENADOR
A73: 2025-05-20 | B73: SCORPIUS | C73: 2 | D73: $ 6.00 | E73: =C73*Tabla1442[[#This Row],[PRECIO UNITARIO]] -> $ 12.00 | F73: 0 | G73: $ 12.00 | H73: $ 12.00 | I73: CANCELADO | J73: =Tabla1442[[#This Row],[VALOR A PAGAR]]-Tabla1442[[#This Row],[VALOR CANCELADO]] -> 0
A74: 2025-05-21 | B74: BAS PANTHERS | C74: 5 | D74: $ 8.00 | E74: =C74*Tabla1442[[#This Row],[PRECIO UNITARIO]] -> $ 40.00 | F74: 0 | G74: $ 40.00 | H74: $ 40.00 | I74: CANCELADO | J74: =Tabla1442[[#This Row],[VALOR A PAGAR]]-Tabla1442[[#This Row],[VALOR CANCELADO]] -> 0 | K74: CANCELA PARA TRÁMITE DE CERTIFICADOS DE ASCENSO
A75: 2025-05-27 | B75: BAEKJUL TEAM AYALAZ | C75: 3 | D75: $ 8.00 | E75: =C75*Tabla1442[[#This Row],[PRECIO UNITARIO]] -> $ 24.00 | F75: 0 | G75: $ 24.00 | H75: $ 24.00 | I75: CANCELADO | J75: =Tabla1442[[#This Row],[VALOR A PAGAR]]-Tabla1442[[#This Row],[VALOR CANCELADO]] -> 0 | K75: CANCELA CON 24 CERTIFICADOS DE ASCENSO
A76: 2025-05-27 | B76: MINOTAUROS | C76: 2 | D76: $ 8.00 | E76: =C76*Tabla1442[[#This Row],[PRECIO UNITARIO]] -> $ 16.00 | F76: 0 | G76: $ 16.00 | H76: $ 16.00 | I76: CANCELADO | J76: =Tabla1442[[#This Row],[VALOR A PAGAR]]-Tabla1442[[#This Row],[VALOR CANCELADO]] -> 0 | K76: CANCELA CON 12 CERTIFICADOS DE ASCENSO
A77: 2025-05-28 | B77: MINOTAUROS | C77: 1 | D77: $ 8.00 | E77: =C77*Tabla1442[[#This Row],[PRECIO UNITARIO]] -> $ 8.00 | F77: 0 | G77: $ 8.00 | H77: $ 8.00 | I77: CANCELADO | J77: =Tabla1442[[#This Row],[VALOR A PAGAR]]-Tabla1442[[#This Row],[VALOR CANCELADO]] -> 0 | K77: FALTA COMPROBANTE DE DEPÓSITO
A78: 2025-06-03 | B78: TEKKEN | C78: 9 | D78: $ 8.00 | E78: =C78*Tabla1442[[#This Row],[PRECIO UNITARIO]] -> $ 72.00 | F78: 0 | G78: $ 72.00 | H78: $ 72.00 | I78: CANCELADO | J78: =Tabla1442[[#This Row],[VALOR A PAGAR]]-Tabla1442[[#This Row],[VALOR CANCELADO]] -> 0
A79: 2025-06-05 | B79: JOSEON LEGACY | C79: 29 | D79: $ 6.00 | E79: =C79*Tabla1442[[#This Row],[PRECIO UNITARIO]] -> $ 174.00 | F79: 0 | G79: $ 174.00 | H79: $ 174.00 | I79: CANCELADO | J79: =Tabla1442[[#This Row],[VALOR A PAGAR]]-Tabla1442[[#This Row],[VALOR CANCELADO]] -> 0 | K79: CANCELA CON 64 CERTIFICADOS DE ASCENSO
A80: 2025-06-05 | B80: JOSEON LEGACY | C80: 3 | D80: $ 8.00 | E80: =C80*Tabla1442[[#This Row],[PRECIO UNITARIO]] -> $ 24.00 | F80: 0 | G80: $ 24.00 | H80: $ 24.00 | I80: CANCELADO | J80: =Tabla1442[[#This Row],[VALOR A PAGAR]]-Tabla1442[[#This Row],[VALOR CANCELADO]] -> 0
A81: 2025-06-06 | B81: ASOTKD - P (CHIMBACALLE) | C81: 12 | D81: $ 8.00 | E81: =C81*Tabla1442[[#This Row],[PRECIO UNITARIO]] -> $ 96.00 | F81: $ 96.00 | G81: 0 | H81: $ 96.00 | I81: CANCELADO | J81: =Tabla1442[[#This Row],[VALOR A PAGAR]]-Tabla1442[[#This Row],[VALOR CANCELADO]] -> 0
A82: 2025-06-09 | B82: CAMU | C82: 12 | D82: $ 8.00 | E82: =C82*Tabla1442[[#This Row],[PRECIO UNITARIO]] -> $ 96.00 | F82: 0 | G82: $ 96.00 | H82: $ 96.00 | I82: CANCELADO | J82: =Tabla1442[[#This Row],[VALOR A PAGAR]]-Tabla1442[[#This Row],[VALOR CANCELADO]] -> 0 | K82: CANCELA CON 12 CERTIFICADOS DE ASCENSO
A83: 2025-06-11 | B83: PALADINS MARCIAL CLUB | C83: 8 | D83: $ 8.00 | E83: =C83*Tabla1442[[#This Row],[PRECIO UNITARIO]] -> $ 64.00 | F83: 0 | G83: $ 64.00 | H83: $ 64.00 | I83: CANCELADO | J83: =Tabla1442[[#This Row],[VALOR A PAGAR]]-Tabla1442[[#This Row],[VALOR CANCELADO]] -> 0 | K83: CANCELA CON 8 CERTIFICADOS DE ASCENSO
A84: 2025-06-11 | B84: MINOTAUROS | C84: 1 | D84: $ 8.00 | E84: =C84*Tabla1442[[#This Row],[PRECIO UNITARIO]] -> $ 8.00 | F84: 0 | G84: $ 8.00 | H84: $ 8.00 | I84: CANCELADO | J84: =Tabla1442[[#This Row],[VALOR A PAGAR]]-Tabla1442[[#This Row],[VALOR CANCELADO]] -> 0
A85: 2025-05-15 | B85: PYONGYANG | C85: 1 | D85: $ 8.00 | E85: =C85*Tabla1442[[#This Row],[PRECIO UNITARIO]] -> $ 8.00 | F85: 0 | G85: $ 8.00 | H85: $ 8.00 | I85: CANCELADO | J85: =Tabla1442[[#This Row],[VALOR A PAGAR]]-Tabla1442[[#This Row],[VALOR CANCELADO]] -> 0 | K85: CANCELA CON 12 CERTIFICADOS DE ASCENSO
A86: 2025-06-16 | B86: TOTAL KOMBAT | C86: 7 | D86: $ 6.00 | E86: =C86*Tabla1442[[#This Row],[PRECIO UNITARIO]] -> $ 42.00 | F86: 0 | G86: $ 42.00 | H86: $ 42.00 | I86: CANCELADO | J86: =Tabla1442[[#This Row],[VALOR A PAGAR]]-Tabla1442[[#This Row],[VALOR CANCELADO]] -> 0
A87: 2025-06-16 | B87: TOTAL KOMBAT RHINOS | C87: 7 | D87: $ 6.00 | E87: =C87*Tabla1442[[#This Row],[PRECIO UNITARIO]] -> $ 42.00 | F87: 0 | G87: $ 42.00 | H87: $ 42.00 | I87: CANCELADO | J87: =Tabla1442[[#This Row],[VALOR A PAGAR]]-Tabla1442[[#This Row],[VALOR CANCELADO]] -> 0
A88: 2025-06-16 | B88: TOTAL KOMBAT KOBRA KAY | C88: 9 | D88: $ 8.00 | E88: =C88*Tabla1442[[#This Row],[PRECIO UNITARIO]] -> $ 72.00 | F88: 0 | G88: $ 72.00 | H88: $ 72.00 | I88: CANCELADO | J88: =Tabla1442[[#This Row],[VALOR A PAGAR]]-Tabla1442[[#This Row],[VALOR CANCELADO]] -> 0
A89: 2025-06-16 | B89: TOTAL KOMBAT KOBRA KAY | C89: 2 | D89: $ 6.00 | E89: =C89*Tabla1442[[#This Row],[PRECIO UNITARIO]] -> $ 12.00 | F89: 0 | G89: $ 12.00 | H89: $ 12.00 | I89: CANCELADO | J89: =Tabla1442[[#This Row],[VALOR A PAGAR]]-Tabla1442[[#This Row],[VALOR CANCELADO]] -> 0
A90: 2025-06-16 | B90: TAEBAEK ECUADOR | C90: 1 | D90: $ 8.00 | E90: =C90*Tabla1442[[#This Row],[PRECIO UNITARIO]] -> $ 8.00 | F90: 0 | G90: $ 8.00 | H90: $ 8.00 | I90: CANCELADO | J90: =Tabla1442[[#This Row],[VALOR A PAGAR]]-Tabla1442[[#This Row],[VALOR CANCELADO]] -> 0
A91: 2025-06-16 | B91: SAN SEBASTIÁN (LUIS TIPÁN) | C91: 5 | D91: $ 8.00 | E91: =C91*Tabla1442[[#This Row],[PRECIO UNITARIO]] -> $ 40.00 | F91: 0 | G91: $ 40.00 | H91: $ 40.00 | I91: CANCELADO | J91: =Tabla1442[[#This Row],[VALOR A PAGAR]]-Tabla1442[[#This Row],[VALOR CANCELADO]] -> 0
A92: 2025-06-18 | B92: BAEKJUL TEAM FERNÁNDEZ | C92: 6 | D92: $ 8.00 | E92: =C92*Tabla1442[[#This Row],[PRECIO UNITARIO]] -> $ 48.00 | F92: 0 | G92: $ 48.00 | H92: $ 48.00 | I92: CANCELADO | J92: =Tabla1442[[#This Row],[VALOR A PAGAR]]-Tabla1442[[#This Row],[VALOR CANCELADO]] -> 0
A93: 2025-06-18 | B93: KOREAN DRAGON | C93: 15 | D93: $ 8.00 | E93: =C93*Tabla1442[[#This Row],[PRECIO UNITARIO]] -> $ 120.00 | F93: 0 | G93: $ 120.00 | H93: $ 120.00 | I93: CANCELADO | J93: =Tabla1442[[#This Row],[VALOR A PAGAR]]-Tabla1442[[#This Row],[VALOR CANCELADO]] -> 0
A94: 2025-06-18 | B94: KOREAN DRAGON | C94: 1 | D94: $ 2.00 | E94: =C94*Tabla1442[[#This Row],[PRECIO UNITARIO]] -> $ 2.00 | F94: 0 | G94: $ 2.00 | H94: $ 2.00 | I94: CANCELADO | J94: =Tabla1442[[#This Row],[VALOR A PAGAR]]-Tabla1442[[#This Row],[VALOR CANCELADO]] -> 0 | K94: SOLO IMPRESIÓN DE GAL
A95: 2025-06-18 | B95: TAEBAEK ECUADOR | C95: 1 | D95: $ 8.00 | E95: =C95*Tabla1442[[#This Row],[PRECIO UNITARIO]] -> $ 8.00 | F95: 0 | G95: $ 8.00 | H95: $ 8.00 | I95: CANCELADO | J95: =Tabla1442[[#This Row],[VALOR A PAGAR]]-Tabla1442[[#This Row],[VALOR CANCELADO]] -> 0
A96: 2025-06-18 | B96: PYONGYANG | C96: 1 | D96: $ 8.00 | E96: =C96*Tabla1442[[#This Row],[PRECIO UNITARIO]] -> $ 8.00 | F96: 0 | G96: $ 8.00 | H96: $ 8.00 | I96: CANCELADO | J96: =Tabla1442[[#This Row],[VALOR A PAGAR]]-Tabla1442[[#This Row],[VALOR CANCELADO]] -> 0
A97: 2025-06-19 | B97: TOTAL KOMBAT KUKKIWON C.C. | C97: 2 | D97: $ 6.00 | E97: =C97*Tabla1442[[#This Row],[PRECIO UNITARIO]] -> $ 12.00 | F97: 0 | G97: $ 12.00 | H97: $ 12.00 | I97: CANCELADO | J97: =Tabla1442[[#This Row],[VALOR A PAGAR]]-Tabla1442[[#This Row],[VALOR CANCELADO]] -> 0
A98: 2025-06-19 | B98: MICHAYDO | C98: 3 | D98: $ 8.00 | E98: =C98*Tabla1442[[#This Row],[PRECIO UNITARIO]] -> $ 24.00 | F98: 0 | G98: $ 24.00 | H98: $ 24.00 | I98: CANCELADO | J98: =Tabla1442[[#This Row],[VALOR A PAGAR]]-Tabla1442[[#This Row],[VALOR CANCELADO]] -> 0
A99: 2025-06-19 | B99: MIT-TKD | C99: 9 | D99: $ 6.00 | E99: =C99*Tabla1442[[#This Row],[PRECIO UNITARIO]] -> $ 54.00 | F99: 0 | G99: $ 54.00 | H99: $ 54.00 | I99: CANCELADO | J99: =Tabla1442[[#This Row],[VALOR A PAGAR]]-Tabla1442[[#This Row],[VALOR CANCELADO]] -> 0
A100: 2025-06-19 | B100: SIMJANG | C100: 2 | D100: $ 6.00 | E100: =C100*Tabla1442[[#This Row],[PRECIO UNITARIO]] -> $ 12.00 | F100: $ 6.00 | G100: $ 6.00 | H100: $ 12.00 | I100: CANCELADO | J100: =Tabla1442[[#This Row],[VALOR A PAGAR]]-Tabla1442[[#This Row],[VALOR CANCELADO]] -> 0 | K100: CANCELA CON 25 CERTIFICADOS DE ASCENSO
A101: 2025-06-19 | B101: CHEN HUU | C101: 8 | D101: $ 8.00 | E101: =C101*Tabla1442[[#This Row],[PRECIO UNITARIO]] -> $ 64.00 | F101: 0 | G101: $ 64.00 | H101: $ 64.00 | I101: CANCELADO | J101: =Tabla1442[[#This Row],[VALOR A PAGAR]]-Tabla1442[[#This Row],[VALOR CANCELADO]] -> 0 | K101: CANCELA CON 8 CERTIFICADOS DE ASCENSO
A102: 2025-06-19 | B102: JOSEON LEGACY | C102: 1 | D102: $ 6.00 | E102: =C102*Tabla1442[[#This Row],[PRECIO UNITARIO]] -> $ 6.00 | F102: 0 | G102: $ 6.00 | H102: $ 6.00 | I102: CANCELADO | J102: =Tabla1442[[#This Row],[VALOR A PAGAR]]-Tabla1442[[#This Row],[VALOR CANCELADO]] -> 0
A103: 2025-06-19 | B103: TAE SHO KU | C103: 33 | D103: $ 6.00 | E103: =C103*Tabla1442[[#This Row],[PRECIO UNITARIO]] -> $ 198.00 | F103: 0 | G103: $ 198.00 | H103: $ 198.00 | I103: CANCELADO | J103: =Tabla1442[[#This Row],[VALOR A PAGAR]]-Tabla1442[[#This Row],[VALOR CANCELADO]] -> 0 | K103: CANCELA CON 50 CERTIFICADOS DE ASCENSO
A104: 2025-06-19 | B104: CAMU | C104: 19 | D104: $ 8.00 | E104: =C104*Tabla1442[[#This Row],[PRECIO UNITARIO]] -> $ 152.00 | F104: 0 | G104: $ 152.00 | H104: $ 152.00 | I104: CANCELADO | J104: =Tabla1442[[#This Row],[VALOR A PAGAR]]-Tabla1442[[#This Row],[VALOR CANCELADO]] -> 0
A105: 2025-06-19 | B105: ARES | C105: 31 | D105: $ 8.00 | E105: =C105*Tabla1442[[#This Row],[PRECIO UNITARIO]] -> $ 248.00 | F105: 0 | G105: $ 248.00 | H105: $ 248.00 | I105: CANCELADO | J105: =Tabla1442[[#This Row],[VALOR A PAGAR]]-Tabla1442[[#This Row],[VALOR CANCELADO]] -> 0
A106: 2025-06-20 | B106: HANKUMDO | C106: 6 | D106: $ 8.00 | E106: =C106*Tabla1442[[#This Row],[PRECIO UNITARIO]] -> $ 48.00 | F106: 0 | G106: $ 48.00 | H106: $ 48.00 | I106: CANCELADO | J106: =Tabla1442[[#This Row],[VALOR A PAGAR]]-Tabla1442[[#This Row],[VALOR CANCELADO]] -> 0 | K106: 1
A107: 2025-06-20 | B107: TAE WOONG | C107: 2 | D107: $ 8.00 | E107: =C107*Tabla1442[[#This Row],[PRECIO UNITARIO]] -> $ 16.00 | F107: 0 | G107: $ 16.00 | H107: $ 16.00 | I107: CANCELADO | J107: =Tabla1442[[#This Row],[VALOR A PAGAR]]-Tabla1442[[#This Row],[VALOR CANCELADO]] -> 0
A108: 2025-06-20 | B108: ECUADOR | C108: 10 | D108: $ 6.00 | E108: =C108*Tabla1442[[#This Row],[PRECIO UNITARIO]] -> $ 60.00 | F108: 0 | G108: $ 60.00 | H108: $ 60.00 | I108: CANCELADO | J108: =Tabla1442[[#This Row],[VALOR A PAGAR]]-Tabla1442[[#This Row],[VALOR CANCELADO]] -> 0 | K108: CANCELA CON 33 CERTIFICADOS DE ASCENSO
A109: 2025-06-20 | B109: APOLO | C109: 8 | D109: $ 2.00 | E109: =C109*Tabla1442[[#This Row],[PRECIO UNITARIO]] -> $ 16.00 | F109: 0 | G109: $ 16.00 | H109: $ 16.00 | I109: CANCELADO | J109: =Tabla1442[[#This Row],[VALOR A PAGAR]]-Tabla1442[[#This Row],[VALOR CANCELADO]] -> 0 | K109: CANCELA EN 2 PAGOS
A110: 2025-06-20 | B110: APOLO | C110: 14 | D110: $ 6.00 | E110: =C110*Tabla1442[[#This Row],[PRECIO UNITARIO]] -> $ 84.00 | F110: 0 | G110: $ 84.00 | H110: $ 84.00 | I110: CANCELADO | J110: =Tabla1442[[#This Row],[VALOR A PAGAR]]-Tabla1442[[#This Row],[VALOR CANCELADO]] -> 0
A111: 2025-06-20 | B111: APOLO | C111: 1 | D111: $ 8.00 | E111: =C111*Tabla1442[[#This Row],[PRECIO UNITARIO]] -> $ 8.00 | F111: 0 | G111: $ 8.00 | H111: $ 8.00 | I111: CANCELADO | J111: =Tabla1442[[#This Row],[VALOR A PAGAR]]-Tabla1442[[#This Row],[VALOR CANCELADO]] -> 0
A112: 2025-06-20 | B112: BORJA'S LIONS | C112: 10 | D112: $ 8.00 | E112: =C112*Tabla1442[[#This Row],[PRECIO UNITARIO]] -> $ 80.00 | F112: 0 | G112: $ 80.00 | H112: $ 80.00 | I112: CANCELADO | J112: =Tabla1442[[#This Row],[VALOR A PAGAR]]-Tabla1442[[#This Row],[VALOR CANCELADO]] -> 0 | K112: UN SOLO TRÁMITE
A113: 2025-06-20 | B113: BORJA'S LIONS | C113: 2 | D113: $ 6.00 | E113: =C113*Tabla1442[[#This Row],[PRECIO UNITARIO]] -> $ 12.00 | F113: 0 | G113: $ 12.00 | H113: $ 12.00 | I113: CANCELADO | J113: =Tabla1442[[#This Row],[VALOR A PAGAR]]-Tabla1442[[#This Row],[VALOR CANCELADO]] -> 0
A114: 2025-06-20 | B114: BORJA'S LIONS | C114: 2 | D114: $ 2.00 | E114: =C114*Tabla1442[[#This Row],[PRECIO UNITARIO]] -> $ 4.00 | F114: 0 | G114: $ 4.00 | H114: $ 4.00 | I114: CANCELADO | J114: =Tabla1442[[#This Row],[VALOR A PAGAR]]-Tabla1442[[#This Row],[VALOR CANCELADO]] -> 0
A115: 2025-06-20 | B115: MOODUKKWAN TRAINING CENTER | C115: 2 | D115: $ 8.00 | E115: =C115*Tabla1442[[#This Row],[PRECIO UNITARIO]] -> $ 16.00 | F115: 0 | G115: $ 16.00 | H115: $ 16.00 | I115: CANCELADO | J115: =Tabla1442[[#This Row],[VALOR A PAGAR]]-Tabla1442[[#This Row],[VALOR CANCELADO]] -> 0
A116: 2025-06-20 | B116: MOODUKKWAN TRAINING CENTER | C116: 2 | D116: $ 6.00 | E116: =C116*Tabla1442[[#This Row],[PRECIO UNITARIO]] -> $ 12.00 | F116: 0 | G116: $ 12.00 | H116: $ 12.00 | I116: CANCELADO | J116: =Tabla1442[[#This Row],[VALOR A PAGAR]]-Tabla1442[[#This Row],[VALOR CANCELADO]] -> 0
A117: 2025-06-23 | B117: KUKKIWON | C117: 3 | D117: $ 8.00 | E117: =C117*Tabla1442[[#This Row],[PRECIO UNITARIO]] -> $ 24.00 | F117: 0 | G117: $ 24.00 | H117: $ 24.00 | I117: CANCELADO | J117: =Tabla1442[[#This Row],[VALOR A PAGAR]]-Tabla1442[[#This Row],[VALOR CANCELADO]] -> 0 | K117: REALIZA DOS PAGOS
A118: 2025-06-23 | B118: KUMGANG DUL | C118: 1 | D118: $ 8.00 | E118: =C118*Tabla1442[[#This Row],[PRECIO UNITARIO]] -> $ 8.00 | F118: 0 | G118: $ 8.00 | H118: $ 8.00 | I118: CANCELADO | J118: =Tabla1442[[#This Row],[VALOR A PAGAR]]-Tabla1442[[#This Row],[VALOR CANCELADO]] -> 0 | K118: UN SOLO PAGO
A119: 2025-06-23 | B119: KUMGANG DUL | C119: 4 | D119: $ 6.00 | E119: =C119*Tabla1442[[#This Row],[PRECIO UNITARIO]] -> $ 24.00 | F119: 0 | G119: $ 24.00 | H119: $ 24.00 | I119: CANCELADO | J119: =Tabla1442[[#This Row],[VALOR A PAGAR]]-Tabla1442[[#This Row],[VALOR CANCELADO]] -> 0
A120: 2025-06-23 | B120: SOCIEDAD DEPORTIVA CENTRAL | C120: 13 | D120: $ 6.00 | E120: =C120*Tabla1442[[#This Row],[PRECIO UNITARIO]] -> $ 78.00 | F120: $ 78.00 | G120: 0 | H120: $ 78.00 | I120: CANCELADO | J120: =Tabla1442[[#This Row],[VALOR A PAGAR]]-Tabla1442[[#This Row],[VALOR CANCELADO]] -> 0
A121: 2025-06-23 | B121: SOCIEDAD DEPORTIVA CENTRAL | C121: 2 | D121: $ 8.00 | E121: =C121*Tabla1442[[#This Row],[PRECIO UNITARIO]] -> $ 16.00 | F121: $ 16.00 | G121: 0 | H121: $ 16.00 | I121: CANCELADO | J121: =Tabla1442[[#This Row],[VALOR A PAGAR]]-Tabla1442[[#This Row],[VALOR CANCELADO]] -> 0
A122: 2025-06-24 | B122: TAEGUK JUCARO | C122: 3 | D122: $ 8.00 | E122: =C122*Tabla1442[[#This Row],[PRECIO UNITARIO]] -> $ 24.00 | F122: 0 | G122: $ 24.00 | H122: $ 24.00 | I122: CANCELADO | J122: =Tabla1442[[#This Row],[VALOR A PAGAR]]-Tabla1442[[#This Row],[VALOR CANCELADO]] -> 0
A123: 2025-06-24 | B123: SEUL | C123: 1 | D123: $ 6.00 | E123: =C123*Tabla1442[[#This Row],[PRECIO UNITARIO]] -> $ 6.00 | F123: 0 | G123: $ 6.00 | H123: $ 6.00 | I123: CANCELADO | J123: =Tabla1442[[#This Row],[VALOR A PAGAR]]-Tabla1442[[#This Row],[VALOR CANCELADO]] -> 0 | K123: PARA GESTIÓN DE CERTIFICADO DE ASCENSO
A124: 2025-06-25 | B124: CHAMPIONS FOR LIFE | C124: 7 | D124: $ 6.00 | E124: =C124*Tabla1442[[#This Row],[PRECIO UNITARIO]] -> $ 42.00 | F124: 0 | G124: $ 42.00 | H124: $ 42.00 | I124: CANCELADO | J124: =Tabla1442[[#This Row],[VALOR A PAGAR]]-Tabla1442[[#This Row],[VALOR CANCELADO]] -> 0 | K124: CARCELA EN 2 PAGOS
A125: 2025-06-25 | B125: MOODUKKWAN TRAINING CENTER | C125: 1 | D125: $ 6.00 | E125: =C125*Tabla1442[[#This Row],[PRECIO UNITARIO]] -> $ 6.00 | F125: 0 | G125: $ 6.00 | H125: $ 6.00 | I125: CANCELADO | J125: =Tabla1442[[#This Row],[VALOR A PAGAR]]-Tabla1442[[#This Row],[VALOR CANCELADO]] -> 0
A126: 2025-06-25 | B126: PIONERO FORTIS | C126: 3 | D126: $ 8.00 | E126: =C126*Tabla1442[[#This Row],[PRECIO UNITARIO]] -> $ 24.00 | F126: $ 24.00 | G126: 0 | H126: $ 24.00 | I126: CANCELADO | J126: =Tabla1442[[#This Row],[VALOR A PAGAR]]-Tabla1442[[#This Row],[VALOR CANCELADO]] -> 0
A127: 2025-06-25 | B127: SEUL CARAPUNGO | C127: 5 | D127: $ 8.00 | E127: =C127*Tabla1442[[#This Row],[PRECIO UNITARIO]] -> $ 40.00 | F127: 0 | G127: $ 40.00 | H127: $ 40.00 | I127: CANCELADO | J127: =Tabla1442[[#This Row],[VALOR A PAGAR]]-Tabla1442[[#This Row],[VALOR CANCELADO]] -> 0
A128: 2025-06-25 | B128: SEUL CARAPUNGO | C128: 6 | D128: $ 6.00 | E128: =C128*Tabla1442[[#This Row],[PRECIO UNITARIO]] -> $ 36.00 | F128: 0 | G128: $ 36.00 | H128: $ 36.00 | I128: CANCELADO | J128: =Tabla1442[[#This Row],[VALOR A PAGAR]]-Tabla1442[[#This Row],[VALOR CANCELADO]] -> 0
A129: 2025-06-26 | B129: ASOTKD - P (VICENTINA) | C129: 6 | D129: $ 6.00 | E129: =C129*Tabla1442[[#This Row],[PRECIO UNITARIO]] -> $ 36.00 | F129: $ 36.00 | G129: 0 | H129: $ 36.00 | I129: CANCELADO | J129: =Tabla1442[[#This Row],[VALOR A PAGAR]]-Tabla1442[[#This Row],[VALOR CANCELADO]] -> 0
A130: 2025-06-26 | B130: ASOTKD - P (VICENTINA) | C130: 11 | D130: $ 8.00 | E130: =C130*Tabla1442[[#This Row],[PRECIO UNITARIO]] -> $ 88.00 | F130: $ 88.00 | G130: 0 | H130: $ 88.00 | I130: CANCELADO | J130: =Tabla1442[[#This Row],[VALOR A PAGAR]]-Tabla1442[[#This Row],[VALOR CANCELADO]] -> 0
A131: 2025-06-26 | B131: TAEBAEK ECUADOR | C131: 1 | D131: $ 8.00 | E131: =C131*Tabla1442[[#This Row],[PRECIO UNITARIO]] -> $ 8.00 | F131: 0 | G131: $ 8.00 | H131: $ 8.00 | I131: CANCELADO | J131: =Tabla1442[[#This Row],[VALOR A PAGAR]]-Tabla1442[[#This Row],[VALOR CANCELADO]] -> 0
A132: 2025-06-26 | B132: KYORUGUI GYM | C132: 5 | D132: $ 6.00 | E132: =C132*Tabla1442[[#This Row],[PRECIO UNITARIO]] -> $ 30.00 | F132: 0 | G132: $ 30.00 | H132: =F132+G132 -> $ 30.00 | I132: =IF((E132=H132),"CANCELADO","SALDO PENDIENTE") -> CANCELADO | J132: =Tabla1442[[#This Row],[VALOR A PAGAR]]-Tabla1442[[#This Row],[VALOR CANCELADO]] -> 0 | K132: CANCELA CON 6 CERTIFICADOS DE ASCENSO
A133: 2025-06-26 | B133: MOODUKKWAN TRAINING CENTER | C133: 1 | D133: $ 6.00 | E133: =C133*Tabla1442[[#This Row],[PRECIO UNITARIO]] -> $ 6.00 | F133: 0 | G133: $ 6.00 | H133: $ 6.00 | I133: CANCELADO | J133: =Tabla1442[[#This Row],[VALOR A PAGAR]]-Tabla1442[[#This Row],[VALOR CANCELADO]] -> 0
A134: 2025-06-26 | B134: BORJA'S LIONS | C134: 8 | D134: $ 8.00 | E134: =C134*Tabla1442[[#This Row],[PRECIO UNITARIO]] -> $ 64.00 | F134: 0 | G134: $ 64.00 | H134: $ 64.00 | I134: CANCELADO | J134: =Tabla1442[[#This Row],[VALOR A PAGAR]]-Tabla1442[[#This Row],[VALOR CANCELADO]] -> 0 | K134: CANCELA EN DOS PAGOS
A135: 2025-06-26 | B135: BORJA'S LIONS | C135: 3 | D135: $ 6.00 | E135: =C135*Tabla1442[[#This Row],[PRECIO UNITARIO]] -> $ 18.00 | F135: 0 | G135: $ 18.00 | H135: $ 18.00 | I135: CANCELADO | J135: =Tabla1442[[#This Row],[VALOR A PAGAR]]-Tabla1442[[#This Row],[VALOR CANCELADO]] -> 0
A136: 2025-06-26 | B136: JERATHEL | C136: 2 | D136: $ 8.00 | E136: =C136*Tabla1442[[#This Row],[PRECIO UNITARIO]] -> $ 16.00 | F136: 0 | G136: $ 16.00 | H136: $ 16.00 | I136: CANCELADO | J136: =Tabla1442[[#This Row],[VALOR A PAGAR]]-Tabla1442[[#This Row],[VALOR CANCELADO]] -> 0
A137: 2025-06-26 | B137: YONG TIGER | C137: 6 | D137: $ 6.00 | E137: =C137*Tabla1442[[#This Row],[PRECIO UNITARIO]] -> $ 36.00 | F137: 0 | G137: $ 36.00 | H137: $ 36.00 | I137: CANCELADO | J137: =Tabla1442[[#This Row],[VALOR A PAGAR]]-Tabla1442[[#This Row],[VALOR CANCELADO]] -> 0
A138: 2025-06-26 | B138: BORJA'S LIONS | C138: 4 | D138: $ 6.00 | E138: =C138*Tabla1442[[#This Row],[PRECIO UNITARIO]] -> $ 24.00 | F138: 0 | G138: $ 24.00 | H138: $ 24.00 | I138: CANCELADO | J138: =Tabla1442[[#This Row],[VALOR A PAGAR]]-Tabla1442[[#This Row],[VALOR CANCELADO]] -> 0 | K138: CANCELA EN DOS PAGOS
A139: 2025-06-26 | B139: SOCIEDAD DEPORTIVA CENTRAL | C139: 3 | D139: $ 6.00 | E139: =C139*Tabla1442[[#This Row],[PRECIO UNITARIO]] -> $ 18.00 | F139: $ 18.00 | G139: 0 | H139: $ 18.00 | I139: CANCELADO | J139: =Tabla1442[[#This Row],[VALOR A PAGAR]]-Tabla1442[[#This Row],[VALOR CANCELADO]] -> 0 | K139: PASO CON DEUDAS
A140: 2025-06-26 | B140: MARCIAL GRANDA | C140: 1 | D140: $ 6.00 | E140: =C140*Tabla1442[[#This Row],[PRECIO UNITARIO]] -> $ 6.00 | F140: 0 | G140: $ 6.00 | H140: $ 6.00 | I140: CANCELADO | J140: =Tabla1442[[#This Row],[VALOR A PAGAR]]-Tabla1442[[#This Row],[VALOR CANCELADO]] -> 0
A141: 2025-06-26 | B141: BAEKJUL TEAM AYALAZ | C141: 1 | D141: $ 8.00 | E141: =C141*Tabla1442[[#This Row],[PRECIO UNITARIO]] -> $ 8.00 | F141: 0 | G141: $ 8.00 | H141: $ 8.00 | I141: CANCELADO | J141: =Tabla1442[[#This Row],[VALOR A PAGAR]]-Tabla1442[[#This Row],[VALOR CANCELADO]] -> 0
A142: 2025-06-26 | B142: DOJANG TKD MELO | C142: 1 | D142: $ 8.00 | E142: =C142*Tabla1442[[#This Row],[PRECIO UNITARIO]] -> $ 8.00 | F142: 0 | G142: $ 8.00 | H142: $ 8.00 | I142: CANCELADO | J142: =Tabla1442[[#This Row],[VALOR A PAGAR]]-Tabla1442[[#This Row],[VALOR CANCELADO]] -> 0
A143: 2025-06-26 | B143: BAEKJUL | C143: 2 | D143: $ 8.00 | E143: =C143*Tabla1442[[#This Row],[PRECIO UNITARIO]] -> $ 16.00 | F143: 0 | G143: $ 16.00 | H143: $ 16.00 | I143: CANCELADO | J143: =Tabla1442[[#This Row],[VALOR A PAGAR]]-Tabla1442[[#This Row],[VALOR CANCELADO]] -> 0
A144: 2025-06-26 | B144: SHOGUN | C144: 7 | D144: $ 6.00 | E144: =C144*Tabla1442[[#This Row],[PRECIO UNITARIO]] -> $ 42.00 | F144: 0 | G144: $ 42.00 | H144: $ 42.00 | I144: CANCELADO | J144: =Tabla1442[[#This Row],[VALOR A PAGAR]]-Tabla1442[[#This Row],[VALOR CANCELADO]] -> 0 | K144: CANCELA CON 23 CERTIFICADOS DE ASCENSO
A145: 2025-06-26 | B145: FURIA NEGRA | C145: 4 | D145: $ 8.00 | E145: =C145*Tabla1442[[#This Row],[PRECIO UNITARIO]] -> $ 32.00 | F145: 0 | G145: $ 32.00 | H145: $ 32.00 | I145: CANCELADO | J145: =Tabla1442[[#This Row],[VALOR A PAGAR]]-Tabla1442[[#This Row],[VALOR CANCELADO]] -> 0
A146: 2025-06-26 | B146: FURIA NEGRA | C146: 1 | D146: $ 6.00 | E146: =C146*Tabla1442[[#This Row],[PRECIO UNITARIO]] -> $ 6.00 | F146: 0 | G146: $ 6.00 | H146: $ 6.00 | I146: CANCELADO | J146: =Tabla1442[[#This Row],[VALOR A PAGAR]]-Tabla1442[[#This Row],[VALOR CANCELADO]] -> 0
A147: 2025-06-26 | B147: SURYUN | C147: 9 | D147: $ 6.00 | E147: =C147*Tabla1442[[#This Row],[PRECIO UNITARIO]] -> $ 54.00 | F147: 0 | G147: $ 54.00 | H147: $ 54.00 | I147: CANCELADO | J147: =Tabla1442[[#This Row],[VALOR A PAGAR]]-Tabla1442[[#This Row],[VALOR CANCELADO]] -> 0
A148: 2025-06-26 | B148: CIUDAD DE QUITO | C148: 1 | D148: $ 8.00 | E148: =C148*Tabla1442[[#This Row],[PRECIO UNITARIO]] -> $ 8.00 | F148: 0 | G148: $ 8.00 | H148: $ 8.00 | I148: CANCELADO | J148: =Tabla1442[[#This Row],[VALOR A PAGAR]]-Tabla1442[[#This Row],[VALOR CANCELADO]] -> 0
A149: 2025-06-26 | B149: DRACO | C149: 12 | D149: $ 6.00 | E149: =C149*Tabla1442[[#This Row],[PRECIO UNITARIO]] -> $ 72.00 | F149: 0 | G149: $ 72.00 | H149: $ 72.00 | I149: CANCELADO | J149: =Tabla1442[[#This Row],[VALOR A PAGAR]]-Tabla1442[[#This Row],[VALOR CANCELADO]] -> 0
A150: 2025-06-26 | B150: ESPE | C150: 2 | D150: $ 6.00 | E150: =C150*Tabla1442[[#This Row],[PRECIO UNITARIO]] -> $ 12.00 | F150: 0 | G150: $ 12.00 | H150: $ 12.00 | I150: CANCELADO | J150: =Tabla1442[[#This Row],[VALOR A PAGAR]]-Tabla1442[[#This Row],[VALOR CANCELADO]] -> 0
A151: 2025-06-27 | B151: DEBAK TKD | C151: 11 | D151: $ 6.00 | E151: =C151*Tabla1442[[#This Row],[PRECIO UNITARIO]] -> $ 66.00 | F151: 0 | G151: $ 66.00 | H151: $ 66.00 | I151: CANCELADO | J151: =Tabla1442[[#This Row],[VALOR A PAGAR]]-Tabla1442[[#This Row],[VALOR CANCELADO]] -> 0
A152: 2025-06-27 | B152: DEBAK TKD | C152: 2 | D152: $ 8.00 | E152: =C152*Tabla1442[[#This Row],[PRECIO UNITARIO]] -> $ 16.00 | F152: 0 | G152: $ 16.00 | H152: $ 16.00 | I152: CANCELADO | J152: =Tabla1442[[#This Row],[VALOR A PAGAR]]-Tabla1442[[#This Row],[VALOR CANCELADO]] -> 0
A153: 2025-06-27 | B153: ESPE | C153: 1 | D153: $ 6.00 | E153: =C153*Tabla1442[[#This Row],[PRECIO UNITARIO]] -> $ 6.00 | F153: 0 | G153: $ 6.00 | H153: $ 6.00 | I153: CANCELADO | J153: =Tabla1442[[#This Row],[VALOR A PAGAR]]-Tabla1442[[#This Row],[VALOR CANCELADO]] -> 0
A154: 2025-06-27 | B154: LEÓN | C154: 1 | D154: $ 8.00 | E154: =C154*Tabla1442[[#This Row],[PRECIO UNITARIO]] -> $ 8.00 | F154: 0 | G154: $ 8.00 | H154: $ 8.00 | I154: CANCELADO | J154: =Tabla1442[[#This Row],[VALOR A PAGAR]]-Tabla1442[[#This Row],[VALOR CANCELADO]] -> 0 | K154: CANCECA CON 1 CERTIFICADO DE ASCENSO
A155: 2025-06-28 | B155: ASOTKD - P (CHIMBACALLE) | C155: 1 | D155: $ 8.00 | E155: =C155*Tabla1442[[#This Row],[PRECIO UNITARIO]] -> $ 8.00 | F155: $ 8.00 | G155: 0 | H155: $ 8.00 | I155: CANCELADO | J155: =Tabla1442[[#This Row],[VALOR A PAGAR]]-Tabla1442[[#This Row],[VALOR CANCELADO]] -> 0
A156: 2025-06-30 | B156: SOCIEDAD DEPORTIVA CENTRAL | C156: 5 | D156: $ 8.00 | E156: =C156*Tabla1442[[#This Row],[PRECIO UNITARIO]] -> $ 40.00 | F156: 0 | G156: $ 40.00 | H156: $ 40.00 | I156: CANCELADO | J156: =Tabla1442[[#This Row],[VALOR A PAGAR]]-Tabla1442[[#This Row],[VALOR CANCELADO]] -> 0 | K156: PROFE WILLIAM COLA
A157: 2025-07-01 | B157: DRAGON LEE GYM | C157: 1 | D157: $ 8.00 | E157: =C157*Tabla1442[[#This Row],[PRECIO UNITARIO]] -> $ 8.00 | F157: 0 | G157: $ 8.00 | H157: $ 8.00 | I157: CANCELADO | J157: =Tabla1442[[#This Row],[VALOR A PAGAR]]-Tabla1442[[#This Row],[VALOR CANCELADO]] -> 0 | K157: CANCELA CON 4 CERTIFICADOS DE ASCENSO
A158: 2025-07-01 | B158: PVM - ROJAS IAN IRON FIST | C158: 1 | D158: $ 8.00 | E158: =C158*Tabla1442[[#This Row],[PRECIO UNITARIO]] -> $ 8.00 | F158: 0 | G158: $ 8.00 | H158: $ 8.00 | I158: CANCELADO | J158: =Tabla1442[[#This Row],[VALOR A PAGAR]]-Tabla1442[[#This Row],[VALOR CANCELADO]] -> 0
A159: 2025-07-02 | B159: TAE SHO KU | C159: 2 | D159: $ 6.00 | E159: =C159*Tabla1442[[#This Row],[PRECIO UNITARIO]] -> $ 12.00 | F159: 0 | G159: $ 12.00 | H159: $ 12.00 | I159: CANCELADO | J159: =Tabla1442[[#This Row],[VALOR A PAGAR]]-Tabla1442[[#This Row],[VALOR CANCELADO]] -> 0 | K159: CANCELA CON 4 CERTIFICADOS DE ASCENSO
A160: 2025-07-03 | B160: LEÓN | C160: 1 | D160: $ 8.00 | E160: =C160*Tabla1442[[#This Row],[PRECIO UNITARIO]] -> $ 8.00 | F160: 0 | G160: $ 8.00 | H160: $ 8.00 | I160: CANCELADO | J160: =Tabla1442[[#This Row],[VALOR A PAGAR]]-Tabla1442[[#This Row],[VALOR CANCELADO]] -> 0 | K160: CANCELA CON SALDO PENDIENTE DEL TRÁMITE DEL 27-06-2025
A161: 2025-07-07 | B161: MSA GRAND MASTER | C161: 7 | D161: $ 6.00 | E161: =C161*Tabla1442[[#This Row],[PRECIO UNITARIO]] -> $ 42.00 | F161: $ 6.00 | G161: $ 36.00 | H161: $ 42.00 | I161: CANCELADO | J161: =Tabla1442[[#This Row],[VALOR A PAGAR]]-Tabla1442[[#This Row],[VALOR CANCELADO]] -> 0 | K161: CANCELA CON 19 CERTIFICADOS DE ASCENSO
A162: 2025-07-07 | B162: ASOTKD - P (CHIMBACALLE) | C162: 1 | D162: $ 8.00 | E162: =C162*Tabla1442[[#This Row],[PRECIO UNITARIO]] -> $ 8.00 | F162: $ 8.00 | G162: 0 | H162: $ 8.00 | I162: CANCELADO | J162: =Tabla1442[[#This Row],[VALOR A PAGAR]]-Tabla1442[[#This Row],[VALOR CANCELADO]] -> 0 | K162: CANCELACON REIMPRESIÓN DE 1 DIPLOMA
A163: 2025-07-09 | B163: CHEN HUU | C163: 3 | D163: $ 2.00 | E163: =C163*Tabla1442[[#This Row],[PRECIO UNITARIO]] -> $ 6.00 | F163: 0 | G163: $ 6.00 | H163: $ 6.00 | I163: CANCELADO | J163: =Tabla1442[[#This Row],[VALOR A PAGAR]]-Tabla1442[[#This Row],[VALOR CANCELADO]] -> 0 | K163: CANCELA PARA TRÁMITE DE CERTIFICADOS
A164: 2025-07-10 | B164: SOCIEDAD DEPORTIVA CENTRAL | C164: 1 | D164: $ 6.00 | E164: =C164*Tabla1442[[#This Row],[PRECIO UNITARIO]] -> $ 6.00 | F164: $ 6.00 | G164: 0 | H164: $ 6.00 | I164: CANCELADO | J164: =Tabla1442[[#This Row],[VALOR A PAGAR]]-Tabla1442[[#This Row],[VALOR CANCELADO]] -> 0 | K164: PARA TRÁMITE DE CERTFICADO CON FECHA 27-04-2024
A165: 2025-07-10 | B165: FIRST CLASS | C165: 2 | D165: $ 8.00 | E165: =C165*Tabla1442[[#This Row],[PRECIO UNITARIO]] -> $ 16.00 | F165: 0 | G165: $ 16.00 | H165: $ 16.00 | I165: CANCELADO | J165: =Tabla1442[[#This Row],[VALOR A PAGAR]]-Tabla1442[[#This Row],[VALOR CANCELADO]] -> 0 | K165: PENDIENTE DATOS PARA TRÁMITE
A166: 2025-07-11 | B166: ASOTKD - P (CHIMBACALLE) | C166: 1 | D166: $ 8.00 | E166: =C166*Tabla1442[[#This Row],[PRECIO UNITARIO]] -> $ 8.00 | F166: 0 | G166: $ 8.00 | H166: $ 8.00 | I166: CANCELADO | J166: =Tabla1442[[#This Row],[VALOR A PAGAR]]-Tabla1442[[#This Row],[VALOR CANCELADO]] -> 0
A167: 2025-07-11 | B167: BORJA'S LIONS | C167: 4 | D167: $ 8.00 | E167: =C167*Tabla1442[[#This Row],[PRECIO UNITARIO]] -> $ 32.00 | F167: 0 | G167: $ 32.00 | H167: $ 32.00 | I167: CANCELADO | J167: =Tabla1442[[#This Row],[VALOR A PAGAR]]-Tabla1442[[#This Row],[VALOR CANCELADO]] -> 0 | K167: CANCELA CON 21 CERTIFICADOS DE ASCENSO
A168: 2025-07-16 | B168: BAEKJUL TEAM AYALAZ | C168: 7 | D168: $ 8.00 | E168: =C168*Tabla1442[[#This Row],[PRECIO UNITARIO]] -> $ 56.00 | F168: 0 | G168: $ 56.00 | H168: $ 56.00 | I168: CANCELADO | J168: =Tabla1442[[#This Row],[VALOR A PAGAR]]-Tabla1442[[#This Row],[VALOR CANCELADO]] -> 0
A169: 2025-07-17 | B169: BAEKJUL TEAM FERNÁNDEZ | C169: 2 | D169: $ 8.00 | E169: =C169*Tabla1442[[#This Row],[PRECIO UNITARIO]] -> $ 16.00 | F169: 0 | G169: $ 16.00 | H169: $ 16.00 | I169: CANCELADO | J169: =Tabla1442[[#This Row],[VALOR A PAGAR]]-Tabla1442[[#This Row],[VALOR CANCELADO]] -> 0 | K169: CANCELA PARA TRÁMITE DE CERTIFICADOS
A170: 2025-07-17 | B170: FARANG | C170: 1 | D170: $ 8.00 | E170: =C170*Tabla1442[[#This Row],[PRECIO UNITARIO]] -> $ 8.00 | F170: 0 | G170: $ 8.00 | H170: $ 8.00 | I170: CANCELADO | J170: =Tabla1442[[#This Row],[VALOR A PAGAR]]-Tabla1442[[#This Row],[VALOR CANCELADO]] -> 0 | K170: CANCELA CON 8 CERTIFICADOS DE ASCENSO
A171: 2025-07-23 | B171: KO AMÉRICA | C171: 2 | D171: $ 6.00 | E171: =C171*Tabla1442[[#This Row],[PRECIO UNITARIO]] -> $ 12.00 | F171: 0 | G171: $ 12.00 | H171: $ 12.00 | I171: CANCELADO | J171: =Tabla1442[[#This Row],[VALOR A PAGAR]]-Tabla1442[[#This Row],[VALOR CANCELADO]] -> 0 | K171: CANCELA PARA TRÁMITE DE CERTIFICADOS
A172: 2025-07-28 | B172: KO AMÉRICA | C172: 7 | D172: $ 6.00 | E172: =C172*Tabla1442[[#This Row],[PRECIO UNITARIO]] -> $ 42.00 | F172: 0 | G172: $ 42.00 | H172: $ 42.00 | I172: CANCELADO | J172: =Tabla1442[[#This Row],[VALOR A PAGAR]]-Tabla1442[[#This Row],[VALOR CANCELADO]] -> 0 | K172: CANCELA PARA TRÁMITE DE CERTIFICADOS
A173: 2025-07-28 | B173: DEBAK TKD | C173: 5 | D173: $ 8.00 | E173: =C173*Tabla1442[[#This Row],[PRECIO UNITARIO]] -> $ 40.00 | F173: 0 | G173: $ 40.00 | H173: $ 40.00 | I173: CANCELADO | J173: =Tabla1442[[#This Row],[VALOR A PAGAR]]-Tabla1442[[#This Row],[VALOR CANCELADO]] -> 0
A174: 2025-07-28 | B174: DEBAK TKD | C174: 1 | D174: $ 2.00 | E174: =C174*Tabla1442[[#This Row],[PRECIO UNITARIO]] -> $ 2.00 | F174: 0 | G174: $ 2.00 | H174: $ 2.00 | I174: CANCELADO | J174: =Tabla1442[[#This Row],[VALOR A PAGAR]]-Tabla1442[[#This Row],[VALOR CANCELADO]] -> 0
A175: 2025-07-28 | B175: TAEBAEK ECUADOR | C175: 1 | D175: $ 8.00 | E175: =C175*Tabla1442[[#This Row],[PRECIO UNITARIO]] -> $ 8.00 | F175: 0 | G175: $ 8.00 | H175: $ 8.00 | I175: CANCELADO | J175: =Tabla1442[[#This Row],[VALOR A PAGAR]]-Tabla1442[[#This Row],[VALOR CANCELADO]] -> 0
A176: 2025-07-29 | B176: MARCIAL GRANDA | C176: 1 | D176: $ 6.00 | E176: =C176*Tabla1442[[#This Row],[PRECIO UNITARIO]] -> $ 6.00 | F176: 0 | G176: $ 6.00 | H176: $ 6.00 | I176: CANCELADO | J176: =Tabla1442[[#This Row],[VALOR A PAGAR]]-Tabla1442[[#This Row],[VALOR CANCELADO]] -> 0
A177: 2025-07-30 | B177: MARCIAL GRANDA | C177: 1 | D177: $ 6.00 | E177: =C177*Tabla1442[[#This Row],[PRECIO UNITARIO]] -> $ 6.00 | F177: 0 | G177: $ 6.00 | H177: $ 6.00 | I177: CANCELADO | J177: =Tabla1442[[#This Row],[VALOR A PAGAR]]-Tabla1442[[#This Row],[VALOR CANCELADO]] -> 0
A178: 2025-07-30 | B178: KUKKIWON | C178: 1 | D178: $ 8.00 | E178: =C178*Tabla1442[[#This Row],[PRECIO UNITARIO]] -> $ 8.00 | F178: 0 | G178: $ 8.00 | H178: $ 8.00 | I178: CANCELADO | J178: =Tabla1442[[#This Row],[VALOR A PAGAR]]-Tabla1442[[#This Row],[VALOR CANCELADO]] -> 0 | K178: CANCELA CON 9 CERTIFICADOS DE ASCENSO
A179: 2025-07-31 | B179: TAE SHO KU | C179: 1 | D179: $ 2.00 | E179: =C179*Tabla1442[[#This Row],[PRECIO UNITARIO]] -> $ 2.00 | F179: 0 | G179: $ 2.00 | H179: $ 2.00 | I179: CANCELADO | J179: =Tabla1442[[#This Row],[VALOR A PAGAR]]-Tabla1442[[#This Row],[VALOR CANCELADO]] -> 0 | K179: SOLO IMPRESIÓN DEL GAL
A180: 2025-07-31 | B180: ESPE | C180: 1 | D180: $ 6.00 | E180: =C180*Tabla1442[[#This Row],[PRECIO UNITARIO]] -> $ 6.00 | F180: 0 | G180: $ 6.00 | H180: $ 6.00 | I180: CANCELADO | J180: =Tabla1442[[#This Row],[VALOR A PAGAR]]-Tabla1442[[#This Row],[VALOR CANCELADO]] -> 0
A181: 2025-07-31 | B181: ESPE | C181: 1 | D181: $ 8.00 | E181: =C181*Tabla1442[[#This Row],[PRECIO UNITARIO]] -> $ 8.00 | F181: 0 | G181: $ 8.00 | H181: $ 8.00 | I181: CANCELADO | J181: =Tabla1442[[#This Row],[VALOR A PAGAR]]-Tabla1442[[#This Row],[VALOR CANCELADO]] -> 0
A182: 2025-07-31 | B182: BAS PANTHERS | C182: 7 | D182: $ 8.00 | E182: =C182*Tabla1442[[#This Row],[PRECIO UNITARIO]] -> $ 56.00 | F182: 0 | G182: $ 56.00 | H182: $ 56.00 | I182: CANCELADO | J182: =Tabla1442[[#This Row],[VALOR A PAGAR]]-Tabla1442[[#This Row],[VALOR CANCELADO]] -> 0 | K182: CANCELA CON 22 CERTIFICADOS DE ASCENSO
A183: 2025-08-03 | B183: UNIVERSIDAD SAN FRANCISCO DE QUITO | C183: 2 | D183: $ 6.00 | E183: =C183*Tabla1442[[#This Row],[PRECIO UNITARIO]] -> $ 12.00 | F183: 0 | G183: $ 12.00 | H183: $ 12.00 | I183: CANCELADO | J183: =Tabla1442[[#This Row],[VALOR A PAGAR]]-Tabla1442[[#This Row],[VALOR CANCELADO]] -> 0 | K183: EN DOS PAGOS
A184: 2025-08-05 | B184: SEUL CHUNG UI | C184: 10 | D184: $ 8.00 | E184: =C184*Tabla1442[[#This Row],[PRECIO UNITARIO]] -> $ 80.00 | F184: 0 | G184: $ 80.00 | H184: $ 80.00 | I184: CANCELADO | J184: =Tabla1442[[#This Row],[VALOR A PAGAR]]-Tabla1442[[#This Row],[VALOR CANCELADO]] -> 0 | K184: PARA TRÁMITE DE CERTIFICADOS
A185: 2025-08-06 | B185: SEUL CAPELO | C185: 7 | D185: $ 6.00 | E185: =C185*Tabla1442[[#This Row],[PRECIO UNITARIO]] -> $ 42.00 | F185: 0 | G185: $ 42.00 | H185: $ 42.00 | I185: CANCELADO | J185: =Tabla1442[[#This Row],[VALOR A PAGAR]]-Tabla1442[[#This Row],[VALOR CANCELADO]] -> 0 | K185: PARA TRÁMITE DE CERTIFICADOS
A186: 2025-08-07 | B186: KORYO | C186: 1 | D186: $ 8.00 | E186: =C186*Tabla1442[[#This Row],[PRECIO UNITARIO]] -> $ 8.00 | F186: 0 | G186: $ 8.00 | H186: $ 8.00 | I186: CANCELADO | J186: =Tabla1442[[#This Row],[VALOR A PAGAR]]-Tabla1442[[#This Row],[VALOR CANCELADO]] -> 0 | K186: CANCELA CON 1 CERTIFICADO DE ASCENSO
A187: 2025-08-07 | B187: SOCIEDAD DEPORTIVA CENTRAL | C187: 6 | D187: $ 6.00 | E187: =C187*Tabla1442[[#This Row],[PRECIO UNITARIO]] -> $ 36.00 | F187: $ 36.00 | G187: 0 | H187: $ 36.00 | I187: CANCELADO | J187: =Tabla1442[[#This Row],[VALOR A PAGAR]]-Tabla1442[[#This Row],[VALOR CANCELADO]] -> 0
A188: 2025-08-07 | B188: YONG TIGER | C188: 1 | D188: $ 6.00 | E188: =C188*Tabla1442[[#This Row],[PRECIO UNITARIO]] -> $ 6.00 | F188: 0 | G188: $ 6.00 | H188: $ 6.00 | I188: CANCELADO | J188: =Tabla1442[[#This Row],[VALOR A PAGAR]]-Tabla1442[[#This Row],[VALOR CANCELADO]] -> 0 | K188: PAGO REALIZADO EL 03-07-2025 CANCELA PARA REIMPRESIÓN DE CERTIFICADO DEL 15-12-2018
A189: 2025-08-08 | B189: LOS PUMAS | C189: 2 | D189: $ 6.00 | E189: =C189*Tabla1442[[#This Row],[PRECIO UNITARIO]] -> $ 12.00 | F189: 0 | G189: $ 12.00 | H189: $ 12.00 | I189: CANCELADO | J189: =Tabla1442[[#This Row],[VALOR A PAGAR]]-Tabla1442[[#This Row],[VALOR CANCELADO]] -> 0
A190: 2025-08-08 | B190: FIRST CLASS | C190: 1 | D190: $ 8.00 | E190: =C190*Tabla1442[[#This Row],[PRECIO UNITARIO]] -> $ 8.00 | F190: 0 | G190: $ 8.00 | H190: $ 8.00 | I190: CANCELADO | J190: =Tabla1442[[#This Row],[VALOR A PAGAR]]-Tabla1442[[#This Row],[VALOR CANCELADO]] -> 0 | K190: CANCELA CON 1 CERTIFICADO DE ASCENSO NO ENVÍA DATOS PARA TRAMITAR
A191: 2025-08-08 | B191: TAE KING'S | C191: 2 | D191: $ 6.00 | E191: =C191*Tabla1442[[#This Row],[PRECIO UNITARIO]] -> $ 12.00 | F191: 0 | G191: $ 12.00 | H191: $ 12.00 | I191: CANCELADO | J191: =Tabla1442[[#This Row],[VALOR A PAGAR]]-Tabla1442[[#This Row],[VALOR CANCELADO]] -> 0 | K191: CANCELA CON 2 CERTIFICADOS DE ASCENSO
A192: 2025-08-12 | B192: BAS PANTHERS | C192: 1 | D192: $ 2.00 | E192: =C192*Tabla1442[[#This Row],[PRECIO UNITARIO]] -> $ 2.00 | F192: 0 | G192: $ 2.00 | H192: $ 2.00 | I192: CANCELADO | J192: =Tabla1442[[#This Row],[VALOR A PAGAR]]-Tabla1442[[#This Row],[VALOR CANCELADO]] -> 0 | K192: REIMPRESIÓN
A193: 2025-08-12 | B193: BORJA'S LIONS | C193: 1 | D193: $ 8.00 | E193: =C193*Tabla1442[[#This Row],[PRECIO UNITARIO]] -> $ 8.00 | F193: 0 | G193: $ 8.00 | H193: $ 8.00 | I193: CANCELADO | J193: =Tabla1442[[#This Row],[VALOR A PAGAR]]-Tabla1442[[#This Row],[VALOR CANCELADO]] -> 0
A194: 2025-08-12 | B194: BORJA'S LIONS | C194: 1 | D194: $ 2.00 | E194: =C194*Tabla1442[[#This Row],[PRECIO UNITARIO]] -> $ 2.00 | F194: 0 | G194: $ 2.00 | H194: $ 2.00 | I194: CANCELADO | J194: =Tabla1442[[#This Row],[VALOR A PAGAR]]-Tabla1442[[#This Row],[VALOR CANCELADO]] -> 0
A195: 2025-08-14 | B195: MICHAYDO | C195: 9 | D195: $ 8.00 | E195: =C195*Tabla1442[[#This Row],[PRECIO UNITARIO]] -> $ 72.00 | F195: 0 | G195: $ 72.00 | H195: $ 72.00 | I195: CANCELADO | J195: =Tabla1442[[#This Row],[VALOR A PAGAR]]-Tabla1442[[#This Row],[VALOR CANCELADO]] -> 0 | K195: PARA TRÁMITE DE CERTIFICADOS 07-08-2025
A196: 2025-08-18 | B196: MIKIDO | C196: 5 | D196: $ 8.00 | E196: =C196*Tabla1442[[#This Row],[PRECIO UNITARIO]] -> $ 40.00 | F196: 0 | G196: $ 40.00 | H196: =F196+G196 -> $ 40.00 | I196: =IF((E196=H196),"CANCELADO","SALDO PENDIENTE") -> CANCELADO | J196: =Tabla1442[[#This Row],[VALOR A PAGAR]]-Tabla1442[[#This Row],[VALOR CANCELADO]] -> 0 | K196: CANCELA CON 14 CERTIFICADOS DE ASCENSO
A197: 2025-08-18 | B197: ARES | C197: 12 | D197: $ 8.00 | E197: =C197*Tabla1442[[#This Row],[PRECIO UNITARIO]] -> $ 96.00 | F197: 0 | G197: $ 96.00 | H197: $ 96.00 | I197: CANCELADO | J197: =Tabla1442[[#This Row],[VALOR A PAGAR]]-Tabla1442[[#This Row],[VALOR CANCELADO]] -> 0
A198: 2025-08-19 | B198: DRACO | C198: 9 | D198: $ 6.00 | E198: =C198*Tabla1442[[#This Row],[PRECIO UNITARIO]] -> $ 54.00 | F198: 0 | G198: $ 54.00 | H198: $ 54.00 | I198: CANCELADO | J198: =Tabla1442[[#This Row],[VALOR A PAGAR]]-Tabla1442[[#This Row],[VALOR CANCELADO]] -> 0
A199: 2025-08-19 | B199: DRACO | C199: 2 | D199: $ 2.00 | E199: =C199*Tabla1442[[#This Row],[PRECIO UNITARIO]] -> $ 4.00 | F199: 0 | G199: $ 4.00 | H199: $ 4.00 | I199: CANCELADO | J199: =Tabla1442[[#This Row],[VALOR A PAGAR]]-Tabla1442[[#This Row],[VALOR CANCELADO]] -> 0
A200: 2025-08-21 | B200: BORJA'S LIONS | C200: 4 | D200: $ 8.00 | E200: =C200*Tabla1442[[#This Row],[PRECIO UNITARIO]] -> $ 32.00 | F200: 0 | G200: $ 32.00 | H200: $ 32.00 | I200: CANCELADO | J200: =Tabla1442[[#This Row],[VALOR A PAGAR]]-Tabla1442[[#This Row],[VALOR CANCELADO]] -> 0 | K200: CANCELA CON 4 CERTIFICADOS DE ASCENSO
A201: 2025-08-25 | B201: BAEKJUL | C201: 4 | D201: $ 8.00 | E201: =C201*Tabla1442[[#This Row],[PRECIO UNITARIO]] -> $ 32.00 | F201: 0 | G201: $ 32.00 | H201: $ 32.00 | I201: CANCELADO | J201: =Tabla1442[[#This Row],[VALOR A PAGAR]]-Tabla1442[[#This Row],[VALOR CANCELADO]] -> 0 | K201: CANCELA CON 40 CERTIFICADOS DE ASCENSO
... 20 more rows

Sheet CERTIFICADOS DE ASCENSO 2025
A1: CERTIFICADOS DE ASCENSO (16 DE MARZO 2025 AL 05 SEPTIEMBRE 2025)
A3: FECHA | B3: CLUB | C3: CANT. | D3: PRECIO UNITARIO | E3: VALOR A PAGAR | F3: EFECTIVO | G3: TRANSFERENCIA | H3: VALOR CANCELADO | I3: ESTADO | J3: SALDO | K3: OBSERVACIONES
A4: 2025-03-19 | B4: HANSU | C4: 143 | D4: $ 2.50 | E4: =Tabla1425[[#This Row],[CANT.]]*Tabla1425[[#This Row],[PRECIO UNITARIO]] -> $357.50 | F4: $ 357.50 | G4: 0 | H4: =Tabla1425[[#This Row],[EFECTIVO]]+Tabla1425[[#This Row],[TRANSFERENCIA]] -> $ 357.50 | I4: =IF((E4=H4),"CANCELADO","SALDO PENDIENTE") -> CANCELADO | J4: =Tabla1425[[#This Row],[VALOR A PAGAR]]-Tabla1425[[#This Row],[VALOR CANCELADO]] -> 0
A5: 2025-03-20 | B5: UTE | C5: 11 | D5: $ 2.50 | E5: =Tabla1425[[#This Row],[CANT.]]*Tabla1425[[#This Row],[PRECIO UNITARIO]] -> $27.50 | F5: 0 | G5: $ 27.50 | H5: =Tabla1425[[#This Row],[EFECTIVO]]+Tabla1425[[#This Row],[TRANSFERENCIA]] -> $ 27.50 | I5: CANCELADO | J5: =Tabla1425[[#This Row],[VALOR A PAGAR]]-Tabla1425[[#This Row],[VALOR CANCELADO]] -> 0
A6: 2025-03-20 | B6: UNIVERSIDAD UTE | C6: 11 | D6: $ 2.50 | E6: =Tabla1425[[#This Row],[CANT.]]*Tabla1425[[#This Row],[PRECIO UNITARIO]] -> $27.50 | F6: 0 | G6: $ 27.50 | H6: =Tabla1425[[#This Row],[EFECTIVO]]+Tabla1425[[#This Row],[TRANSFERENCIA]] -> $ 27.50 | I6: CANCELADO | J6: =Tabla1425[[#This Row],[VALOR A PAGAR]]-Tabla1425[[#This Row],[VALOR CANCELADO]] -> 0
A7: 2025-03-20 | B7: KORYO | C7: 1 | D7: $ 2.50 | E7: =Tabla1425[[#This Row],[CANT.]]*Tabla1425[[#This Row],[PRECIO UNITARIO]] -> $2.50 | F7: 0 | G7: $ 2.50 | H7: =Tabla1425[[#This Row],[EFECTIVO]]+Tabla1425[[#This Row],[TRANSFERENCIA]] -> $ 2.50 | I7: CANCELADO | J7: =Tabla1425[[#This Row],[VALOR A PAGAR]]-Tabla1425[[#This Row],[VALOR CANCELADO]] -> 0
A8: 2025-03-21 | B8: GOYANG - IDEUL | C8: 1 | D8: $ 2.50 | E8: =Tabla1425[[#This Row],[CANT.]]*Tabla1425[[#This Row],[PRECIO UNITARIO]] -> $2.50 | F8: 0 | G8: $ 2.50 | H8: =Tabla1425[[#This Row],[EFECTIVO]]+Tabla1425[[#This Row],[TRANSFERENCIA]] -> $ 2.50 | I8: CANCELADO | J8: =Tabla1425[[#This Row],[VALOR A PAGAR]]-Tabla1425[[#This Row],[VALOR CANCELADO]] -> 0
A9: 2025-03-21 | B9: CIUDAD DE QUITO | C9: 13 | D9: $ 2.50 | E9: =Tabla1425[[#This Row],[CANT.]]*Tabla1425[[#This Row],[PRECIO UNITARIO]] -> $32.50 | F9: 0 | G9: $ 32.50 | H9: =Tabla1425[[#This Row],[EFECTIVO]]+Tabla1425[[#This Row],[TRANSFERENCIA]] -> $ 32.50 | I9: CANCELADO | J9: =Tabla1425[[#This Row],[VALOR A PAGAR]]-Tabla1425[[#This Row],[VALOR CANCELADO]] -> 0
A10: 2025-03-21 | B10: DRAGON GYM | C10: 34 | D10: $ 2.50 | E10: =Tabla1425[[#This Row],[CANT.]]*Tabla1425[[#This Row],[PRECIO UNITARIO]] -> $85.00 | F10: 0 | G10: $ 85.00 | H10: =Tabla1425[[#This Row],[EFECTIVO]]+Tabla1425[[#This Row],[TRANSFERENCIA]] -> $ 85.00 | I10: CANCELADO | J10: =Tabla1425[[#This Row],[VALOR A PAGAR]]-Tabla1425[[#This Row],[VALOR CANCELADO]] -> 0 | K10: CANCELA CON 2 GAL'S IMPRESOS
A11: 2025-03-24 | B11: EQUILIBRIO | C11: 14 | D11: $ 2.50 | E11: =Tabla1425[[#This Row],[CANT.]]*Tabla1425[[#This Row],[PRECIO UNITARIO]] -> $35.00 | F11: 0 | G11: $ 35.00 | H11: =Tabla1425[[#This Row],[EFECTIVO]]+Tabla1425[[#This Row],[TRANSFERENCIA]] -> $ 35.00 | I11: CANCELADO | J11: =Tabla1425[[#This Row],[VALOR A PAGAR]]-Tabla1425[[#This Row],[VALOR CANCELADO]] -> 0 | K11: CANCELA CON 4 GAL'S IMPRESOS
A12: 2025-03-27 | B12: BAEKJUL TEAM AYALAZ | C12: 3 | D12: $ 2.50 | E12: =Tabla1425[[#This Row],[CANT.]]*Tabla1425[[#This Row],[PRECIO UNITARIO]] -> $7.50 | F12: 0 | G12: $ 7.50 | H12: =Tabla1425[[#This Row],[EFECTIVO]]+Tabla1425[[#This Row],[TRANSFERENCIA]] -> $ 7.50 | I12: CANCELADO | J12: =Tabla1425[[#This Row],[VALOR A PAGAR]]-Tabla1425[[#This Row],[VALOR CANCELADO]] -> 0
A13: 2025-03-31 | B13: MIKIDO | C13: 18 | D13: $ 2.50 | E13: =Tabla1425[[#This Row],[CANT.]]*Tabla1425[[#This Row],[PRECIO UNITARIO]] -> $45.00 | F13: 0 | G13: $ 45.00 | H13: =Tabla1425[[#This Row],[EFECTIVO]]+Tabla1425[[#This Row],[TRANSFERENCIA]] -> $ 45.00 | I13: CANCELADO | J13: =Tabla1425[[#This Row],[VALOR A PAGAR]]-Tabla1425[[#This Row],[VALOR CANCELADO]] -> 0
A14: 2025-03-31 | B14: ARES | C14: 1 | D14: $ 2.50 | E14: =Tabla1425[[#This Row],[CANT.]]*Tabla1425[[#This Row],[PRECIO UNITARIO]] -> $2.50 | F14: 0 | G14: $ 2.50 | H14: =Tabla1425[[#This Row],[EFECTIVO]]+Tabla1425[[#This Row],[TRANSFERENCIA]] -> $ 2.50 | I14: CANCELADO | J14: =Tabla1425[[#This Row],[VALOR A PAGAR]]-Tabla1425[[#This Row],[VALOR CANCELADO]] -> 0
A15: 2025-03-31 | B15: CHUNG SONG | C15: 3 | D15: $ 2.50 | E15: =Tabla1425[[#This Row],[CANT.]]*Tabla1425[[#This Row],[PRECIO UNITARIO]] -> $7.50 | F15: 0 | G15: $ 7.50 | H15: =Tabla1425[[#This Row],[EFECTIVO]]+Tabla1425[[#This Row],[TRANSFERENCIA]] -> $ 7.50 | I15: CANCELADO | J15: =Tabla1425[[#This Row],[VALOR A PAGAR]]-Tabla1425[[#This Row],[VALOR CANCELADO]] -> 0
A16: 2025-03-31 | B16: KUMGANG DUL | C16: 26 | D16: $ 2.50 | E16: =Tabla1425[[#This Row],[CANT.]]*Tabla1425[[#This Row],[PRECIO UNITARIO]] -> $65.00 | F16: 0 | G16: $ 65.00 | H16: =Tabla1425[[#This Row],[EFECTIVO]]+Tabla1425[[#This Row],[TRANSFERENCIA]] -> $ 65.00 | I16: CANCELADO | J16: =Tabla1425[[#This Row],[VALOR A PAGAR]]-Tabla1425[[#This Row],[VALOR CANCELADO]] -> 0
A17: 2025-04-01 | B17: ECUADOR | C17: 20 | D17: $ 2.50 | E17: =Tabla1425[[#This Row],[CANT.]]*Tabla1425[[#This Row],[PRECIO UNITARIO]] -> $50.00 | F17: 0 | G17: $ 50.00 | H17: =Tabla1425[[#This Row],[EFECTIVO]]+Tabla1425[[#This Row],[TRANSFERENCIA]] -> $ 50.00 | I17: CANCELADO | J17: =Tabla1425[[#This Row],[VALOR A PAGAR]]-Tabla1425[[#This Row],[VALOR CANCELADO]] -> 0 | K17: CANCELA CON 2 GAL'S DIGITALES
A18: 2025-04-04 | B18: FITTKWONDO MEJÍA | C18: 2 | D18: $ 2.50 | E18: =Tabla1425[[#This Row],[CANT.]]*Tabla1425[[#This Row],[PRECIO UNITARIO]] -> $5.00 | F18: 0 | G18: $ 5.00 | H18: =Tabla1425[[#This Row],[EFECTIVO]]+Tabla1425[[#This Row],[TRANSFERENCIA]] -> $ 5.00 | I18: CANCELADO | J18: =Tabla1425[[#This Row],[VALOR A PAGAR]]-Tabla1425[[#This Row],[VALOR CANCELADO]] -> 0
A19: 2025-04-04 | B19: BORJA'S LIONS | C19: 25 | D19: $ 2.50 | E19: =Tabla1425[[#This Row],[CANT.]]*Tabla1425[[#This Row],[PRECIO UNITARIO]] -> $62.50 | F19: 0 | G19: $ 62.50 | H19: =Tabla1425[[#This Row],[EFECTIVO]]+Tabla1425[[#This Row],[TRANSFERENCIA]] -> $ 62.50 | I19: CANCELADO | J19: =Tabla1425[[#This Row],[VALOR A PAGAR]]-Tabla1425[[#This Row],[VALOR CANCELADO]] -> 0 | K19: CANCELA CON 25 GAL'S DIGITALES
A20: 2025-04-07 | B20: SEUL | C20: 1 | D20: $ 2.50 | E20: =Tabla1425[[#This Row],[CANT.]]*Tabla1425[[#This Row],[PRECIO UNITARIO]] -> $2.50 | F20: $ 2.50 | G20: 0 | H20: =Tabla1425[[#This Row],[EFECTIVO]]+Tabla1425[[#This Row],[TRANSFERENCIA]] -> $ 2.50 | I20: CANCELADO | J20: =Tabla1425[[#This Row],[VALOR A PAGAR]]-Tabla1425[[#This Row],[VALOR CANCELADO]] -> 0
A21: 2025-04-07 | B21: ASOTKD - P (VICENTINA) | C21: 2 | D21: $ 2.50 | E21: =Tabla1425[[#This Row],[CANT.]]*Tabla1425[[#This Row],[PRECIO UNITARIO]] -> $5.00 | F21: $ 5.00 | G21: 0 | H21: =Tabla1425[[#This Row],[EFECTIVO]]+Tabla1425[[#This Row],[TRANSFERENCIA]] -> $ 5.00 | I21: CANCELADO | J21: =Tabla1425[[#This Row],[VALOR A PAGAR]]-Tabla1425[[#This Row],[VALOR CANCELADO]] -> 0
A22: 2025-04-08 | B22: TAE WOONG | C22: 2 | D22: $ 2.50 | E22: =Tabla1425[[#This Row],[CANT.]]*Tabla1425[[#This Row],[PRECIO UNITARIO]] -> $5.00 | F22: 0 | G22: $ 5.00 | H22: =Tabla1425[[#This Row],[EFECTIVO]]+Tabla1425[[#This Row],[TRANSFERENCIA]] -> $ 5.00 | I22: CANCELADO | J22: =Tabla1425[[#This Row],[VALOR A PAGAR]]-Tabla1425[[#This Row],[VALOR CANCELADO]] -> 0 | K22: CANCELA CON 10 GAL'S IMPRESOS Y 1 SOLO IMPRESIÓN
A23: 2025-04-09 | B23: CAMU | C23: 20 | D23: $ 2.50 | E23: =Tabla1425[[#This Row],[CANT.]]*Tabla1425[[#This Row],[PRECIO UNITARIO]] -> $50.00 | F23: 0 | G23: $ 50.00 | H23: =Tabla1425[[#This Row],[EFECTIVO]]+Tabla1425[[#This Row],[TRANSFERENCIA]] -> $ 50.00 | I23: CANCELADO | J23: =Tabla1425[[#This Row],[VALOR A PAGAR]]-Tabla1425[[#This Row],[VALOR CANCELADO]] -> 0 | K23: CANCELA CON 12 GAL'S IMPRESOS
A24: 2025-04-14 | B24: KUKKIWON | C24: 8 | D24: $ 2.50 | E24: =Tabla1425[[#This Row],[CANT.]]*Tabla1425[[#This Row],[PRECIO UNITARIO]] -> $20.00 | F24: 0 | G24: $ 20.00 | H24: =Tabla1425[[#This Row],[EFECTIVO]]+Tabla1425[[#This Row],[TRANSFERENCIA]] -> $ 20.00 | I24: CANCELADO | J24: =Tabla1425[[#This Row],[VALOR A PAGAR]]-Tabla1425[[#This Row],[VALOR CANCELADO]] -> 0
A25: 2025-04-16 | B25: ASOTKD - P CHIMBACALLE | C25: 2 | D25: $ 2.50 | E25: =Tabla1425[[#This Row],[CANT.]]*Tabla1425[[#This Row],[PRECIO UNITARIO]] -> $5.00 | F25: $ 5.00 | G25: 0 | H25: =Tabla1425[[#This Row],[EFECTIVO]]+Tabla1425[[#This Row],[TRANSFERENCIA]] -> $ 5.00 | I25: CANCELADO | J25: =Tabla1425[[#This Row],[VALOR A PAGAR]]-Tabla1425[[#This Row],[VALOR CANCELADO]] -> 0
A26: 2025-04-21 | B26: MICHAY DO | C26: 2 | D26: $ 2.50 | E26: =Tabla1425[[#This Row],[CANT.]]*Tabla1425[[#This Row],[PRECIO UNITARIO]] -> $5.00 | F26: 0 | G26: $ 5.00 | H26: =Tabla1425[[#This Row],[EFECTIVO]]+Tabla1425[[#This Row],[TRANSFERENCIA]] -> $ 5.00 | I26: CANCELADO | J26: =Tabla1425[[#This Row],[VALOR A PAGAR]]-Tabla1425[[#This Row],[VALOR CANCELADO]] -> 0 | K26: CANCELA CON 1 GAL IMPRESO
A27: 2025-04-22 | B27: CHUNG SONG | C27: 34 | D27: $ 2.50 | E27: =Tabla1425[[#This Row],[CANT.]]*Tabla1425[[#This Row],[PRECIO UNITARIO]] -> $85.00 | F27: 0 | G27: $ 85.00 | H27: =Tabla1425[[#This Row],[EFECTIVO]]+Tabla1425[[#This Row],[TRANSFERENCIA]] -> $ 85.00 | I27: CANCELADO | J27: =Tabla1425[[#This Row],[VALOR A PAGAR]]-Tabla1425[[#This Row],[VALOR CANCELADO]] -> 0 | K27: CANCELA CON 2 GAL DIGITAL
A28: 2025-04-22 | B28: ARES | C28: 24 | D28: $ 2.50 | E28: =Tabla1425[[#This Row],[CANT.]]*Tabla1425[[#This Row],[PRECIO UNITARIO]] -> $60.00 | F28: $ 60.00 | G28: 0 | H28: =Tabla1425[[#This Row],[EFECTIVO]]+Tabla1425[[#This Row],[TRANSFERENCIA]] -> $ 60.00 | I28: CANCELADO | J28: =Tabla1425[[#This Row],[VALOR A PAGAR]]-Tabla1425[[#This Row],[VALOR CANCELADO]] -> 0
A29: 2025-04-22 | B29: DRAGON LEE GYM | C29: 1 | D29: $ 2.50 | E29: =Tabla1425[[#This Row],[CANT.]]*Tabla1425[[#This Row],[PRECIO UNITARIO]] -> $2.50 | F29: 0 | G29: $ 2.50 | H29: =Tabla1425[[#This Row],[EFECTIVO]]+Tabla1425[[#This Row],[TRANSFERENCIA]] -> $ 2.50 | I29: CANCELADO | J29: =Tabla1425[[#This Row],[VALOR A PAGAR]]-Tabla1425[[#This Row],[VALOR CANCELADO]] -> 0 | K29: CANCELA CON 1 GAL IMPRESO
A30: 2025-04-24 | B30: BAEKJUL TEAM FERNÁNDEZ | C30: 4 | D30: $ 2.50 | E30: =Tabla1425[[#This Row],[CANT.]]*Tabla1425[[#This Row],[PRECIO UNITARIO]] -> $10.00 | F30: 0 | G30: $ 10.00 | H30: =Tabla1425[[#This Row],[EFECTIVO]]+Tabla1425[[#This Row],[TRANSFERENCIA]] -> $ 10.00 | I30: CANCELADO | J30: =Tabla1425[[#This Row],[VALOR A PAGAR]]-Tabla1425[[#This Row],[VALOR CANCELADO]] -> 0
A31: 2025-04-24 | B31: KORYO | C31: 10 | D31: $ 2.50 | E31: =Tabla1425[[#This Row],[CANT.]]*Tabla1425[[#This Row],[PRECIO UNITARIO]] -> $25.00 | F31: 0 | G31: $ 25.00 | H31: =Tabla1425[[#This Row],[EFECTIVO]]+Tabla1425[[#This Row],[TRANSFERENCIA]] -> $ 25.00 | I31: CANCELADO | J31: =Tabla1425[[#This Row],[VALOR A PAGAR]]-Tabla1425[[#This Row],[VALOR CANCELADO]] -> 0 | K31: CANCELA CON 10 GAL'S IMPRESOS
A32: 2025-04-25 | B32: TAE DO ACADEMY | C32: 41 | D32: $ 2.50 | E32: =Tabla1425[[#This Row],[CANT.]]*Tabla1425[[#This Row],[PRECIO UNITARIO]] -> $102.50 | F32: 0 | G32: $ 102.50 | H32: =Tabla1425[[#This Row],[EFECTIVO]]+Tabla1425[[#This Row],[TRANSFERENCIA]] -> $ 102.50 | I32: CANCELADO | J32: =Tabla1425[[#This Row],[VALOR A PAGAR]]-Tabla1425[[#This Row],[VALOR CANCELADO]] -> 0 | K32: ENVÍA PAGO DE 42 CERTIFICADOS Y EN LISTA CONSTAN 41 TIENE UN SALDO A FAVOR
A33: 2025-04-29 | B33: DRAGON GYM | C33: 1 | D33: $ 2.50 | E33: =Tabla1425[[#This Row],[CANT.]]*Tabla1425[[#This Row],[PRECIO UNITARIO]] -> $2.50 | F33: 0 | G33: $ 2.50 | H33: =Tabla1425[[#This Row],[EFECTIVO]]+Tabla1425[[#This Row],[TRANSFERENCIA]] -> $ 2.50 | I33: CANCELADO | J33: =Tabla1425[[#This Row],[VALOR A PAGAR]]-Tabla1425[[#This Row],[VALOR CANCELADO]] -> 0 | K33: REIMPRESIÓN DE DIPLOMA
A34: 2025-04-30 | B34: ESPE | C34: 7 | D34: $ 2.50 | E34: =Tabla1425[[#This Row],[CANT.]]*Tabla1425[[#This Row],[PRECIO UNITARIO]] -> $17.50 | F34: 0 | G34: $ 17.50 | H34: =Tabla1425[[#This Row],[EFECTIVO]]+Tabla1425[[#This Row],[TRANSFERENCIA]] -> $ 17.50 | I34: CANCELADO | J34: =Tabla1425[[#This Row],[VALOR A PAGAR]]-Tabla1425[[#This Row],[VALOR CANCELADO]] -> 0 | K34: CRUCE DEUDA TRÁMITES EN SRI DE ASOTKDP POR EDUARDO LOACHAMÍN
A35: 2025-05-05 | B35: VILL GYM | C35: 13 | D35: $ 2.50 | E35: =Tabla1425[[#This Row],[CANT.]]*Tabla1425[[#This Row],[PRECIO UNITARIO]] -> $32.50 | F35: 0 | G35: $ 32.50 | H35: =Tabla1425[[#This Row],[EFECTIVO]]+Tabla1425[[#This Row],[TRANSFERENCIA]] -> $ 32.50 | I35: CANCELADO | J35: =Tabla1425[[#This Row],[VALOR A PAGAR]]-Tabla1425[[#This Row],[VALOR CANCELADO]] -> 0 | K35: CANCELA CON 10 GAL'S IMPRESOS
A36: 2025-05-05 | B36: JERATHEL | C36: 21 | D36: $ 2.50 | E36: =Tabla1425[[#This Row],[CANT.]]*Tabla1425[[#This Row],[PRECIO UNITARIO]] -> $52.50 | F36: 0 | G36: $ 52.50 | H36: =Tabla1425[[#This Row],[EFECTIVO]]+Tabla1425[[#This Row],[TRANSFERENCIA]] -> $ 52.50 | I36: =IF((E36=H36),"CANCELADO","SALDO PENDIENTE") -> CANCELADO | J36: =Tabla1425[[#This Row],[VALOR A PAGAR]]-Tabla1425[[#This Row],[VALOR CANCELADO]] -> 0 | K36: HACE USO DE SALDO A FAVOR DISPONIBLE DEL TRÁMITE DEL 11-02-2025
A37: 2025-05-06 | B37: RAIG DE LLUM | C37: 19 | D37: $ 2.50 | E37: =Tabla1425[[#This Row],[CANT.]]*Tabla1425[[#This Row],[PRECIO UNITARIO]] -> $47.50 | F37: 0 | G37: $ 47.50 | H37: =Tabla1425[[#This Row],[EFECTIVO]]+Tabla1425[[#This Row],[TRANSFERENCIA]] -> $ 47.50 | I37: CANCELADO | J37: =Tabla1425[[#This Row],[VALOR A PAGAR]]-Tabla1425[[#This Row],[VALOR CANCELADO]] -> 0 | K37: CANCELA CON 9 GAL'S IMPRESOS
A38: 2025-05-07 | B38: BAS PANTHERS | C38: 29 | D38: $ 2.50 | E38: =Tabla1425[[#This Row],[CANT.]]*Tabla1425[[#This Row],[PRECIO UNITARIO]] -> $72.50 | F38: 0 | G38: $ 72.50 | H38: =Tabla1425[[#This Row],[EFECTIVO]]+Tabla1425[[#This Row],[TRANSFERENCIA]] -> $ 72.50 | I38: CANCELADO | J38: =Tabla1425[[#This Row],[VALOR A PAGAR]]-Tabla1425[[#This Row],[VALOR CANCELADO]] -> 0 | K38: CANCELA CON 3 GAL'S IMPRESOS
A39: 2025-05-07 | B39: LEÓN | C39: 24 | D39: $ 2.50 | E39: =Tabla1425[[#This Row],[CANT.]]*Tabla1425[[#This Row],[PRECIO UNITARIO]] -> $60.00 | F39: 0 | G39: $ 60.00 | H39: =Tabla1425[[#This Row],[EFECTIVO]]+Tabla1425[[#This Row],[TRANSFERENCIA]] -> $ 60.00 | I39: CANCELADO | J39: =Tabla1425[[#This Row],[VALOR A PAGAR]]-Tabla1425[[#This Row],[VALOR CANCELADO]] -> 0
A40: 2025-05-09 | B40: MOODUKKAN TTC | C40: 2 | D40: $ 2.50 | E40: =Tabla1425[[#This Row],[CANT.]]*Tabla1425[[#This Row],[PRECIO UNITARIO]] -> $5.00 | F40: 0 | G40: $ 5.00 | H40: =Tabla1425[[#This Row],[EFECTIVO]]+Tabla1425[[#This Row],[TRANSFERENCIA]] -> $ 5.00 | I40: CANCELADO | J40: =Tabla1425[[#This Row],[VALOR A PAGAR]]-Tabla1425[[#This Row],[VALOR CANCELADO]] -> 0
A41: 2025-05-12 | B41: ECUADOR | C41: 20 | D41: $ 2.50 | E41: =Tabla1425[[#This Row],[CANT.]]*Tabla1425[[#This Row],[PRECIO UNITARIO]] -> $50.00 | F41: 0 | G41: $ 50.00 | H41: =Tabla1425[[#This Row],[EFECTIVO]]+Tabla1425[[#This Row],[TRANSFERENCIA]] -> $ 50.00 | I41: CANCELADO | J41: =Tabla1425[[#This Row],[VALOR A PAGAR]]-Tabla1425[[#This Row],[VALOR CANCELADO]] -> 0 | K41: CANCELA CON 2 GAL'S DIGITALES
A42: 2025-05-12 | B42: KYORUGUI GYM | C42: 8 | D42: $ 2.50 | E42: =Tabla1425[[#This Row],[CANT.]]*Tabla1425[[#This Row],[PRECIO UNITARIO]] -> $20.00 | F42: 0 | G42: $ 20.00 | H42: =Tabla1425[[#This Row],[EFECTIVO]]+Tabla1425[[#This Row],[TRANSFERENCIA]] -> $ 20.00 | I42: CANCELADO | J42: =Tabla1425[[#This Row],[VALOR A PAGAR]]-Tabla1425[[#This Row],[VALOR CANCELADO]] -> 0 | K42: EN DOS PAGOS (26-06-2025)
A43: 2025-05-15 | B43: PYONGYANG | C43: 12 | D43: $ 2.50 | E43: =Tabla1425[[#This Row],[CANT.]]*Tabla1425[[#This Row],[PRECIO UNITARIO]] -> $30.00 | F43: 0 | G43: $ 30.00 | H43: =Tabla1425[[#This Row],[EFECTIVO]]+Tabla1425[[#This Row],[TRANSFERENCIA]] -> $ 30.00 | I43: CANCELADO | J43: =Tabla1425[[#This Row],[VALOR A PAGAR]]-Tabla1425[[#This Row],[VALOR CANCELADO]] -> 0 | K43: CANCELA CON 21 GAL'S IMPRESOS
A44: 2025-05-27 | B44: BAEKJUL TEAM AYALAZ | C44: 24 | D44: $ 2.50 | E44: =Tabla1425[[#This Row],[CANT.]]*Tabla1425[[#This Row],[PRECIO UNITARIO]] -> $60.00 | F44: 0 | G44: $ 60.00 | H44: =Tabla1425[[#This Row],[EFECTIVO]]+Tabla1425[[#This Row],[TRANSFERENCIA]] -> $ 60.00 | I44: CANCELADO | J44: =Tabla1425[[#This Row],[VALOR A PAGAR]]-Tabla1425[[#This Row],[VALOR CANCELADO]] -> 0 | K44: CANCELA CON 3 GAL'S IMPRESOS Y HACE USO DE $15 A FAVOR
A45: 2025-05-27 | B45: MINOTAUROS | C45: 12 | D45: $ 2.50 | E45: =Tabla1425[[#This Row],[CANT.]]*Tabla1425[[#This Row],[PRECIO UNITARIO]] -> $30.00 | F45: 0 | G45: $ 30.00 | H45: =Tabla1425[[#This Row],[EFECTIVO]]+Tabla1425[[#This Row],[TRANSFERENCIA]] -> $ 30.00 | I45: CANCELADO | J45: =Tabla1425[[#This Row],[VALOR A PAGAR]]-Tabla1425[[#This Row],[VALOR CANCELADO]] -> 0 | K45: CANCELA CON 2 GAL'S IMPRESOS
A46: 2025-05-27 | B46: GOYANG - IDEUL | C46: 4 | D46: $ 2.50 | E46: =Tabla1425[[#This Row],[CANT.]]*Tabla1425[[#This Row],[PRECIO UNITARIO]] -> $10.00 | F46: 0 | G46: $ 10.00 | H46: =Tabla1425[[#This Row],[EFECTIVO]]+Tabla1425[[#This Row],[TRANSFERENCIA]] -> $ 10.00 | I46: CANCELADO | J46: =Tabla1425[[#This Row],[VALOR A PAGAR]]-Tabla1425[[#This Row],[VALOR CANCELADO]] -> 0
A47: 2025-06-05 | B47: JOSEON LEGACY | C47: 64 | D47: $ 2.50 | E47: =Tabla1425[[#This Row],[CANT.]]*Tabla1425[[#This Row],[PRECIO UNITARIO]] -> $160.00 | F47: $ 0.50 | G47: $ 159.50 | H47: =Tabla1425[[#This Row],[EFECTIVO]]+Tabla1425[[#This Row],[TRANSFERENCIA]] -> $ 160.00 | I47: CANCELADO | J47: =Tabla1425[[#This Row],[VALOR A PAGAR]]-Tabla1425[[#This Row],[VALOR CANCELADO]] -> 0 | K47: CANCELA CON 29 GAL'S IMPRESOS Y 2 GAL'S DIGITALES
A48: 2025-06-06 | B48: BAEKJUL TEAM FERNÁNDEZ | C48: 3 | D48: $ 2.50 | E48: =Tabla1425[[#This Row],[CANT.]]*Tabla1425[[#This Row],[PRECIO UNITARIO]] -> $7.50 | F48: 0 | G48: $ 7.50 | H48: =Tabla1425[[#This Row],[EFECTIVO]]+Tabla1425[[#This Row],[TRANSFERENCIA]] -> $ 7.50 | I48: CANCELADO | J48: =Tabla1425[[#This Row],[VALOR A PAGAR]]-Tabla1425[[#This Row],[VALOR CANCELADO]] -> 0
A49: 2025-06-09 | B49: CAMU | C49: 12 | D49: $ 2.50 | E49: =Tabla1425[[#This Row],[CANT.]]*Tabla1425[[#This Row],[PRECIO UNITARIO]] -> $30.00 | F49: 0 | G49: $ 30.00 | H49: =Tabla1425[[#This Row],[EFECTIVO]]+Tabla1425[[#This Row],[TRANSFERENCIA]] -> $ 30.00 | I49: CANCELADO | J49: =Tabla1425[[#This Row],[VALOR A PAGAR]]-Tabla1425[[#This Row],[VALOR CANCELADO]] -> 0 | K49: CANCELA CON 12 GAL'S IMPRESOS
A50: 2025-06-09 | B50: EQUILIBRIO | C50: 12 | D50: $ 2.50 | E50: =Tabla1425[[#This Row],[CANT.]]*Tabla1425[[#This Row],[PRECIO UNITARIO]] -> $30.00 | F50: 0 | G50: $ 30.00 | H50: =Tabla1425[[#This Row],[EFECTIVO]]+Tabla1425[[#This Row],[TRANSFERENCIA]] -> $ 30.00 | I50: CANCELADO | J50: =Tabla1425[[#This Row],[VALOR A PAGAR]]-Tabla1425[[#This Row],[VALOR CANCELADO]] -> 0
A51: 2025-06-11 | B51: PALADINS MARCIAL CLUB | C51: 8 | D51: $ 2.50 | E51: =Tabla1425[[#This Row],[CANT.]]*Tabla1425[[#This Row],[PRECIO UNITARIO]] -> $20.00 | F51: 0 | G51: $ 20.00 | H51: =Tabla1425[[#This Row],[EFECTIVO]]+Tabla1425[[#This Row],[TRANSFERENCIA]] -> $ 20.00 | I51: CANCELADO | J51: =Tabla1425[[#This Row],[VALOR A PAGAR]]-Tabla1425[[#This Row],[VALOR CANCELADO]] -> 0 | K51: CANCELA CON 8 GAL'S IMPRESOS
A52: 2025-06-12 | B52: SEUL "LA ESTANCILLA" | C52: 13 | D52: $ 2.50 | E52: =Tabla1425[[#This Row],[CANT.]]*Tabla1425[[#This Row],[PRECIO UNITARIO]] -> $32.50 | F52: 0 | G52: $ 32.50 | H52: =Tabla1425[[#This Row],[EFECTIVO]]+Tabla1425[[#This Row],[TRANSFERENCIA]] -> $ 32.50 | I52: CANCELADO | J52: =Tabla1425[[#This Row],[VALOR A PAGAR]]-Tabla1425[[#This Row],[VALOR CANCELADO]] -> 0
A53: 2025-06-16 | B53: TOTAL KOMBAT | C53: 24 | D53: $ 2.50 | E53: =Tabla1425[[#This Row],[CANT.]]*Tabla1425[[#This Row],[PRECIO UNITARIO]] -> $60.00 | F53: 0 | G53: $ 60.00 | H53: =Tabla1425[[#This Row],[EFECTIVO]]+Tabla1425[[#This Row],[TRANSFERENCIA]] -> $ 60.00 | I53: CANCELADO | J53: =Tabla1425[[#This Row],[VALOR A PAGAR]]-Tabla1425[[#This Row],[VALOR CANCELADO]] -> 0
A54: 2025-06-16 | B54: TOTAL KOMBAT RHINOS | C54: 30 | D54: $ 2.50 | E54: =Tabla1425[[#This Row],[CANT.]]*Tabla1425[[#This Row],[PRECIO UNITARIO]] -> $75.00 | F54: 0 | G54: $ 75.00 | H54: =Tabla1425[[#This Row],[EFECTIVO]]+Tabla1425[[#This Row],[TRANSFERENCIA]] -> $ 75.00 | I54: CANCELADO | J54: =Tabla1425[[#This Row],[VALOR A PAGAR]]-Tabla1425[[#This Row],[VALOR CANCELADO]] -> 0
A55: 2025-06-16 | B55: TOTAL KOMBAT KOBRA KAY | C55: 11 | D55: $ 2.50 | E55: =Tabla1425[[#This Row],[CANT.]]*Tabla1425[[#This Row],[PRECIO UNITARIO]] -> $27.50 | F55: 0 | G55: $ 27.50 | H55: =Tabla1425[[#This Row],[EFECTIVO]]+Tabla1425[[#This Row],[TRANSFERENCIA]] -> $ 27.50 | I55: CANCELADO | J55: =Tabla1425[[#This Row],[VALOR A PAGAR]]-Tabla1425[[#This Row],[VALOR CANCELADO]] -> 0
A56: 2025-06-19 | B56: TOTAL KOMBAT KUKKIWON C.C. | C56: 7 | D56: $ 2.50 | E56: =Tabla1425[[#This Row],[CANT.]]*Tabla1425[[#This Row],[PRECIO UNITARIO]] -> $17.50 | F56: 0 | G56: $ 17.50 | H56: =Tabla1425[[#This Row],[EFECTIVO]]+Tabla1425[[#This Row],[TRANSFERENCIA]] -> $ 17.50 | I56: CANCELADO | J56: =Tabla1425[[#This Row],[VALOR A PAGAR]]-Tabla1425[[#This Row],[VALOR CANCELADO]] -> 0
A57: 2025-06-19 | B57: MIT-TKD | C57: 20 | D57: $ 2.50 | E57: =Tabla1425[[#This Row],[CANT.]]*Tabla1425[[#This Row],[PRECIO UNITARIO]] -> $50.00 | F57: 0 | G57: $ 50.00 | H57: =Tabla1425[[#This Row],[EFECTIVO]]+Tabla1425[[#This Row],[TRANSFERENCIA]] -> $ 50.00 | I57: CANCELADO | J57: =Tabla1425[[#This Row],[VALOR A PAGAR]]-Tabla1425[[#This Row],[VALOR CANCELADO]] -> 0
A58: 2025-06-19 | B58: SIMJANG | C58: 25 | D58: $ 2.50 | E58: =Tabla1425[[#This Row],[CANT.]]*Tabla1425[[#This Row],[PRECIO UNITARIO]] -> $62.50 | F58: 0 | G58: $ 62.50 | H58: =Tabla1425[[#This Row],[EFECTIVO]]+Tabla1425[[#This Row],[TRANSFERENCIA]] -> $ 62.50 | I58: CANCELADO | J58: =Tabla1425[[#This Row],[VALOR A PAGAR]]-Tabla1425[[#This Row],[VALOR CANCELADO]] -> 0 | K58: CANCELA CON 2 GAL'S DIGITALES
A59: 2025-06-19 | B59: CHEN HUU | C59: 8 | D59: $ 2.50 | E59: =Tabla1425[[#This Row],[CANT.]]*Tabla1425[[#This Row],[PRECIO UNITARIO]] -> $20.00 | F59: 0 | G59: $ 20.00 | H59: =Tabla1425[[#This Row],[EFECTIVO]]+Tabla1425[[#This Row],[TRANSFERENCIA]] -> $ 20.00 | I59: CANCELADO | J59: =Tabla1425[[#This Row],[VALOR A PAGAR]]-Tabla1425[[#This Row],[VALOR CANCELADO]] -> 0 | K59: CANCELA CON 33 GAL'S DIGITALES
A60: 2025-06-19 | B60: TAE SHO KU | C60: 50 | D60: $ 2.50 | E60: =Tabla1425[[#This Row],[CANT.]]*Tabla1425[[#This Row],[PRECIO UNITARIO]] -> $125.00 | F60: 0 | G60: $ 125.00 | H60: =Tabla1425[[#This Row],[EFECTIVO]]+Tabla1425[[#This Row],[TRANSFERENCIA]] -> $ 125.00 | I60: CANCELADO | J60: =Tabla1425[[#This Row],[VALOR A PAGAR]]-Tabla1425[[#This Row],[VALOR CANCELADO]] -> 0 | K60: CANCELA CON 8 GAL'S IMPRESOS
A61: 2025-06-20 | B61: ECUADOR | C61: 33 | D61: $ 2.50 | E61: =Tabla1425[[#This Row],[CANT.]]*Tabla1425[[#This Row],[PRECIO UNITARIO]] -> $82.50 | F61: 0 | G61: $ 82.50 | H61: =Tabla1425[[#This Row],[EFECTIVO]]+Tabla1425[[#This Row],[TRANSFERENCIA]] -> $ 82.50 | I61: CANCELADO | J61: =Tabla1425[[#This Row],[VALOR A PAGAR]]-Tabla1425[[#This Row],[VALOR CANCELADO]] -> 0
A62: 2025-06-23 | B62: BLUE DRAGONS | C62: 22 | D62: $ 2.50 | E62: =Tabla1425[[#This Row],[CANT.]]*Tabla1425[[#This Row],[PRECIO UNITARIO]] -> $55.00 | F62: 0 | G62: $ 55.00 | H62: =Tabla1425[[#This Row],[EFECTIVO]]+Tabla1425[[#This Row],[TRANSFERENCIA]] -> $ 55.00 | I62: CANCELADO | J62: =Tabla1425[[#This Row],[VALOR A PAGAR]]-Tabla1425[[#This Row],[VALOR CANCELADO]] -> 0 | K62: CANCELA EN DOS PAGOS
A63: 2025-06-24 | B63: SEUL AMÉRICA | C63: 1 | D63: $ 2.50 | E63: =Tabla1425[[#This Row],[CANT.]]*Tabla1425[[#This Row],[PRECIO UNITARIO]] -> $2.50 | G63: $ 2.50 | H63: =Tabla1425[[#This Row],[EFECTIVO]]+Tabla1425[[#This Row],[TRANSFERENCIA]] -> $ 2.50 | I63: CANCELADO | J63: =Tabla1425[[#This Row],[VALOR A PAGAR]]-Tabla1425[[#This Row],[VALOR CANCELADO]] -> 0
A64: 2025-06-24 | B64: SEUL CHUNG UI | C64: 27 | D64: $ 2.50 | E64: =Tabla1425[[#This Row],[CANT.]]*Tabla1425[[#This Row],[PRECIO UNITARIO]] -> $67.50 | G64: $ 67.50 | H64: =Tabla1425[[#This Row],[EFECTIVO]]+Tabla1425[[#This Row],[TRANSFERENCIA]] -> $ 67.50 | I64: CANCELADO | J64: =Tabla1425[[#This Row],[VALOR A PAGAR]]-Tabla1425[[#This Row],[VALOR CANCELADO]] -> 0
A65: 2025-06-24 | B65: SEUL CAPELO | C65: 9 | D65: $ 2.50 | E65: =Tabla1425[[#This Row],[CANT.]]*Tabla1425[[#This Row],[PRECIO UNITARIO]] -> $22.50 | G65: $ 22.50 | H65: =Tabla1425[[#This Row],[EFECTIVO]]+Tabla1425[[#This Row],[TRANSFERENCIA]] -> $ 22.50 | I65: CANCELADO | J65: =Tabla1425[[#This Row],[VALOR A PAGAR]]-Tabla1425[[#This Row],[VALOR CANCELADO]] -> 0
A66: 2025-06-25 | B66: SEUL CARAPUNGO | C66: 20 | D66: $ 2.50 | E66: =Tabla1425[[#This Row],[CANT.]]*Tabla1425[[#This Row],[PRECIO UNITARIO]] -> $50.00 | F66: 0 | G66: $ 50.00 | H66: =Tabla1425[[#This Row],[EFECTIVO]]+Tabla1425[[#This Row],[TRANSFERENCIA]] -> $ 50.00 | I66: CANCELADO | J66: =Tabla1425[[#This Row],[VALOR A PAGAR]]-Tabla1425[[#This Row],[VALOR CANCELADO]] -> 0
A67: 2025-06-25 | B67: PIONERO FORTIS | C67: 33 | D67: $ 2.50 | E67: =Tabla1425[[#This Row],[CANT.]]*Tabla1425[[#This Row],[PRECIO UNITARIO]] -> $82.50 | F67: 0 | G67: $ 82.50 | H67: =Tabla1425[[#This Row],[EFECTIVO]]+Tabla1425[[#This Row],[TRANSFERENCIA]] -> $ 82.50 | I67: CANCELADO | J67: =Tabla1425[[#This Row],[VALOR A PAGAR]]-Tabla1425[[#This Row],[VALOR CANCELADO]] -> 0
A68: 2025-06-26 | B68: ASOTKD - P (VICENTINA) | C68: 27 | D68: $ 2.50 | E68: =Tabla1425[[#This Row],[CANT.]]*Tabla1425[[#This Row],[PRECIO UNITARIO]] -> $67.50 | F68: 0 | G68: $ 67.50 | H68: =Tabla1425[[#This Row],[EFECTIVO]]+Tabla1425[[#This Row],[TRANSFERENCIA]] -> $ 67.50 | I68: =IF((E68=H68),"CANCELADO","SALDO PENDIENTE") -> CANCELADO | J68: =Tabla1425[[#This Row],[VALOR A PAGAR]]-Tabla1425[[#This Row],[VALOR CANCELADO]] -> 0
A69: 2025-06-26 | B69: KYORUGUI GYM | C69: 6 | D69: $ 2.50 | E69: =Tabla1425[[#This Row],[CANT.]]*Tabla1425[[#This Row],[PRECIO UNITARIO]] -> $15.00 | F69: 0 | G69: $ 15.00 | H69: =Tabla1425[[#This Row],[EFECTIVO]]+Tabla1425[[#This Row],[TRANSFERENCIA]] -> $ 15.00 | I69: CANCELADO | J69: =Tabla1425[[#This Row],[VALOR A PAGAR]]-Tabla1425[[#This Row],[VALOR CANCELADO]] -> 0 | K69: CANCELA CON 5 GAL'S DIGITALES
A70: 2025-06-26 | B70: SHOGUN | C70: 23 | D70: $ 2.50 | E70: =Tabla1425[[#This Row],[CANT.]]*Tabla1425[[#This Row],[PRECIO UNITARIO]] -> $57.50 | F70: 0 | G70: $ 57.50 | H70: =Tabla1425[[#This Row],[EFECTIVO]]+Tabla1425[[#This Row],[TRANSFERENCIA]] -> $ 57.50 | I70: CANCELADO | J70: =Tabla1425[[#This Row],[VALOR A PAGAR]]-Tabla1425[[#This Row],[VALOR CANCELADO]] -> 0 | K70: CANCELA EN DOS PAGOS
A71: 2025-06-27 | B71: DEBAK TKD | C71: 76 | D71: $ 2.50 | E71: =Tabla1425[[#This Row],[CANT.]]*Tabla1425[[#This Row],[PRECIO UNITARIO]] -> $190.00 | F71: 0 | G71: $ 190.00 | H71: =Tabla1425[[#This Row],[EFECTIVO]]+Tabla1425[[#This Row],[TRANSFERENCIA]] -> $ 190.00 | I71: CANCELADO | J71: =Tabla1425[[#This Row],[VALOR A PAGAR]]-Tabla1425[[#This Row],[VALOR CANCELADO]] -> 0 | K71: CANCELA EN DOS PAGOS
A72: 2025-06-27 | B72: LEÓN | C72: 1 | D72: $ 2.50 | E72: =Tabla1425[[#This Row],[CANT.]]*Tabla1425[[#This Row],[PRECIO UNITARIO]] -> $2.50 | F72: 0 | G72: $ 2.50 | H72: =Tabla1425[[#This Row],[EFECTIVO]]+Tabla1425[[#This Row],[TRANSFERENCIA]] -> $ 2.50 | I72: CANCELADO | J72: =Tabla1425[[#This Row],[VALOR A PAGAR]]-Tabla1425[[#This Row],[VALOR CANCELADO]] -> 0 | K72: CANCELA CON 1 GAL IMPRESO CANCELA $0,5 EN TRÁMITE DE 03-07-2025
A73: 2025-07-01 | B73: DRAGON LEE GYM | C73: 4 | D73: $ 2.50 | E73: =Tabla1425[[#This Row],[CANT.]]*Tabla1425[[#This Row],[PRECIO UNITARIO]] -> $10.00 | F73: 0 | G73: $ 10.00 | H73: =Tabla1425[[#This Row],[EFECTIVO]]+Tabla1425[[#This Row],[TRANSFERENCIA]] -> $ 10.00 | I73: CANCELADO | J73: =Tabla1425[[#This Row],[VALOR A PAGAR]]-Tabla1425[[#This Row],[VALOR CANCELADO]] -> 0 | K73: CANCELA CON 1 GAL DIGITAL | L73: $13.50 | M73: A FAVOR
A74: 2025-07-02 | B74: TAE SHO KU | C74: 2 | D74: $ 2.50 | E74: =Tabla1425[[#This Row],[CANT.]]*Tabla1425[[#This Row],[PRECIO UNITARIO]] -> $5.00 | F74: 0 | G74: $ 5.00 | H74: =Tabla1425[[#This Row],[EFECTIVO]]+Tabla1425[[#This Row],[TRANSFERENCIA]] -> $ 5.00 | I74: CANCELADO | J74: =Tabla1425[[#This Row],[VALOR A PAGAR]]-Tabla1425[[#This Row],[VALOR CANCELADO]] -> 0 | K74: CANCELA CON 2 GAL'S DIGITALES
A75: 2025-07-02 | B75: BAEKJUL TEAM FERNÁNDEZ | C75: 6 | D75: $ 2.50 | E75: =Tabla1425[[#This Row],[CANT.]]*Tabla1425[[#This Row],[PRECIO UNITARIO]] -> $15.00 | F75: 0 | G75: $ 15.00 | H75: =Tabla1425[[#This Row],[EFECTIVO]]+Tabla1425[[#This Row],[TRANSFERENCIA]] -> $ 15.00 | I75: CANCELADO | J75: =Tabla1425[[#This Row],[VALOR A PAGAR]]-Tabla1425[[#This Row],[VALOR CANCELADO]] -> 0
A76: 2025-07-02 | B76: SEUL | C76: 71 | D76: $ 2.50 | E76: =Tabla1425[[#This Row],[CANT.]]*Tabla1425[[#This Row],[PRECIO UNITARIO]] -> $177.50 | F76: 0 | G76: $ 177.50 | H76: =Tabla1425[[#This Row],[EFECTIVO]]+Tabla1425[[#This Row],[TRANSFERENCIA]] -> $ 177.50 | I76: CANCELADO | J76: =Tabla1425[[#This Row],[VALOR A PAGAR]]-Tabla1425[[#This Row],[VALOR CANCELADO]] -> 0
A77: 2025-07-03 | B77: FIRST CLASS | C77: 7 | D77: $ 2.50 | E77: =Tabla1425[[#This Row],[CANT.]]*Tabla1425[[#This Row],[PRECIO UNITARIO]] -> $17.50 | F77: 0 | G77: $ 17.50 | H77: =Tabla1425[[#This Row],[EFECTIVO]]+Tabla1425[[#This Row],[TRANSFERENCIA]] -> $ 17.50 | I77: CANCELADO | J77: =Tabla1425[[#This Row],[VALOR A PAGAR]]-Tabla1425[[#This Row],[VALOR CANCELADO]] -> 0 | K77: CANCELA EN DOS PAGOS
A78: 2025-07-07 | B78: KO AMÉRICA DRAGON FIRE | C78: 1 | D78: $ 2.50 | E78: =Tabla1425[[#This Row],[CANT.]]*Tabla1425[[#This Row],[PRECIO UNITARIO]] -> $2.50 | F78: 0 | G78: $ 2.50 | H78: =Tabla1425[[#This Row],[EFECTIVO]]+Tabla1425[[#This Row],[TRANSFERENCIA]] -> $ 2.50 | I78: CANCELADO | J78: =Tabla1425[[#This Row],[VALOR A PAGAR]]-Tabla1425[[#This Row],[VALOR CANCELADO]] -> 0
A79: 2025-07-07 | B79: MSA GRAND MASTER | C79: 19 | D79: $ 2.50 | E79: =Tabla1425[[#This Row],[CANT.]]*Tabla1425[[#This Row],[PRECIO UNITARIO]] -> $47.50 | F79: 0 | G79: $ 47.50 | H79: =Tabla1425[[#This Row],[EFECTIVO]]+Tabla1425[[#This Row],[TRANSFERENCIA]] -> $ 47.50 | I79: CANCELADO | J79: =Tabla1425[[#This Row],[VALOR A PAGAR]]-Tabla1425[[#This Row],[VALOR CANCELADO]] -> 0 | K79: CANCELA CON 6 GAL'S DIGITALES
A80: 2025-07-07 | B80: ASOTKD - P CHIMBACALLE | C80: 35 | D80: $ 2.50 | E80: =Tabla1425[[#This Row],[CANT.]]*Tabla1425[[#This Row],[PRECIO UNITARIO]] -> $87.50 | F80: $ 87.50 | G80: 0 | H80: =Tabla1425[[#This Row],[EFECTIVO]]+Tabla1425[[#This Row],[TRANSFERENCIA]] -> $ 87.50 | I80: CANCELADO | J80: =Tabla1425[[#This Row],[VALOR A PAGAR]]-Tabla1425[[#This Row],[VALOR CANCELADO]] -> 0 | K80: CANCELA CON 1 GAL IMPRESO
A81: 2025-07-07 | B81: CHUNG SONG | C81: 36 | D81: $ 2.50 | E81: =Tabla1425[[#This Row],[CANT.]]*Tabla1425[[#This Row],[PRECIO UNITARIO]] -> $90.00 | F81: 0 | G81: $ 90.00 | H81: =Tabla1425[[#This Row],[EFECTIVO]]+Tabla1425[[#This Row],[TRANSFERENCIA]] -> $ 90.00 | I81: CANCELADO | J81: =Tabla1425[[#This Row],[VALOR A PAGAR]]-Tabla1425[[#This Row],[VALOR CANCELADO]] -> 0 | K81: CANCELA EN DOS PAGOS
A82: 2025-07-07 | B82: TAE WOONG | C82: 17 | D82: $ 2.50 | E82: =Tabla1425[[#This Row],[CANT.]]*Tabla1425[[#This Row],[PRECIO UNITARIO]] -> $42.50 | F82: 0 | G82: $ 42.50 | H82: =Tabla1425[[#This Row],[EFECTIVO]]+Tabla1425[[#This Row],[TRANSFERENCIA]] -> $ 42.50 | I82: CANCELADO | J82: =Tabla1425[[#This Row],[VALOR A PAGAR]]-Tabla1425[[#This Row],[VALOR CANCELADO]] -> 0
A83: 2025-07-09 | B83: CHEN HUU | C83: 1 | D83: $ 2.50 | E83: =Tabla1425[[#This Row],[CANT.]]*Tabla1425[[#This Row],[PRECIO UNITARIO]] -> $2.50 | F83: 0 | G83: $ 2.50 | H83: =Tabla1425[[#This Row],[EFECTIVO]]+Tabla1425[[#This Row],[TRANSFERENCIA]] -> $ 2.50 | I83: CANCELADO | J83: =Tabla1425[[#This Row],[VALOR A PAGAR]]-Tabla1425[[#This Row],[VALOR CANCELADO]] -> 0 | K83: CANCELA CON REIMPRESIÓN DE 3 GAL'S
A84: 2025-07-10 | B84: SOCIEDAD DEPORTIVA CENTRAL | C84: 1 | D84: $ 2.50 | E84: =Tabla1425[[#This Row],[CANT.]]*Tabla1425[[#This Row],[PRECIO UNITARIO]] -> $2.50 | F84: $ 2.50 | G84: 0 | H84: =Tabla1425[[#This Row],[EFECTIVO]]+Tabla1425[[#This Row],[TRANSFERENCIA]] -> $ 2.50 | I84: CANCELADO | J84: =Tabla1425[[#This Row],[VALOR A PAGAR]]-Tabla1425[[#This Row],[VALOR CANCELADO]] -> 0 | K84: CERTIFICADO Y GAL DEL 27-04-2024
A85: 2025-07-11 | B85: BORJA'S LIONS | C85: 21 | D85: $ 2.50 | E85: =Tabla1425[[#This Row],[CANT.]]*Tabla1425[[#This Row],[PRECIO UNITARIO]] -> $52.50 | F85: 0 | G85: $ 52.50 | H85: =Tabla1425[[#This Row],[EFECTIVO]]+Tabla1425[[#This Row],[TRANSFERENCIA]] -> $ 52.50 | I85: CANCELADO | J85: =Tabla1425[[#This Row],[VALOR A PAGAR]]-Tabla1425[[#This Row],[VALOR CANCELADO]] -> 0 | K85: CANCELA CON 4 GAL'S IMPRESOS
A86: 2025-07-17 | B86: FARANG | C86: 8 | D86: $ 2.50 | E86: =Tabla1425[[#This Row],[CANT.]]*Tabla1425[[#This Row],[PRECIO UNITARIO]] -> $20.00 | F86: 0 | G86: $ 20.00 | H86: =Tabla1425[[#This Row],[EFECTIVO]]+Tabla1425[[#This Row],[TRANSFERENCIA]] -> $ 20.00 | I86: CANCELADO | J86: =Tabla1425[[#This Row],[VALOR A PAGAR]]-Tabla1425[[#This Row],[VALOR CANCELADO]] -> 0 | K86: CANCELA CON 41GAL IMPRESO
A87: 2025-07-22 | B87: KO AMÉRICA | C87: 51 | D87: $ 2.50 | E87: =Tabla1425[[#This Row],[CANT.]]*Tabla1425[[#This Row],[PRECIO UNITARIO]] -> $127.50 | F87: 0 | G87: $ 127.50 | H87: =Tabla1425[[#This Row],[EFECTIVO]]+Tabla1425[[#This Row],[TRANSFERENCIA]] -> $ 127.50 | I87: CANCELADO | J87: =Tabla1425[[#This Row],[VALOR A PAGAR]]-Tabla1425[[#This Row],[VALOR CANCELADO]] -> 0 | K87: EN DOS PAGOS
A88: 2025-07-24 | B88: TAEGUK JUCARO | C88: 5 | D88: $ 2.50 | E88: =Tabla1425[[#This Row],[CANT.]]*Tabla1425[[#This Row],[PRECIO UNITARIO]] -> $12.50 | F88: 0 | G88: $ 12.50 | H88: =Tabla1425[[#This Row],[EFECTIVO]]+Tabla1425[[#This Row],[TRANSFERENCIA]] -> $ 12.50 | I88: CANCELADO | J88: =Tabla1425[[#This Row],[VALOR A PAGAR]]-Tabla1425[[#This Row],[VALOR CANCELADO]] -> 0
A89: 2025-07-28 | B89: KO AMÉRICA | C89: 12 | D89: $ 2.50 | E89: =Tabla1425[[#This Row],[CANT.]]*Tabla1425[[#This Row],[PRECIO UNITARIO]] -> $30.00 | F89: 0 | G89: $ 30.00 | H89: =Tabla1425[[#This Row],[EFECTIVO]]+Tabla1425[[#This Row],[TRANSFERENCIA]] -> $ 30.00 | I89: CANCELADO | J89: =Tabla1425[[#This Row],[VALOR A PAGAR]]-Tabla1425[[#This Row],[VALOR CANCELADO]] -> 0 | K89: EN DOS PAGOS
A90: 2025-07-29 | B90: MARCIAL CLUB GRANDA | C90: 11 | D90: $ 2.50 | E90: =Tabla1425[[#This Row],[CANT.]]*Tabla1425[[#This Row],[PRECIO UNITARIO]] -> $27.50 | F90: 0 | G90: $ 27.50 | H90: =Tabla1425[[#This Row],[EFECTIVO]]+Tabla1425[[#This Row],[TRANSFERENCIA]] -> $ 27.50 | I90: CANCELADO | J90: =Tabla1425[[#This Row],[VALOR A PAGAR]]-Tabla1425[[#This Row],[VALOR CANCELADO]] -> 0
A91: 2025-07-30 | B91: HANSU | C91: 146 | D91: $ 2.50 | E91: =Tabla1425[[#This Row],[CANT.]]*Tabla1425[[#This Row],[PRECIO UNITARIO]] -> $365.00 | F91: $ 365.00 | G91: 0 | H91: =Tabla1425[[#This Row],[EFECTIVO]]+Tabla1425[[#This Row],[TRANSFERENCIA]] -> $ 365.00 | I91: CANCELADO | J91: =Tabla1425[[#This Row],[VALOR A PAGAR]]-Tabla1425[[#This Row],[VALOR CANCELADO]] -> 0
A92: 2025-07-30 | B92: KUKKIWON | C92: 9 | D92: $ 2.50 | E92: =Tabla1425[[#This Row],[CANT.]]*Tabla1425[[#This Row],[PRECIO UNITARIO]] -> $22.50 | F92: 0 | G92: $ 22.50 | H92: =Tabla1425[[#This Row],[EFECTIVO]]+Tabla1425[[#This Row],[TRANSFERENCIA]] -> $ 22.50 | I92: CANCELADO | J92: =Tabla1425[[#This Row],[VALOR A PAGAR]]-Tabla1425[[#This Row],[VALOR CANCELADO]] -> 0 | K92: CANCELA CON 1 GAL IMPRESO
A93: 2025-07-31 | B93: BAS PANTHERS | C93: 22 | D93: $ 2.50 | E93: =Tabla1425[[#This Row],[CANT.]]*Tabla1425[[#This Row],[PRECIO UNITARIO]] -> $55.00 | F93: 0 | G93: $ 55.00 | H93: =Tabla1425[[#This Row],[EFECTIVO]]+Tabla1425[[#This Row],[TRANSFERENCIA]] -> $ 55.00 | I93: CANCELADO | J93: =Tabla1425[[#This Row],[VALOR A PAGAR]]-Tabla1425[[#This Row],[VALOR CANCELADO]] -> 0 | K93: CANCELA CON 7 GAL'S IMPRESOS
A94: 2025-08-06 | B94: MARCIAL CLUB GRANDA | C94: 1 | D94: $ 2.50 | E94: =Tabla1425[[#This Row],[CANT.]]*Tabla1425[[#This Row],[PRECIO UNITARIO]] -> $2.50 | F94: 0 | G94: $ 2.50 | H94: =Tabla1425[[#This Row],[EFECTIVO]]+Tabla1425[[#This Row],[TRANSFERENCIA]] -> $ 2.50 | I94: CANCELADO | J94: =Tabla1425[[#This Row],[VALOR A PAGAR]]-Tabla1425[[#This Row],[VALOR CANCELADO]] -> 0
A95: 2025-08-07 | B95: KORYO | C95: 1 | D95: $ 2.50 | E95: =Tabla1425[[#This Row],[CANT.]]*Tabla1425[[#This Row],[PRECIO UNITARIO]] -> $2.50 | F95: $ 0.50 | G95: $ 2.00 | H95: =Tabla1425[[#This Row],[EFECTIVO]]+Tabla1425[[#This Row],[TRANSFERENCIA]] -> $ 2.50 | I95: CANCELADO | J95: =Tabla1425[[#This Row],[VALOR A PAGAR]]-Tabla1425[[#This Row],[VALOR CANCELADO]] -> 0 | K95: CANCELA CON 1 GAL IMPRESO
A96: 2025-08-07 | B96: YONG TIGER | C96: 1 | D96: $ 2.50 | E96: =Tabla1425[[#This Row],[CANT.]]*Tabla1425[[#This Row],[PRECIO UNITARIO]] -> $2.50 | F96: 0 | G96: $ 2.50 | H96: =Tabla1425[[#This Row],[EFECTIVO]]+Tabla1425[[#This Row],[TRANSFERENCIA]] -> $ 2.50 | I96: CANCELADO | J96: =Tabla1425[[#This Row],[VALOR A PAGAR]]-Tabla1425[[#This Row],[VALOR CANCELADO]] -> 0 | K96: PAGO REALIZADO EL 03-07-2025
A97: 2025-08-07 | B97: MICHAY DO | C97: 13 | D97: $ 2.50 | E97: =Tabla1425[[#This Row],[CANT.]]*Tabla1425[[#This Row],[PRECIO UNITARIO]] -> $32.50 | F97: 0 | G97: $ 32.50 | H97: =Tabla1425[[#This Row],[EFECTIVO]]+Tabla1425[[#This Row],[TRANSFERENCIA]] -> $ 32.50 | I97: CANCELADO | J97: =Tabla1425[[#This Row],[VALOR A PAGAR]]-Tabla1425[[#This Row],[VALOR CANCELADO]] -> 0 | K97: EN DOS PAGOS
A98: 2025-08-08 | B98: FIRST CLASS | C98: 1 | D98: $ 2.50 | E98: =Tabla1425[[#This Row],[CANT.]]*Tabla1425[[#This Row],[PRECIO UNITARIO]] -> $2.50 | F98: 0 | G98: $ 2.50 | H98: =Tabla1425[[#This Row],[EFECTIVO]]+Tabla1425[[#This Row],[TRANSFERENCIA]] -> $ 2.50 | I98: CANCELADO | J98: =Tabla1425[[#This Row],[VALOR A PAGAR]]-Tabla1425[[#This Row],[VALOR CANCELADO]] -> 0 | K98: CANCELA CON 1 GAL IMPRESO
A99: 2025-08-08 | B99: TAE KING'S | C99: 2 | D99: $ 2.50 | E99: =Tabla1425[[#This Row],[CANT.]]*Tabla1425[[#This Row],[PRECIO UNITARIO]] -> $5.00 | F99: 0 | G99: $ 5.00 | H99: =Tabla1425[[#This Row],[EFECTIVO]]+Tabla1425[[#This Row],[TRANSFERENCIA]] -> $ 5.00 | I99: CANCELADO | J99: =Tabla1425[[#This Row],[VALOR A PAGAR]]-Tabla1425[[#This Row],[VALOR CANCELADO]] -> 0 | K99: CANCELA CON 2 GAL'S DIGITALES
A100: 2025-08-12 | B100: BAS PANTHERS | C100: 1 | D100: $ 2.50 | E100: =Tabla1425[[#This Row],[CANT.]]*Tabla1425[[#This Row],[PRECIO UNITARIO]] -> $2.50 | F100: 0 | G100: $ 2.50 | H100: =Tabla1425[[#This Row],[EFECTIVO]]+Tabla1425[[#This Row],[TRANSFERENCIA]] -> $ 2.50 | I100: =IF((E100=H100),"CANCELADO","SALDO PENDIENTE") -> CANCELADO | J100: =Tabla1425[[#This Row],[VALOR A PAGAR]]-Tabla1425[[#This Row],[VALOR CANCELADO]] -> 0 | K100: REIMPRESIÓN
A101: 2025-08-15 | B101: PVM - ROJAS IAN IRON FIST | C101: 17 | D101: $ 2.50 | E101: =Tabla1425[[#This Row],[CANT.]]*Tabla1425[[#This Row],[PRECIO UNITARIO]] -> $42.50 | F101: 0 | G101: $ 42.50 | H101: =Tabla1425[[#This Row],[EFECTIVO]]+Tabla1425[[#This Row],[TRANSFERENCIA]] -> $ 42.50 | I101: CANCELADO | J101: =Tabla1425[[#This Row],[VALOR A PAGAR]]-Tabla1425[[#This Row],[VALOR CANCELADO]] -> 0
A102: 2025-08-16 | B102: KYORUGUI GYM | C102: 12 | D102: $ 2.50 | E102: =Tabla1425[[#This Row],[CANT.]]*Tabla1425[[#This Row],[PRECIO UNITARIO]] -> $30.00 | F102: 0 | G102: $ 30.00 | H102: =Tabla1425[[#This Row],[EFECTIVO]]+Tabla1425[[#This Row],[TRANSFERENCIA]] -> $ 30.00 | I102: CANCELADO | J102: =Tabla1425[[#This Row],[VALOR A PAGAR]]-Tabla1425[[#This Row],[VALOR CANCELADO]] -> 0
A103: 2025-08-18 | B103: HAN KUM DO | C103: 16 | D103: $ 2.50 | E103: =Tabla1425[[#This Row],[CANT.]]*Tabla1425[[#This Row],[PRECIO UNITARIO]] -> $40.00 | F103: 0 | G103: $ 40.00 | H103: =Tabla1425[[#This Row],[EFECTIVO]]+Tabla1425[[#This Row],[TRANSFERENCIA]] -> $ 40.00 | I103: CANCELADO | J103: =Tabla1425[[#This Row],[VALOR A PAGAR]]-Tabla1425[[#This Row],[VALOR CANCELADO]] -> 0
A104: 2025-08-18 | B104: MIKIDO | C104: 14 | D104: $ 2.50 | E104: =Tabla1425[[#This Row],[CANT.]]*Tabla1425[[#This Row],[PRECIO UNITARIO]] -> $35.00 | F104: 0 | G104: $ 35.00 | H104: =Tabla1425[[#This Row],[EFECTIVO]]+Tabla1425[[#This Row],[TRANSFERENCIA]] -> $ 35.00 | I104: CANCELADO | J104: =Tabla1425[[#This Row],[VALOR A PAGAR]]-Tabla1425[[#This Row],[VALOR CANCELADO]] -> 0 | K104: CANCELA CON 5 GAL'S IMPRESOS
A105: 2025-08-18 | B105: ARES | C105: 33 | D105: $ 2.50 | E105: =Tabla1425[[#This Row],[CANT.]]*Tabla1425[[#This Row],[PRECIO UNITARIO]] -> $82.50 | F105: 0 | G105: $ 82.50 | H105: =Tabla1425[[#This Row],[EFECTIVO]]+Tabla1425[[#This Row],[TRANSFERENCIA]] -> $ 82.50 | I105: CANCELADO | J105: =Tabla1425[[#This Row],[VALOR A PAGAR]]-Tabla1425[[#This Row],[VALOR CANCELADO]] -> 0 | K105: EN TRES PAGOS
A106: 2025-08-19 | B106: DRACO | C106: 23 | D106: $ 2.50 | E106: =Tabla1425[[#This Row],[CANT.]]*Tabla1425[[#This Row],[PRECIO UNITARIO]] -> $57.50 | F106: 0 | G106: $ 57.50 | H106: =Tabla1425[[#This Row],[EFECTIVO]]+Tabla1425[[#This Row],[TRANSFERENCIA]] -> $ 57.50 | I106: CANCELADO | J106: =Tabla1425[[#This Row],[VALOR A PAGAR]]-Tabla1425[[#This Row],[VALOR CANCELADO]] -> 0
A107: 2025-08-21 | B107: BORJA'S LIONS | C107: 4 | D107: $ 2.50 | E107: =Tabla1425[[#This Row],[CANT.]]*Tabla1425[[#This Row],[PRECIO UNITARIO]] -> $10.00 | F107: 0 | G107: $ 10.00 | H107: =Tabla1425[[#This Row],[EFECTIVO]]+Tabla1425[[#This Row],[TRANSFERENCIA]] -> $ 10.00 | I107: CANCELADO | J107: =Tabla1425[[#This Row],[VALOR A PAGAR]]-Tabla1425[[#This Row],[VALOR CANCELADO]] -> 0 | K107: CANCELA CON 4 GAL'S IMPRESOS (HACE USO DE SALDO A FAVOR DE $2,50 DEL 11-07-2025)
A108: 2025-08-22 | B108: BORJA'S LIONS | C108: 32 | D108: $ 2.50 | E108: =Tabla1425[[#This Row],[CANT.]]*Tabla1425[[#This Row],[PRECIO UNITARIO]] -> $80.00 | F108: 0 | G108: $ 80.00 | H108: =Tabla1425[[#This Row],[EFECTIVO]]+Tabla1425[[#This Row],[TRANSFERENCIA]] -> $ 80.00 | I108: CANCELADO | J108: =Tabla1425[[#This Row],[VALOR A PAGAR]]-Tabla1425[[#This Row],[VALOR CANCELADO]] -> 0
A109: 2025-08-22 | B109: CIUDAD DE QUITO | C109: 2 | D109: $ 2.50 | E109: =Tabla1425[[#This Row],[CANT.]]*Tabla1425[[#This Row],[PRECIO UNITARIO]] -> $5.00 | F109: 0 | G109: $ 5.00 | H109: =Tabla1425[[#This Row],[EFECTIVO]]+Tabla1425[[#This Row],[TRANSFERENCIA]] -> $ 5.00 | I109: CANCELADO | J109: =Tabla1425[[#This Row],[VALOR A PAGAR]]-Tabla1425[[#This Row],[VALOR CANCELADO]] -> 0
A110: 2025-08-25 | B110: BAEKJUL | C110: 40 | D110: $ 2.50 | E110: =Tabla1425[[#This Row],[CANT.]]*Tabla1425[[#This Row],[PRECIO UNITARIO]] -> $100.00 | F110: 0 | G110: $ 100.00 | H110: =Tabla1425[[#This Row],[EFECTIVO]]+Tabla1425[[#This Row],[TRANSFERENCIA]] -> $ 100.00 | I110: CANCELADO | J110: =Tabla1425[[#This Row],[VALOR A PAGAR]]-Tabla1425[[#This Row],[VALOR CANCELADO]] -> 0 | K110: CANCELA CON 4 GAL'S IMPRESOS
A111: 2025-08-26 | B111: ARES | C111: 1 | D111: $ 2.50 | E111: =Tabla1425[[#This Row],[CANT.]]*Tabla1425[[#This Row],[PRECIO UNITARIO]] -> $2.50 | F111: 0 | G111: $ 2.50 | H111: =Tabla1425[[#This Row],[EFECTIVO]]+Tabla1425[[#This Row],[TRANSFERENCIA]] -> $ 2.50 | I111: CANCELADO | J111: =Tabla1425[[#This Row],[VALOR A PAGAR]]-Tabla1425[[#This Row],[VALOR CANCELADO]] -> 0 | K111: REIMPRESIÓN DE DIPLOMA 6548 Y HACE USO DE SALDO A FAVOR (18-08-2025)
A112: 2025-08-28 | B112: KYORUGUI GYM | C112: 2 | D112: $ 2.50 | E112: =Tabla1425[[#This Row],[CANT.]]*Tabla1425[[#This Row],[PRECIO UNITARIO]] -> $5.00 | F112: 0 | G112: $ 5.00 | H112: =Tabla1425[[#This Row],[EFECTIVO]]+Tabla1425[[#This Row],[TRANSFERENCIA]] -> $ 5.00 | I112: CANCELADO | J112: =Tabla1425[[#This Row],[VALOR A PAGAR]]-Tabla1425[[#This Row],[VALOR CANCELADO]] -> 0
A113: 2025-09-01 | B113: MARCIAL CLUB GRANDA | C113: 1 | D113: $ 2.50 | E113: =Tabla1425[[#This Row],[CANT.]]*Tabla1425[[#This Row],[PRECIO UNITARIO]] -> $2.50 | F113: 0 | G113: $ 2.50 | H113: =Tabla1425[[#This Row],[EFECTIVO]]+Tabla1425[[#This Row],[TRANSFERENCIA]] -> $ 2.50 | I113: CANCELADO | J113: =Tabla1425[[#This Row],[VALOR A PAGAR]]-Tabla1425[[#This Row],[VALOR CANCELADO]] -> 0
A114: 2025-09-05 | B114: LEÓN | C114: 15 | D114: $ 2.50 | E114: =Tabla1425[[#This Row],[CANT.]]*Tabla1425[[#This Row],[PRECIO UNITARIO]] -> $37.50 | F114: 0 | G114: $ 37.50 | H114: =Tabla1425[[#This Row],[EFECTIVO]]+Tabla1425[[#This Row],[TRANSFERENCIA]] -> $ 37.50 | I114: CANCELADO | J114: =Tabla1425[[#This Row],[VALOR A PAGAR]]-Tabla1425[[#This Row],[VALOR CANCELADO]] -> 0
A115: TOTAL | C115: =SUM(C4:C114) -> 1955 | E115: =SUM(Tabla1425[VALOR A PAGAR]) -> $4,887.50 | F115: =SUM(F4:F114) -> $886.00 | G115: =SUM(G4:G114) -> $4,001.50 | H115: =SUM(H4:H114) -> $4,887.50
C116: DIPLOMAS ELABORADOS | E116: A RECAUDARSE | F116: RECAUDADO EN EFECTIVO | G116: RECAUDADO EN TRANSFERENCIA
B119: RECAUDADO | C119: MONTO
B120: EFECTIVO | C120: =F115 -> $886.00
B121: TRANSFERENCIA | C121: =G115 -> $4,001.50
B122: TOTAL | C122: =SUM(C120:C121) -> $4,887.50
B125: POR COBRAR | C125: MONTO
B126: NINGUNO | C126: $0.00
B127: TOTAL | C127: =SUM(C126:C126) -> $0.00
B130: DEVOLVER O HACER PASO | C130: MONTO
B131: =B32 -> TAE DO ACADEMY | C131: $2.50
B132: =B73 -> DRAGON LEE GYM | C132: $13.50
B133: =B96 -> YONG TIGER | C133: $1.50
B134: =B105 -> ARES | C134: $14.00
B135: TOTAL | C135: =SUM(C131:C134) -> $31.50

Sheet FESTIVAL Y SELECTIVO JUNIOR
A1: ASOCIACIÓN DE TAEKWONDO DE PICHINCHA
A2: FESTIVAL DE HABILIDADES MOTRICES Y SELECTIVO JUNIOR
A3: COLISEO "LOS QUITUS" (05 DE ABRIL DEL 2025)
A5: Nº | B5: CLUB | C5: SIGLAS | D5: FESTIVAL | E5: SELECTIVO | F5: PAGO EFECT. | G5: PAGO TRANSF. | H5: ESTADO DE PAGO
A6: 1 | B6: APOLO | C6: APO | D6: 13 | E6: 0 | F6: $208.00 | G6: 0 | H6: PAGADO
A7: 2 | B7: ARES | C7: ARE | D7: 9 | E7: 0 | F7: $74.00 | G7: $70.00 | H7: PAGADO
A8: 3 | B8: ASOCIACION DE TKDP | C8: ASO | D8: 14 | E8: 0 | F8: $176.00 | G8: $22.00 | H8: PAGADO
A9: 4 | B9: BAEKJUL TAEKWONDO | C9: BKJ | D9: 15 | E9: 0 | F9: $240.00 | G9: 0 | H9: PAGADO
A10: 5 | B10: BAEKJUL TEAM AYALAZ | C10: BKJ | D10: 15 | E10: 0 | F10: 0 | G10: $240.00 | H10: PAGADO
A11: 6 | B11: BAS PANTHERS | C11: BSP | D11: 10 | E11: 0 | F11: $160.00 | G11: 0 | H11: PAGADO
A12: 7 | B12: CHAMPIONS FOR LIFE | C12: CFL | D12: 4 | E12: 1 | F12: 0 | G12: $69.00 | H12: PAGADO
A13: 8 | B13: CIUDAD DE QUITO | C13: CDQ | D13: 2 | E13: 2 | F13: $5.00 | G13: $32.00 | H13: PAGADO
A14: 9 | B14: DEBAK TKD | C14: DBK | D14: 10 | E14: 1 | F14: $140.00 | G14: $25.00 | H14: PAGADO
A15: 10 | B15: DRACO | C15: DRA | D15: 8 | E15: 0 | F15: 0 | G15: $128.00 | H15: PAGADO
A16: 11 | B16: FARANG | C16: FRG | D16: 1 | E16: 0 | F16: 0 | G16: $16.00 | H16: PAGADO
A17: 12 | B17: JOSEON LEGACY | C17: JOL | D17: 7 | E17: 0 | F17: 0 | G17: $112.00 | H17: PAGADO
A18: 13 | B18: PIONERO FORTIS | C18: CPF | D18: 5 | E18: 0 | F18: 0 | G18: $80.00 | H18: PAGADO
A19: 14 | B19: SEUL | C19: SEU | D19: 9 | E19: 6 | F19: $10.00 | G19: $164.00 | H19: PAGADO
A20: 15 | B20: SEUL | C20: YEO | D20: 7 | E20: 0 | F20: 0 | G20: $112.00 | H20: PAGADO
A21: 16 | B21: SHOGUN SHOGUN | C21: OHS | D21: 3 | E21: 0 | F21: 0 | G21: $48.00 | H21: PAGADO
A22: 17 | B22: S. D. CENTRAL | C22: SDC | D22: 12 | E22: 0 | F22: $192.00 | G22: 0 | H22: PAGADO
A23: 18 | B23: TOTAL KOMBAT | C23: TKT | D23: 11 | E23: 0 | F23: $80.00 | G23: $96.00 | H23: PAGADO
A24: 19 | B24: BORJA'S LIONS | C24: BLS | D24: 0 | E24: 1 | F24: 0 | G24: 0 | H24: NO PARTICIPA
A25: 20 | B25: DECIAP | C25: DEC | D25: 0 | E25: 1 | F25: 0 | G25: 0 | H25: PASO POR USO SISTEMA
A26: 21 | B26: ILYO. MP | C26: ILY | D26: 0 | E26: 1 | F26: $5.00 | G26: 0 | H26: PAGADO
A27: 22 | B27: KO AMERICA | C27: KOA | D27: 0 | E27: 2 | F27: $10.00 | G27: 0 | H27: PAGADO
A28: 23 | B28: KORYO | C28: KOR | D28: 0 | E28: 1 | F28: $5.00 | G28: 0 | H28: PAGADO
A29: 24 | B29: LEON | C29: LEO | D29: 0 | E29: 1 | F29: 0 | G29: $5.00 | H29: PAGADO
A30: 25 | B30: LOS PUMAS | C30: PUM | D30: 0 | E30: 1 | F30: 0 | G30: $5.00 | H30: PAGADO
A31: 26 | B31: MERCENARIOS | C31: MER | D31: 0 | E31: 2 | F31: $10.00 | G31: 0 | H31: PAGADO
A32: 27 | B32: ROJAS IAN IRON FIST | C32: PVM | D32: 0 | E32: 1 | F32: 0 | G32: 0 | H32: NO PARTICIPA
A33: 28 | B33: TAE BAEK | C33: TBK | D33: 0 | E33: 1 | F33: 0 | G33: $1.00 | H33: PAGADO
A34: 29 | B34: TAE SHO KU | C34: TSK | D34: 0 | E34: 1 | F34: 0 | G34: $5.00 | H34: PAGADO
A35: 30 | B35: USFQ | C35: USF | D35: 0 | E35: 1 | F35: $5.00 | G35: 0 | H35: PAGADO
A36: 31 | B36: YONG TIGER | C36: YON | D36: 0 | E36: 2 | F36: $5.00 | G36: $5.00 | H36: PAGADO
A37: TOTAL | D37: =SUM(D6:D36) -> 155 | E37: =SUM(E6:E36) -> 26 | F37: =SUM(F6:F36) -> $1,325.00 | G37: =SUM(G6:G36) -> $1,235.00 | H37: =SUM(F37:G37) -> $2,560.00
B40: INGRESOS
B41: INSCRIPCIONES EFECTIVO | C41: =F37 -> $ 1,325.00
B42: INSCRIPCIONES TRANSFERENCIA | C42: =G37 -> $ 1,235.00
B43: TAQUILLA | C43: $ 301.00
B44: TOTAL | C44: =SUM(C41:C43) -> $ 2,861.00
B47: EGRESOS
B48: PRODUCTOS DE CAFETERÍA | C48: $ 6.25
B49: COMPRA DE MICRÓFONO Y MOVILIZACIÓN | C49: $ 12.90
B50: TRANSPORTE DE MEDALLAS Y TROFEOS | C50: $ 13.00
B51: TRANSPORTE PETOS ELECTRÓNICOS | C51: $ 16.00
B52: MEDALLAS Y TROFEOS | C52: $ 300.00
B53: PAGO ARBITRAJE | C53: $ 220.00
B54: PAGO STAFF (PERSONAL DE APOYO) | C54: $ 260.00
B55: GLOBOS PARA CIRCUITO DE HABILIDADES MOTRICES | C55: $ 8.00
B56: ALQUILER DE INFLABLE | C56: $ 120.00
B57: ALIMENTACIÓN STAFF (ALMUERZOS) | C57: $ 60.00
B58: PAGO MONTAJE Y DESMONTAJE DE ESCENARIO | C58: $ 40.00
B59: DEVOLUCIÓN GASTOS EXTRAS EN ALIMENTACIÓN CAMPEONATO NACIONAL | C59: $ 135.00
B60: PAGO PENDIENTE EVENTO EN CIUDAD MITAD DEL MUNDO (ALIMENTACIÓN) | C60: $ 210.00
B61: DIRECCIÓN CONGRESILLO - CAMBIOS DE CATEGORÍA - LLAVEAJE | C61: $ 100.00
B62: PAGO STAFF DE BOLETERÍA (2 PERSONAS) | C62: $ 60.00
B63: DIFUSIÓN Y COBERTURA DURANTE EL EVENTO | C63: $ 30.00
B64: TOTAL | C64: =SUM(C48:C63) -> $ 1,591.15
B67: INGRESOS | C67: =C44 -> $ 2,861.00
B68: EGRESOS | C68: =-C64 -> $ (1,591.15)
B69: SALDO | C69: =C67+C68 -> $ 1,269.85

Sheet OPEN DE LA FAMILIA
A1: ASOCIACIÓN DE TAEKWONDO DE PICHINCHA
A2: OPEN POR EL DÍA DE LA FAMILIA
A3: COLISEO "LOS QUITUS" (04 DE MAYO DEL 2025)
A5: Nº | B5: CLUB | C5: SIGLAS | D5: TOTAL | E5: PAREJA/TRÍO | F5: PAGO EFECT. | G5: PAGO TRANSF. | H5: ESTADO DE PAGO
A6: 1 | B6: APOLO | C6: APO | D6: 23 | E6: 10 par 1 trio | F6: 0 | G6: $285.00 | H6: PAGADO
A7: 2 | B7: ARES | C7: ARE | D7: 14 | E7: 7 parejas | F7: 0 | G7: $170.00 | H7: PAGADO
A8: 3 | B8: BAS PANTHERS | C8: BSP | D8: 7 | E8: 2 par 1 trio | F8: $85.00 | G8: 0 | H8: PAGADO
A9: 4 | B9: DOJANG TKD MELO | C9: DTM | D9: 2 | E9: 1 pareja | F9: 0 | G9: $25.00 | H9: PAGADO
A10: 5 | B10: ECUADOR | C10: ECU | D10: 5 | E10: 1 par 1 trio | F10: $60.00 | G10: 0 | H10: PAGADO
A11: 6 | B11: EQUILIBRIO | C11: EQU | D11: 5 | E11: 1 par 1 trio | F11: 0 | G11: $60.00 | H11: PAGADO
A12: 7 | B12: HIMCHARI DOJANG | C12: HIM | D12: 8 | E12: 4 parejas | F12: 0 | G12: $100.00 | H12: PAGADO
A13: 8 | B13: JI TAE | C13: JIT | D13: 5 | E13: 1 par 1 trio | F13: $60.00 | G13: 0 | H13: PAGADO
A14: 9 | B14: MOODUKKWAN T. C. | C14: TTC | D14: 4 | E14: 2 parejas | F14: 0 | G14: $50.00 | H14: PAGADO
A15: 10 | B15: SEUL | C15: SEU | D15: 6 | E15: 3 parejas | F15: 0 | G15: $75.00 | H15: PAGADO
A16: 11 | B16: SEUL | C16: YEO | D16: 2 | E16: 1 pareja | F16: 0 | G16: $25.00 | H16: PAGADO
A17: 12 | B17: S. D . CENTRAL | C17: SDC | D17: 7 | E17: 2 par 1 trio | F17: 0 | G17: $85.00 | H17: PAGADO
A18: 13 | B18: TAEGUK JUCARO | C18: TJD | D18: 2 | E18: 1 pareja | F18: $25.00 | G18: 0 | H18: PAGADO
A19: 14 | B19: TOTAL KOMBAT | C19: TKT | D19: 17 | E19: 7 par 1 trio | F19: 0 | G19: $210.00 | H19: PAGADO
A20: 15 | B20: UE TECNICO SUCRE | C20: JOL | D20: 2 | E20: 1parejas | F20: 0 | G20: $25.00 | H20: PAGADO
A21: 16 | B21: VENOM | C21: VNM | D21: 5 | E21: 1 par1 trio | F21: $60.00 | G21: 0 | H21: PAGADO
A22: TOTAL | D22: =SUM(D6:D21) -> 114 | E22: 43 par 7 trios | F22: =SUM(F6:F21) -> $290.00 | G22: =SUM(G6:G21) -> $1,110.00 | H22: =SUM(F22:G22) -> $1,400.00
B25: INGRESOS
B26: INSCRIPCIONES EFECTIVO | C26: =F22 -> $ 290.00
B27: INSCRIPCIONES TRANSFERENCIA | C27: =G22 -> $ 1,110.00
B28: TAQUILLA | C28: $ 50.00
B29: TOTAL | C29: =SUM(C26:C28) -> $ 1,450.00
B32: EGRESOS
B33: MEDALLAS | C33: $ 120.00
B34: PAGO ARBITRAJE | C34: $ 100.00
B35: PAGO STAFF | C35: $ 110.00
B36: PAGO MONTAJE Y DESMONTAJE DE ESCENARIO | C36: $ 25.00
B37: ELABORACIÓN DE LLAVES | C37: $ 70.00
B38: SISTEMAS DE COMPETENCIA | C38: $ 30.00
B39: MOVILIZACIÓN Y TRANSPORTE | C39: $ 15.00
B40: PAGO POR SISTEMA DE INSCRIPCIÓN A EVENTOS | C40: $ 110.00
B41: ALIMENTACIÓN STAFF (ÁRBITROS Y PERSONAL DE APOYO) | C41: $ 62.00
B42: DIFUSIÓN Y COBERTURA DURANTE EL EVENTO | C42: $ 20.00
B43: TOTAL | C43: =SUM(C33:C42) -> $ 662.00
B46: INGRESOS | C46: =C29 -> $ 1,450.00
B47: EGRESOS | C47: =-C43 -> $ (662.00)
B48: SALDO | C48: =C46+C47 -> $ 788.00

Sheet CAMPEONATO ESCOLAR - COLEGIAL
A1: ASOCIACIÓN DE TAEKWONDO DE PICHINCHA
A2: CAMPEONATO ESCOLAR - COLEGIAL
A3: COLISEO "RUMIÑAHUI" (10 DE MAYO DEL 2025)
A5: Nº | B5: CLUB | C5: SIGLAS | D5: DEPORTISTAS INSCRITOS | E5: CAMBIO DE CATEGORÍA | F5: PAGO EFECT. | G5: PAGO TRANSF. | H5: ESTADO DE PAGO | I5: ENTRENADOR
A6: 1 | B6: UE AIDA GALLEGOS DE MONCAYO | C6: AGM | D6: 1 | E6: 0 | F6: 0 | G6: $15.00 | H6: PAGADO
A7: 2 | B7: U.E.BRETHREN | C7: BRE | D7: 1 | E7: 1 | F7: 0 | G7: $15.00 | H7: PAGADO
A8: 3 | B8: UE 13 DE ABRIL | C8: ABR | D8: 2 | E8: 0 | F8: 0 | G8: $23.00 | H8: PAGADO
A9: 4 | B9: UE ODILO AGUILAR | C9: SEU | D9: 1 | E9: 0 | F9: $15.00 | G9: 0 | H9: PAGADO
A10: 5 | B10: UE ALFRED BINET | C10: AYA | D10: 1 | E10: 0 | F10: 0 | G10: $15.00 | H10: PAGADO
A11: 6 | B11: UE ALFREDO CISNEROS | C11: CIS | D11: 31 | E11: 4 | F11: $75.00 | G11: $410.00 | H11: PAGADO
A12: 7 | B12: UE ALTO CENEPA | C12: BKJ | D12: 4 | E12: 0 | F12: $60.00 | G12: 0 | H12: PAGADO
A13: 8 | B13: UE ALVERNIA | C13: UEA | D13: 2 | E13: 0 | F13: 0 | G13: $30.00 | H13: PAGADO
A14: 9 | B14: UE AMERICA LATINA | C14: BKJ | D14: 1 | E14: 0 | F14: $15.00 | G14: 0 | H14: PAGADO
A15: 10 | B15: UE ANAN | C15: ANA | D15: 1 | E15: 0 | F15: 0 | G15: $15.00 | H15: PAGADO
A16: 11 | B16: UE ANDRES F CORDOVA | C16: AFC | D16: 1 | E16: 0 | F16: 0 | G16: $15.00 | H16: PAGADO
A17: 12 | B17: UE ANDRES F CORDOVA | C17: AFC | D17: 1 | E17: 0 | F17: 0 | G17: $15.00 | H17: PAGADO
A18: 13 | B18: UE ANTONIO FLORES | C18: CAF | D18: 47 | E18: 0 | F18: 0 | G18: $600.00 | H18: PAGADO
A19: 14 | B19: UE AVIACION CIVIL | C19: AVI | D19: 1 | E19: 0 | F19: 0 | G19: $15.00 | H19: PAGADO
A20: 15 | B20: UE CARDENAL ESPINOLA FE Y ALEGRIA | C20: UFA | D20: 2 | E20: 0 | F20: 0 | G20: $23.00 | H20: PAGADO
A21: 16 | B21: UE CARLOS ALVAREZ MINO SUIZO | C21: BKJ | D21: 1 | E21: 0 | F21: $15.00 | G21: 0 | H21: PAGADO
A22: 17 | B22: UE CELIANO MONJE | C22: UCM | D22: 1 | E22: 0 | F22: 0 | G22: $15.00 | H22: PAGADO
A23: 18 | B23: UE CENTRAL TECNICO | C23: UCT | D23: 6 | E23: 0 | F23: 0 | G23: $69.00 | H23: PAGADO
A24: 19 | B24: UE CIUDAD DE BERGEN | C24: CDB | D24: 1 | E24: 0 | F24: 0 | G24: $15.00 | H24: PAGADO
A25: 20 | B25: UE CLUB ARABE ECUATORIANO | C25: BKJ | D25: 2 | E25: 0 | F25: $30.00 | G25: 0 | H25: PAGADO
A26: 21 | B26: UE COLEGIO ABDON CALDERON | C26: BKJ | D26: 3 | E26: 0 | F26: $45.00 | G26: 0 | H26: PAGADO
A27: 22 | B27: UE COLEGIO AMERICANO DE QUITO | C27: AME | D27: 1 | E27: 0 | F27: 0 | G27: $15.00 | H27: PAGADO
A28: 23 | B28: UE COLEGIO FRANCES | C28: FRA | D28: 1 | E28: 0 | F28: 0 | G28: $15.00 | H28: PAGADO
A29: 24 | B29: UE COLEGIO GIOVANNI A FARINA | C29: GAF | D29: 15 | E29: 0 | F29: 0 | G29: $175.00 | H29: PAGADO
A30: 25 | B30: UE COLEGIO GONZAGA | C30: TKG | D30: 10 | E30: 0 | F30: 0 | G30: $207.00 | H30: PAGADO
A31: 26 | B31: UE COLEGIO MILITAR ELOY ALFARO N1 | C31: AYA | D31: 6 | E31: 0 | F31: $53.00 | G31: $30.00 | H31: PAGADO
A32: 27 | B32: UE COLEGIO SURCOS | C32: SUR | D32: 2 | E32: 0 | F32: 0 | G32: $30.00 | H32: PAGADO
A33: 28 | B33: UE CDP - ASO TKD 5 EXONERADOS | C33: CDP | D33: 45 | E33: 0 | F33: $600.00 | G33: 0 | H33: PAGADO
A34: 29 | B34: UE CONSEJO PROVINCIAL DE PICHINCHA | C34: CPP | D34: 73 | E34: 1 | F34: $162.00 | G34: $800.00 | H34: PAGADO
A35: 30 | B35: UE DOCTOR GOLEMAN | C35: GOL | D35: 2 | E35: 0 | F35: 0 | G35: $30.00 | H35: PAGADO
A36: 31 | B36: UE EEBF GUAYAQUIL | C36: UEG | D36: 2 | E36: 0 | F36: $23.00 | G36: 0 | H36: PAGADO
A37: 32 | B37: UE EIGHT ACADEMY | C37: EAC | D37: 8 | E37: 0 | F37: 0 | G37: $92.00 | H37: PAGADO
A38: 33 | B38: UE EL COLEGIO DE LIGA | C38: CDL | D38: 17 | E38: 0 | F38: 0 | G38: $227.00 | H38: PAGADO
A39: 34 | B39: UE EL PARVULARIO 2 PARA TKD | C39: UEP | D39: 2 | E39: 0 | F39: $7.50 | G39: $7.50 | H39: PAGADO
A40: 35 | B40: UE EMAUS FE Y ALEGRIA | C40: EMA | D40: 1 | E40: 0 | F40: 0 | G40: $23.00 | H40: PAGADO
A41: 36 | B41: UE ESCUELA C.D. DE PICHINCHA | C41: AYA | D41: 5 | E41: 0 | F41: 0 | G41: $75.00 | H41: PAGADO
A42: 37 | B42: UE EUFRACIA | C42: EEU | D42: 3 | E42: 0 | F42: 0 | G42: $38.00 | H42: PAGADO | I42: fact 4,5
A43: 38 | B43: UE GARDNER ACADEMY | C43: UEG | D43: 1 | E43: 0 | F43: 0 | G43: $15.00 | H43: PAGADO
A44: 39 | B44: UE GEORGE MASON | C44: GMA | D44: 1 | E44: 0 | F44: 0 | G44: $15.00 | H44: PAGADO
A45: 40 | B45: UE INDIRA GANDHI | C45: IGA | D45: 1 | E45: 0 | F45: 0 | G45: $15.00 | H45: PAGADO
A46: 41 | B46: UE INES GANGOTENA JIJON | C46: IGJ | D46: 24 | E46: 2 | F46: 0 | G46: $370.00 | H46: PAGADO
A47: 42 | B47: UE ING JUAN SUAREZ CHACON | C47: JSC | D47: 1 | E47: 0 | F47: $15.00 | G47: 0 | H47: PAGADO
A48: 43 | B48: UE ISM QUITO | C48: BKJ | D48: 2 | E48: 0 | F48: $30.00 | G48: $15.00 | H48: PAGADO
A49: 44 | B49: UE JACQUES BOSSUET | C49: EJB | D49: 1 | E49: 0 | F49: 0 | G49: 0 | H49: NO VINO
A50: 45 | B50: UE JHON KEYNES | C50: UJK | D50: 4 | E50: 0 | F50: 0 | G50: $60.00 | H50: PAGADO
A51: 46 | B51: UE JOSE MARIA VELASCO IBARRA | C51: UVI | D51: 1 | E51: 0 | F51: 0 | G51: $15.00 | H51: PAGADO
A52: 47 | B52: UE JOSE MARIA VELAZ | C52: JMV | D52: 3 | E52: 0 | F52: 0 | G52: $30.00 | H52: PAGADO
A53: 48 | B53: UE JUAN DE SALINAS | C53: UJS | D53: 1 | E53: 1 | F53: 0 | G53: $20.00 | H53: PAGADO
A54: 49 | B54: UE JUAN PIO MONTUFAR | C54: JPM | D54: 18 | E54: 1 | F54: 0 | G54: $212.00 | H54: PAGADO
A55: 50 | B55: UE JULIO ENRIQUE MORENO | C55: JEM | D55: 2 | E55: 0 | F55: 0 | G55: $30.00 | H55: PAGADO
A56: 51 | B56: UE JUNTA NACIONAL DE LA VIVIENDA | C56: UJV | D56: 3 | E56: 0 | F56: 0 | G56: $45.00 | H56: PAGADO
A57: 52 | B57: UE KARL POOPER VGH | C57: POO | D57: 1 | E57: 0 | F57: 0 | G57: $17.00 | H57: PAGADO
A58: 53 | B58: UE LA CONDAMINE | C58: CON | D58: 1 | E58: 0 | F58: 0 | G58: $15.00 | H58: PAGADO
A59: 54 | B59: UE LA PROVIDENCIA | C59: AYA | D59: 1 | E59: 0 | F59: 0 | G59: $15.00 | H59: PAGADO
A60: 55 | B60: UE LA SALLE CONOCOTO | C60: SAL | D60: 1 | E60: 0 | F60: 0 | G60: $15.00 | H60: PAGADO
A61: 56 | B61: UE LAS ABEJITAS DEL SUR | C61: AYA | D61: 1 | E61: 0 | F61: 0 | G61: $15.00 | H61: PAGADO
A62: 57 | B62: UE LEV VYGOTSKY | C62: LVY | D62: 1 | E62: 0 | F62: 0 | G62: $15.00 | H62: PAGADO
A63: 58 | B63: UE LICEO MATOVELLE | C63: ULM | D63: 2 | E63: 0 | F63: $30.00 | G63: 0 | H63: PAGADO
A64: 59 | B64: UE LICEO NAVAL QUITO | C64: LNQ | D64: 35 | E64: 2 | F64: 0 | G64: $544.00 | H64: PAGADO
A65: 60 | B65: UE LICEO ORTEGA Y GASSET | C65: LOG | D65: 4 | E65: 0 | F65: 0 | G65: $30.00 | H65: PAGADO
A66: 61 | B66: UE LICEO POLICIAL | C66: POL | D66: 1 | E66: 0 | F66: 0 | G66: $15.00 | H66: PAGADO
A67: 62 | B67: UE LOS PINOS | C67: LPN | D67: 2 | E67: o | F67: $15.00 | G67: $15.00 | H67: PAGADO
A68: 63 | B68: UE LUIGI GALVANI | C68: SEU | D68: 1 | E68: 0 | F68: $15.00 | G68: 0 | H68: PAGADO
A69: 64 | B69: UE LUIS FELIPE DE ALCAZAR | C69: LFA | D69: 3 | E69: 0 | F69: $30.00 | G69: 0 | H69: PAGADO
A70: 65 | B70: UE LUIS FRELIPE BORJA | C70: LFB | D70: 1 | E70: 0 | F70: 0 | G70: $15.00 | H70: PAGADO
A71: 66 | B71: UE MANUELA SAENZ AIZPURU | C71: MSA | D71: 31 | E71: 0 | F71: 0 | G71: $465.00 | H71: PAGADO
A72: 67 | B72: UE MARTIN CERERE | C72: MCE | D72: 1 | E72: 1 | F72: 0 | G72: $20.00 | H72: PAGADO
A73: 68 | B73: UE MASLOW | C73: MSL | D73: 1 | E73: 0 | F73: 0 | G73: $15.00 | H73: PAGADO
A74: 69 | B74: UE MAURICE RAVELL | C74: MRV | D74: 2 | E74: 0 | F74: 0 | G74: $23.00 | H74: PAGADO
A75: 70 | B75: UE MIGUEL DE UNAMUNO | C75: AYA | D75: 1 | E75: 0 | F75: 0 | G75: $15.00 | H75: PAGADO
A76: 71 | B76: UE MITAD DEL MUNDO | C76: UMM | D76: 31 | E76: 0 | F76: 0 | G76: $465.00 | H76: PAGADO
A77: 72 | B77: UE MUNICIPAL CALDERON | C77: BKJ | D77: 2 | E77: 0 | F77: $30.00 | G77: 0 | H77: PAGADO
A78: 73 | B78: UE MUNICIPAL MILENIO BICENTENARIO | C78: BIC | D78: 15 | E78: 2 | F78: 0 | G78: $235.00 | H78: PAGADO
A79: 74 | B79: UE NAVARRA | C79: NAV | D79: 3 | E79: 0 | F79: 0 | G79: $45.00 | H79: PAGADO
A80: 75 | B80: UE NUEVA AURORA | C80: DMA | D80: 1 | E80: 0 | F80: 0 | G80: $15.00 | H80: PAGADO
A81: 76 | B81: UE NUEVA AURORA | C81: NAU | D81: 3 | E81: 0 | F81: 0 | G81: $30.00 | H81: PAGADO
A82: 77 | B82: UE OSWALDO GUAYASAMIN | C82: AYA | D82: 2 | E82: 0 | F82: 0 | G82: $30.00 | H82: PAGADO
A83: 78 | B83: UE POMASQUI | C83: POM | D83: 1 | E83: 0 | F83: 0 | G83: 0 | H83: PENDIENTE | I83: Edison R
A84: 79 | B84: UE RED ACADEMY | C84: RED | D84: 3 | E84: 0 | F84: 0 | G84: $45.00 | H84: PAGADO
A85: 80 | B85: UE REPLICA MONTUFAR | C85: MON | D85: 9 | E85: 0 | F85: 0 | G85: $135.00 | H85: PAGADO
A86: 81 | B86: UE REPUBLICA DE ITALIA | C86: UEI | D86: 1 | E86: 0 | F86: 0 | G86: $15.00 | H86: PAGADO
A87: 82 | B87: UE REPUBLICA FEDERAL ALEMANIA | C87: SEU | D87: 1 | E87: 0 | F87: $15.00 | G87: 0 | H87: PAGADO
A88: 83 | B88: UE REPUBLICA FEDERAL SUIZA | C88: BKJ | D88: 1 | E88: 0 | F88: $15.00 | G88: 0 | H88: PAGADO
A89: 84 | B89: UE SAGRADOS CORAZONE RUMIPAMBA | C89: RUM | D89: 11 | E89: 0 | F89: 0 | G89: $211.00 | H89: PAGADO
A90: 85 | B90: UE SAINT DOMINI SCHOOL | C90: SDM | D90: 1 | E90: 0 | F90: 0 | G90: $15.00 | H90: PAGADO
A91: 86 | B91: UE SAINT PATRICK SCHOOL | C91: SPS | D91: 1 | E91: 0 | F91: $15.00 | G91: 0 | H91: PAGADO
A92: 87 | B92: UE SALESIANA DON BOSCO | C92: DBT | D92: 1 | E92: 0 | F92: 0 | G92: 0 | H92: NO VINO
A93: 88 | B93: UE SAN VICENTE DE PAUL | C93: VCP | D93: 1 | E93: 1 | F93: $10.00 | G93: $10.00 | H93: PAGADO
A94: 89 | B94: UE SANTO TOMAS DE AQUINO | C94: STA | D94: 1 | E94: 0 | F94: 0 | G94: $15.00 | H94: PAGADO
A95: 90 | B95: UE SAUL O | C95: BKJ | D95: 1 | E95: 0 | F95: $15.00 | G95: 0 | H95: PAGADO | M95: 0
A96: 91 | B96: UE SAUL O | C96: UES | D96: 1 | E96: 0 | F96: $15.00 | G96: 0 | H96: PAGADO
A97: 92 | B97: UE SEBASTIAN DE BENALCAZAR | C97: BEN | D97: 24 | E97: 4 | F97: 0 | G97: $380.00 | H97: PAGADO
A98: 93 | B98: UE SEMIONOVYCH | C98: SEM | D98: 2 | E98: 0 | F98: 0 | G98: $15.00 | H98: PAGADO
A99: 94 | B99: UE SIMON BOLIVAR | C99: CSB | D99: 4 | E99: 0 | F99: 0 | G99: $60.00 | H99: PAGADO
A100: 95 | B100: UE TECNICO SUCRE | C100: SUC | D100: 78 | E100: 1 | F100: 0 | G100: $1,175.00 | H100: PAGADO
A101: 96 | B101: UE WILLIAM CAXTON | C101: BKJ | D101: 1 | E101: 0 | F101: $15.00 | G101: 0 | H101: PAGADO
A102: 97 | B102: UE WILLIAM CAXTON | C102: CAX | D102: 1 | E102: 0 | F102: 0 | G102: $15.00 | H102: PAGADO
A103: 98 | B103: UE WILLIAM CAXTON | C103: SEU | D103: 3 | E103: 0 | F103: 0 | G103: $45.00 | H103: PAGADO
A104: TOTAL | D104: =SUM(D6:D103) -> 662 | E104: =SUM(E6:E103) -> 21 | F104: =SUM(F6:F103) -> $1,365.50 | G104: =SUM(G6:G103) -> $8,101.50 | H104: =F104+G104 -> $9,467.00
B107: INGRESOS
B108: INSCRIPCIONES EFECTIVO | C108: =F104 -> $ 1,365.50
B109: INSCRIPCIONES TRANSFERENCIA | C109: =G104 -> $ 8,101.50
B110: TAQUILLA | C110: $ 933.00
B111: TOTAL | C111: =SUM(C108:C110) -> $ 10,400.00
B114: EGRESOS
B115: DEVOLUCIÓN PAGO DE INSCRIPCIÓN (CANCELA UN VALOR MAYOR) | C115: $ 21.00
B116: PAGO ARBITRAJE | C116: $ 1,520.00
B117: AGUA STAFF (ÁRBITROS Y P. APOYO) | C117: $ 20.81
B118: COMPRA DE PRODUCTOS DE LIMPIEZA | C118: $ 17.01
B119: ORGANIZACIÓN Y DIRECCIÓN DEL EVENTO | C119: $ 120.00
B120: ALIMENTACIÓN STAFF (DESAYUNO) | C120: $ 87.50
B121: ALIMENTACIÓN STAFF (ALMUERZO) | C121: $ 81.00
B122: PAGO POR SISTEMA DE INSCRIPCIÓN A EVENTOS | C122: $ 553.30
B123: PAGO IMPRESIÓN DE BOLETOS PARA EXHIBICIÓN | C123: $ 342.00
B124: SISTEMAS DE COMPETENCIA | C124: $ 80.00
B125: APOYO Y MANEJO DE SISTEMA DE COMPETENCIA | C125: $ 30.00
B126: ALQUILER DE TELEVISOR | C126: $ 60.00
B127: DIRECCIÓN CONGRESILLO - CAMBIOS DE CATEGORÍA - LLAVEAJE | C127: $ 170.00
B128: ALQUILER DE COMPUTADORAS PARA EVENTO | C128: $ 40.00
B129: MEDALLAS | C129: $ 580.00
B130: TROFEOS | C130: $ 250.00
B131: ALQUILER DE SISTEMAS DE POOMSAE Y ARBITRAJE (ÁNGELO CORDERO) | C131: $ 115.00
B132: ALQUILER DE SISTEMAS DE POOMSAE Y ARBITRAJE (DUAN YUXI) | C132: $ 100.00
B133: IMPRESIÓN DE STICKER PARA MEDALLAS (250) | C133: $ 62.50
B134: SONIDO Y AMPLIFICACIÓN EN EVENTO | C134: $ 150.00
B135: PERSONAL MÉDICO (3) | C135: $ 130.00
B136: PAGO MONTAJE Y DESMONTAJE DE ESCENARIO Y FLETES | C136: $ 150.00
B137: DIFUSIÓN Y COBERTURA DURANTE EL EVENTO | C137: $ 30.00
B138: DIRECCIÓN Y ORGANIZACIÓN DE CIRCUITO DE HABILIDADES | C138: $ 40.00
B139: LIMPIEZA DE BAÑOS Y ESCENARIO | C139: $ 30.00
B140: PAGO STAFF DE BOLETERÍA (2 PERSONAS) | C140: $ 60.00
B141: PAGO STAFF (PERSONAL DE APOYO) | C141: $ 370.00
B142: TOTAL | C142: =SUM(C115:C141) -> $ 5,210.12
B145: INGRESOS | C145: =C111 -> $ 10,400.00
B146: EGRESOS | C146: =-C142 -> $ (5,210.12)
B147: SALDO | C147: =C145+C146 -> $ 5,189.88
B150: POR COBRAR
B151: CLUB | C151: VALOR
B152: =B83 -> UE POMASQUI | C152: $ 15.00
B153: TOTAL | C153: =SUBTOTAL(9,C152:C152) -> $ 15.00

Sheet II OPEN INT NOV AVA POOM
A1: ASOCIACIÓN DE TAEKWONDO DE PICHINCHA
A2: II OPEN NOVATOS - INTERMEDIOS COMBATE Y POOMSAE - PRIMER OPEN POOMSAE AVANZADO
A3: COLISEO "RUMIÑAHUI" 5Y6-07-2025
A5: Nº | B5: CLUB | C5: SIGLAS | D5: NOVAT-INTERM COMB-POOM | E5: POOMSAE AVANZADO | F5: CAMBIO DE CATEGORÍA | G5: INSCRIP. TARDÍA | H5: PAGO EFECT. | I5: PAGO TRANSF. | J5: TOTAL | K5: ESTADO DE PAGO
A6: 1 | B6: APOLO | C6: APO | D6: 9 | E6: - | F6: - | G6: 1 | H6: 0 | I6: $148.00 | J6: =H6+I6 -> $148.00 | K6: PAGADO
A7: 2 | B7: APOLO | C7: APO | D7: 31 | E7: 2 | F7: 1 | G7: - | H7: 0 | I7: $533.00 | J7: $533.00 | K7: PAGADO
A8: 3 | B8: ARES | C8: ARE | D8: 23 | E8: 1 | F8: - | G8: - | H8: $384.00 | I8: 0 | J8: $384.00 | K8: PAGADO
A9: 4 | B9: ASOCIACION DE TKDP | C9: ASO | D9: 18 | E9: - | F9: 3 | G9: - | H9: $287.00 | I9: 0 | J9: $287.00 | K9: PAGADO
A10: 5 | B10: ATLAS | C10: ATL | D10: 9 | E10: - | F10: - | G10: - | H10: 0 | I10: $144.00 | J10: $144.00 | K10: PAGADO
A11: 6 | B11: BAEKJUL AYALA | C11: BKJ | D11: 25 | E11: - | F11: - | G11: - | H11: 0 | I11: $400.00 | J11: $400.00 | K11: PAGADO
A12: 7 | B12: BAEKJUL TAEKWONDO | C12: BKJ | D12: 17 | E12: - | F12: - | G12: - | H12: $272.00 | I12: 0 | J12: $272.00 | K12: PAGADO
A13: 8 | B13: BAEKJUL FERNANDEZ | C13: BKJ | D13: 8 | E13: - | F13: 1 | G13: - | H13: 0 | I13: $133.00 | J13: $133.00 | K13: PAGADO
A14: 9 | B14: BAS PANTHERS | C14: BSP | D14: 10 | E14: - | F14: 1 | G14: 1 | H14: 0 | I14: $169.00 | J14: $169.00 | K14: PAGADO
A15: 10 | B15: BLUE DRAGONS | C15: BDR | D15: 19 | E15: - | F15: 3 | G15: - | H15: 0 | I15: $319.00 | J15: $319.00 | K15: PAGADO
A16: 11 | B16: BORJA’S LIONS | C16: BLS | D16: 47 | E16: - | F16: 1 | G16: - | H16: 0 | I16: $757.00 | J16: $757.00 | K16: PAGADO
A17: 12 | B17: CHAMPIONS FOR LIFE | C17: CFL | D17: 13 | E17: - | F17: - | G17: 2 | H17: 0 | I17: $216.00 | J17: $216.00 | K17: PAGADO
A18: 13 | B18: CHUNG SONG | C18: CHS | D18: 21 | E18: - | F18: 1 | G18: 3 | H18: 0 | I18: $353.00 | J18: $353.00 | K18: PAGADO
A19: 14 | B19: CIUDAD DE QUITO | C19: CDQ | D19: 5 | E19: 1 | F19: - | G19: - | H19: 0 | I19: $96.00 | J19: $96.00 | K19: PAGADO
A20: 15 | B20: CLUB YONG TIGER ELITE | C20: YON | D20: 7 | E20: 1 | F20: - | G20: - | H20: $10.00 | I20: $70.00 | J20: $80.00 | K20: DEBE 48
A21: 16 | B21: CLUB HAN KUM DO | C21: HKD | D21: 16 | E21: - | F21: - | G21: - | H21: 0 | I21: $256.00 | J21: $256.00 | K21: PAGADO
A22: 17 | B22: CLUB JOSEON LEGACY 2 | C22: JOL | D22: 25 | E22: 1 | F22: 1 | G22: - | H22: 0 | I22: $391.00 | J22: $391.00 | K22: PAGADO
A23: 18 | B23: DEBAK TKD | C23: DBK | D23: 61 | E23: 13 | F23: - | G23: - | H23: 0 | I23: 0 | J23: 0 | K23: PAGADO
A24: 19 | B24: DOJANG TKD MELO | C24: DTM | D24: 9 | E24: 1 | F24: - | G24: - | H24: 0 | I24: $160.00 | J24: $160.00 | K24: PAGADO
A25: 20 | B25: DRACO | C25: DRA | D25: 7 | E25: - | F25: 1 | G25: 7 | H25: 0 | I25: $145.00 | J25: $145.00 | K25: PAGADO
A26: 21 | B26: ECUADCUBA | C26: ECB | D26: 31 | E26: - | F26: - | G26: 1 | H26: $500.00 | I26: 0 | J26: $500.00 | K26: PAGADO
A27: 22 | B27: ECUADOR | C27: ECU | D27: 3 | E27: - | F27: - | G27: - | H27: 0 | I27: $48.00 | J27: $48.00 | K27: PAGADO
A28: 23 | B28: ESPE | C28: ESP | D28: 14 | E28: - | F28: 1 | G28: 1 | H28: 0 | I28: $233.00 | J28: $233.00 | K28: PAGADO
A29: 24 | B29: FURIA NEGRA | C29: CFN | D29: 7 | E29: - | F29: - | G29: - | H29: 0 | I29: $112.00 | J29: $112.00 | K29: PAGADO
A30: 25 | B30: GOYANG-IDEUL | C30: AGI | D30: 3 | E30: - | F30: 3 | G30: - | H30: 0 | I30: $66.00 | J30: $66.00 | K30: PAGADO
A31: 26 | B31: ILYO M.P | C31: ILY | D31: 9 | E31: - | F31: 3 | G31: 2 | H31: 0 | I31: $167.00 | J31: $167.00 | K31: PAGADO
A32: 27 | B32: JERATHEL | C32: JER | D32: 3 | E32: 1 | F32: - | G32: - | H32: 0 | I32: $64.00 | J32: $64.00 | K32: PAGADO
A33: 28 | B33: KO AMERICA | C33: KOA | D33: 34 | E33: - | F33: 4 | G33: 1 | H33: $118.00 | I33: $450.00 | J33: $568.00 | K33: PAGADO
A34: 29 | B34: KOREAN DRAGON | C34: KDR | D34: 10 | E34: - | F34: - | G34: - | H34: 0 | I34: $160.00 | J34: $160.00 | K34: PAGADO
A35: 30 | B35: KUKKIWON | C35: KUK | D35: 8 | E35: - | F35: 3 | G35: 1 | H35: $147.00 | I35: 0 | J35: $147.00 | K35: PAGADO
A36: 31 | B36: KUMGANG DUL | C36: KGD | D36: 5 | E36: - | F36: - | G36: - | H36: 0 | I36: $80.00 | J36: $80.00 | K36: PAGADO
A37: 32 | B37: KYORUGUI GYM | C37: KRG | D37: 18 | E37: - | F37: 2 | G37: 2 | H37: 0 | I37: $306.00 | J37: $306.00 | K37: PAGADO
A38: 33 | B38: LEON | C38: LEO | D38: 24 | E38: - | F38: 3 | G38: 2 | H38: $147.00 | I38: $260.00 | J38: =H38+I38 -> $407.00 | K38: PAGADO
A39: 34 | B39: LIGA CANTONAL DE MEJÍA | C39: LCM | D39: 6 | E39: - | F39: - | G39: 1 | H39: $100.00 | I39: 0 | J39: $100.00 | K39: PAGADO
A40: 35 | B40: LOS PUMAS | C40: PUM | D40: 25 | E40: - | F40: 2 | G40: - | H40: 0 | I40: $410.00 | J40: $410.00 | K40: PAGADO
A41: 36 | B41: MARCIAL CLUB GRANDA | C41: MCG | D41: 13 | E41: - | F41: - | G41: - | H41: 0 | I41: $208.00 | J41: $208.00 | K41: PAGADO
A42: 37 | B42: MERCENARIOS | C42: MER | D42: 12 | E42: - | F42: - | G42: - | H42: 0 | I42: $192.00 | J42: $192.00 | K42: PAGADO
A43: 38 | B43: MICHAYDO | C43: MCD | D43: 5 | E43: - | F43: 2 | G43: - | H43: 0 | I43: $90.00 | J43: $90.00 | K43: PAGADO
A44: 39 | B44: MINOTAUROS ECU | C44: MIN | D44: 12 | E44: - | F44: - | G44: - | H44: 0 | I44: $192.00 | J44: $192.00 | K44: PAGADO
A45: 40 | B45: MOODUKKWAN TRAINING 2-4 | C45: TTC | D45: 22 | E45: 11 | F45: - | G45: 1 | H45: 0 | I45: $508.00 | J45: $508.00 | K45: PAGADO
A46: 41 | B46: MSA GRAND MASTER | C46: MSA | D46: 2 | E46: - | F46: - | G46: - | H46: 0 | I46: $32.00 | J46: $32.00 | K46: PAGADO
A47: 42 | B47: PYONGYANG | C47: PYO | D47: 11 | E47: - | F47: - | G47: - | H47: 0 | I47: $198.00 | J47: $198.00 | K47: PAGADO
A48: 43 | B48: ROJAS IAN IRON FIST Susana | C48: PVM | D48: 10 | E48: - | F48: - | G48: - | H48: 0 | I48: $160.00 | J48: $160.00 | K48: PAGADO
A49: 44 | B49: SAN FRANCISCO TIGRES | C49: SFT | D49: 9 | E49: 3 | F49: - | G49: - | H49: $192.00 | I49: 0 | J49: $192.00 | K49: PAGADO
A50: 45 | B50: SAN SEBASTIAN | C50: SSB | D50: 17 | E50: 2 | F50: - | G50: - | H50: $32.00 | I50: $256.00 | J50: $288.00 | K50: PAGADO
A51: 46 | B51: SEUL | C51: SEU | D51: 1 | E51: - | F51: - | G51: - | H51: 0 | I51: $18.00 | J51: $18.00 | K51: PAGADO
A52: 47 | B52: SHOGUN | C52: OHS | D52: 14 | E52: 1 | F52: - | G52: - | H52: 0 | I52: $240.00 | J52: $240.00 | K52: PAGADO
A53: 48 | B53: S.D.CENTRAL | C53: SDC | D53: 45 | E53: - | F53: 4 | G53: 9 | H53: $200.00 | I53: $569.00 | J53: $769.00 | K53: PAGADO
A54: 49 | B54: SURYUN | C54: SRY | D54: 26 | E54: - | F54: - | G54: 9 | H54: $100.00 | I54: $352.00 | J54: $452.00 | K54: PAGADO
A55: 50 | B55: TAE BAEK | C55: TBK | D55: 2 | E55: - | F55: 1 | G55: - | H55: 0 | I55: $44.00 | J55: $44.00 | K55: PAGADO
A56: 51 | B56: TAE BAEK JUNIOR | C56: TBK | D56: 4 | E56: - | F56: - | G56: - | H56: 0 | I56: $64.00 | J56: $64.00 | K56: PAGADO
A57: 52 | B57: TAE SHO KU | C57: TSK | D57: 3 | E57: 2 | F57: - | G57: - | H57: 0 | I57: $80.00 | J57: $80.00 | K57: PAGADO
A58: 53 | B58: TAEGUK JUCARO | C58: TJD | D58: 8 | E58: 1 | F58: - | G58: 3 | H58: 0 | I58: $156.00 | J58: $156.00 | K58: PAGADO
A59: 54 | B59: TOTAL KOMBAT | C59: TKT | D59: 15 | E59: - | F59: - | G59: - | H59: $20.00 | I59: $220.00 | J59: $240.00 | K59: PAGADO
A60: 55 | B60: UNIVERSIDAD UTE | C60: UTE | D60: 8 | E60: - | F60: - | G60: - | H60: 0 | I60: $128.00 | J60: $128.00 | K60: PAGADO
A61: 56 | B61: RYONG TAE | C61: RYT | D61: 0 | E61: 1 | F61: - | G61: - | H61: $16.00 | I61: 0 | J61: $16.00 | K61: PAGADO
A62: TOTAL | D62: =SUM(D6:D61) -> 819 | E62: 42 | F62: 41 | G62: 47 | H62: $2,525.00 | I62: $10,353.00 | J62: $12,878.00
B64: INGRESOS
B65: INSCRIPCIONES EFECTIVO + TRANSFERENCIA | C65: =J62 -> $ 12,878.00
B66: TAQUILLA | C66: $ 1,307.00
B67: TOTAL | C67: =SUM(C65:C66) -> $ 14,185.00
B70: EGRESOS
B71: TRANSPORTE (MEDALLAS Y TROFEOS) | C71: $ 30.00
B72: DEVOLUCIÓN IVA POR FACTURA DE ÁRBITROS (PROF. JONATHAN CHICAIZA) | C72: $ 326.00
B73: PAGO ARBITRAJE | C73: $ 2,060.00
B74: TROFEOS - MEDALLAS | C74: $ 1,260.00
B75: ALIMENTACIÓN STAFF (DESAYUNO Y ALMUERZO ÁRBITROS Y PERSONAL DE APOYO) | C75: $ 460.00
B76: PAGO STAFF | C76: $ 595.00
B77: PAGO POR SISTEMA DE INSCRIPCIÓN A EVENTOS (DE 2 COMPETENCIAS) | C77: $ 1,133.00
B78: COLABORACIÓN PARA DEPORTISTAS JUEGOS NACIONALES | C78: $ 103.50
B79: TRANSPORTE JUEGOS NACIONALES APOYO TÉCNICO PROF. WILSON RODRÍGUEZ | C79: $ 30.00
B80: TROFEOS (2)- MEDALLAS PARA COMPLETAR PREMIACIÓN GENERAL | C80: $ 26.00
B81: SERVICIO DE AMBULACIA DURANTE EL EVENTO | C81: $ 200.00
B82: ELABORACIÓN DE LLAVES Y 2 DÍAS DE TRABAJO FERNANDO MOYA | C82: $ 410.00
B83: DIRECCIÓN Y ORGANIZACIÓN DE CONGRESILLO | C83: $ 230.00
B84: COLABORACIÓN PARA HABILITAR DEPORTISTAS EN LA WEB ASOTKDP | C84: $ 118.50
B85: SISTEMAS DE COMPETENCIA Y CERTIFICADOS (COPA COREA) | C85: $ 136.00
B86: AGUA Y PRODUCTOS DE LIMPIEZA | C86: $ 22.38
B87: CINTAS PARA DIVISIÓN DE ÁREA DE COMPETENCIA EN TATAMI | C87: $ 13.00
B88: PRODUCTOS DE LIMPIEZA (DÍA 2) | C88: $ 24.65
B89: GASTOS VARIOS PARA REFRIGERIOS DURANTE EVENTO | C89: $ 12.00
B90: DIFUSIÓN Y COBERTURA DURANTE EL EVENTO | C90: $ 60.00
B91: ALQUILER DE TELEVISOR | C91: $ 20.00
B92: PAGO STAFF DE BOLETERÍA (2 PERSONAS) | C92: $ 60.00
B93: PAGO MONTAJE Y DESMONTAJE DE ESCENARIO Y FLETES | C93: $ 210.00
B94: SONIDO Y AMPLIFICACIÓN EN EVENTO | C94: $ 250.00
B95: SERVICIO DE LIMPIEZA (BAÑOS Y COLISEO) | C95: $ 180.00
B96: ORGANIZACIÓN Y DIRECCIÓN DEL EVENTO | C96: $ 100.00
B97: GASTOS VARIOS POR ORGANIZACIÓN Y DIRECCIÓN DEL EVENTO | C97: $ 40.00
B98: TOTAL | C98: =SUM(C71:C97) -> $ 8,110.03
B102: INGRESOS | C102: =C67 -> $ 14,185.00
B103: EGRESOS | C103: =-C98 -> $ (8,110.03)
B104: SALDO | C104: =C102+C103 -> $ 6,074.97
B107: POR COBRAR
B108: CLUB | C108: VALOR
B109: YONG TIGER | C109: $ 48.00
B110: TOTAL | C110: =SUBTOTAL(9,C109:C109) -> $ 48.00

Sheet ACTUALIZACIÓN DE ARBITRAJE
A1: ASOCIACIÓN DE TAEKWONDO DE PICHINCHA
A2: CURSO DE ACTUALIZACIÓN DE ARBITRAJE DE COMBATE
A3: INSTALACIONES ASOTKD - P (18-19 DE JULIO DEL 2025)
A5: N° | B5: NOMBRE APELLIDO | C5: CLUB | D5: CARGO | E5: PAGO EFECT. | F5: PAGO TRANSF. | G5: ESTADO DEL PAGO
A6: 1 | B6: ELY ALVARADO | C6: APOLO | D6: ENTRENADOR CLUB FILIAL | E6: $15.00 | F6: 0 | G6: PAGADO
A7: 2 | B7: EDISON GUALLICHICO | C7: APOLO | D7: ENTRENADOR CLUB FILIAL | E7: 0 | F7: $15.00 | G7: PAGADO
A8: 3 | B8: MARIO PINTO | C8: APOLO | D8: DIRECTOR CLUB FILIAL | E8: $15.00 | F8: 0 | G8: PAGADO
A9: 4 | B9: JONATHAN GUALLICHICO | C9: APOLO | D9: MONITOR CLUB FILIAL | E9: 0 | F9: $15.00 | G9: PAGADO
A10: 5 | B10: ALEJANDRO ARAUJO | C10: ARES | D10: ARBITRO | E10: $15.00 | F10: 0 | G10: PAGADO
A11: 6 | B11: CARLOS MAGALLANES | C11: ASO. TKDP | D11: ENTRENADOR CLUB FILIAL | E11: 0 | F11: 0 | G11: PENDIENTE
A12: 7 | B12: ALISON MESIAS | C12: ATLAS CLUB | D12: ARBITRO | E12: 0 | F12: $15.00 | G12: PAGADO
A13: 8 | B13: JONATHAN CHICAIZA | C13: ATLAS CLUB | D13: ARBITRO | E13: $15.00 | F13: 0 | G13: PAGADO
A14: 9 | B14: KEVIN ROSADO | C14: ATLAS CLUB | D14: ARBITRO | E14: 0 | F14: 0 | G14: PENDIENTE
A15: 10 | B15: XAVIER VARELA | C15: ATLAS CLUB | D15: ARBITRO | E15: 0 | F15: 0 | G15: EXONERADO
A16: 11 | B16: KELLY GALLARDO | C16: ATLAS CLUB | D16: ARBITRO | E16: 0 | F16: $15.00 | G16: PAGADO
A17: 12 | B17: IÑAKI GUJARRO | C17: BAEKJUL JORGE | D17: MONITOR CLUB FILIAL | E17: $15.00 | F17: 0 | G17: PAGADO
A18: 13 | B18: NOEMI BURBANO DE LARA | C18: BAEKJUL JORGE | D18: MONITOR CLUB FILIAL | E18: $15.00 | F18: 0 | G18: PAGADO
A19: 14 | B19: JOSWAL FLORES | C19: BAEKJUL JORGE | D19: MONITOR CLUB FILIAL | E19: $15.00 | F19: 0 | G19: PAGADO
A20: 15 | B20: JORGE GUAÑUNA | C20: BAEKJUL JORGE | D20: MONITOR CLUB FILIAL | E20: $15.00 | F20: 0 | G20: PAGADO
A21: 16 | B21: ESTEFANIA GUAÑUNA | C21: BAEKJUL JORGE | D21: MONITOR CLUB FILIAL | E21: $15.00 | F21: 0 | G21: PAGADO
A22: 17 | B22: ANGEL FLORES | C22: BAEKJUL JORGE | D22: MONITOR CLUB FILIAL | E22: $15.00 | F22: 0 | G22: PAGADO
A23: 18 | B23: SCARLETH CHAVEZ | C23: BAEKJUL JORGE | D23: MONITOR CLUB FILIAL | E23: $15.00 | F23: 0 | G23: PAGADO
A24: 19 | B24: ALEX VIANA | C24: BAEKJUL JORGE | D24: MONITOR CLUB FILIAL | E24: $15.00 | F24: 0 | G24: PAGADO
A25: 20 | B25: JOHANN PROAÑO | C25: BAEKJUL JORGE | D25: ENTRENADOR CLUB FILIAL | E25: $15.00 | F25: 0 | G25: PAGADO
A26: 21 | B26: ERICK PROAÑO | C26: BAEKJUL JORGE | D26: ENTRENADOR CLUB FILIAL | E26: $15.00 | F26: 0 | G26: PAGADO
A27: 22 | B27: PAULA CABEZAS | C27: BAEKJUL JORGE | D27: MONITOR CLUB FILIAL | E27: $15.00 | F27: 0 | G27: PAGADO
A28: 23 | B28: DERLY PINTO | C28: BAEKJUL AYALA | D28: OYENTE | E28: 0 | F28: $15.00 | G28: PAGADO
A29: 24 | B29: JEREMY BERMEO | C29: BAEKJUL AYALA | D29: OYENTE | E29: 0 | F29: $15.00 | G29: PAGADO
A30: 25 | B30: DANIEL AYALA | C30: BAEKJUL AYALA | D30: ENTRENADOR CLUB FILIAL | E30: 0 | F30: $15.00 | G30: PAGADO
A31: 26 | B31: DOMÉNICA MUÑOZ | C31: BAEKJUL AYALA | D31: OYENTE | E31: 0 | F31: $15.00 | G31: PAGADO
A32: 27 | B32: ISAAC ESPINOSA | C32: BAEKJUL AYALA | D32: OYENTE | E32: 0 | F32: $15.00 | G32: PAGADO
A33: 28 | B33: FREDDY FERNANDEZ | C33: BAEKJUL FERNANDEZ | D33: DIRECTOR CLUB FILIAL | E33: 0 | F33: $15.00 | G33: PAGADO
A34: 29 | B34: BETTY BASTIDAS | C34: BASPANTHERS | D34: ENTRENADOR CLUB FILIAL | E34: $15.00 | F34: 0 | G34: PAGADO
A35: 31 | B35: PAULETTE OSCULLO | C35: BASPANTHERS | D35: MONITOR CLUB FILIAL | E35: $15.00 | F35: 0 | G35: PAGADO
A36: 32 | B36: ZULAY OSCULLO | C36: BASPANTHERS | D36: MONITOR CLUB FILIAL | E36: $15.00 | F36: 0 | G36: PAGADO
A37: 33 | B37: WILIAN SUAREZ | C37: BASPANTHERS | D37: MONITOR CLUB FILIAL | E37: 0 | F37: $15.00 | G37: PAGADO
A38: 34 | B38: SALOME SALGADO | C38: BASPANTHERS | D38: OYENTE | E38: $15.00 | F38: 0 | G38: PAGADO
A39: 36 | B39: WILLIAM SUNTAXI | C39: BLUE DRAGONS | D39: DIRECTOR CLUB FILIAL | E39: 0 | F39: $15.00 | G39: PAGADO
A40: 37 | B40: STALIN SUNTAXI | C40: BLUE DRAGONS | D40: ENTRENADOR CLUB FILIAL | E40: 0 | F40: $15.00 | G40: PAGADO
A41: 38 | B41: ANTHONELLA GARCIA | C41: BLUE DRAGONS | D41: DEPORTISTA AVANZADO | E41: 0 | F41: $15.00 | G41: PAGADO
A42: 39 | B42: MARÍA GRACIA PALTAN | C42: BLUE DRAGONS | D42: MONITOR CLUB FILIAL | E42: 0 | F42: $15.00 | G42: PAGADO
A43: 40 | B43: EMILIA PALTAN | C43: BLUE DRAGONS | D43: MONITOR CLUB FILIAL | E43: 0 | F43: $15.00 | G43: PAGADO
A44: 41 | B44: JULIAN PANTOJA | C44: BLUE DRAGONS | D44: MONITOR CLUB FILIAL | E44: 0 | F44: $15.00 | G44: PAGADO
A45: 42 | B45: NATALIA TUFIÑO | C45: BLUE DRAGONS | D45: ENTRENADOR CLUB FILIAL | E45: 0 | F45: $15.00 | G45: PAGADO
A46: 43 | B46: KENNY PILACUAN | C46: BLUE DRAGONS | D46: MONITOR CLUB FILIAL | E46: 0 | F46: $15.00 | G46: PAGADO
A47: 44 | B47: AMY PARRA | C47: BLUE DRAGONS | D47: OYENTE | E47: 0 | F47: $15.00 | G47: PAGADO
A48: 45 | B48: MARÍA NARANJO | C48: BORJAS LION | D48: MONITOR CLUB FILIAL | E48: 0 | F48: $15.00 | G48: PAGADO
A49: 46 | B49: BYRON BERRONES | C49: CHAMPIONS FOR LIFE | D49: DIRECTOR CLUB FILIAL | E49: 0 | F49: $15.00 | G49: PAGADO
A50: 47 | B50: JOHN QUEZADA | C50: CHAMPIONS FOR LIFE | D50: ENTRENADOR CLUB FILIAL | E50: 0 | F50: $15.00 | G50: PAGADO
A51: 48 | B51: DANIEL LAZO | C51: CHAMPIONS FOR LIFE | D51: ENTRENADOR CLUB FILIAL | E51: 0 | F51: $15.00 | G51: PAGADO
A52: 49 | B52: CARLOS MOROCHO | C52: CHUNG SUNG | D52: ARBITRO | E52: 0 | F52: $15.00 | G52: PAGADO
A53: 50 | B53: SCARLET MANZANO | C53: CHUNG SUNG | D53: ARBITRO | E53: 0 | F53: $15.00 | G53: PAGADO
A54: 51 | B54: JOHANNA MOROCHO | C54: CHUNG SUNG | D54: ENTRENADOR CLUB FILIAL | E54: $15.00 | F54: 0 | G54: PAGADO
A55: 52 | B55: ARIANNA SINCHE | C55: CHUNG SUNG | D55: DEPORTISTA AVANZADO | E55: $15.00 | F55: 0 | G55: PAGADO
A56: 53 | B56: PAULA SANTILLAN | C56: CHUNG SUNG | D56: DEPORTISTA AVANZADO | E56: 0 | F56: $15.00 | G56: PAGADO
A57: 54 | B57: ADRIANA OBANDO | C57: CIUDAD DE QUITO | D57: ENTRENADOR CLUB FILIAL | E57: 0 | F57: $15.00 | G57: PAGADO
A58: 55 | B58: DEREK LARCO | C58: CIUDAD DE QUITO | D58: ENTRENADOR CLUB FILIAL | E58: 0 | F58: $15.00 | G58: PAGADO
A59: 56 | B59: WILSON RODRIGUEZ | C59: CLUB YONG TIGER | D59: DIRECTOR CLUB FILIAL | E59: 0 | F59: 0 | G59: EXONERADO
A60: 57 | B60: ZULAY OSCULLO | C60: HAN KUM DO | D60: ARBITRO | E60: $15.00 | F60: 0 | G60: PAGADO
A61: 58 | B61: KARENT TAPIA | C61: HAN KUM DO | D61: ARBITRO | E61: $15.00 | F61: 0 | G61: PAGADO
A62: 59 | B62: DANNA ACOSTA | C62: JOSEON LEGACY | D62: ARBITRO | E62: 0 | F62: $15.00 | G62: PAGADO
A63: 60 | B63: LUIS CUJILEMA | C63: JOSEON LEGACY | D63: ARBITRO | E63: 0 | F63: $15.00 | G63: PAGADO
A64: 61 | B64: VLADIMIR VIANA | C64: JOSEON LEGACY | D64: ARBITRO | E64: 0 | F64: $15.00 | G64: PAGADO
A65: 62 | B65: ELLIOTH FREIRE | C65: JOSEON LEGACY | D65: ARBITRO | E65: 0 | F65: 0 | G65: PENDIENTE
A66: 63 | B66: ANTHONY CASTRO | C66: JOSEON LEGACY | D66: ARBITRO | E66: $15.00 | F66: 0 | G66: PAGADO
A67: 64 | B67: CARLOS MOYA | C67: JOSEON LEGACY | D67: DIRECTOR CLUB FILIAL | E67: 0 | F67: 0 | G67: EXONERADO
A68: 65 | B68: PATRICIA TUQUERES | C68: CLUB TAE WOONG | D68: ARBITRO | E68: 0 | F68: 0 | G68: EXONERADA
A69: 66 | B69: MICHELLE CALUGUILLIN | C69: CLUB TAE WOONG | D69: ARBITRO | E69: $15.00 | F69: 0 | G69: PAGADO
A70: 67 | B70: JIMMY BOLAÑOS | C70: DEBAK TKD | D70: DIRECTOR CLUB FILIAL | E70: 0 | F70: 0 | G70: EXONERADO
A71: 68 | B71: JOAQUIN VARGAS | C71: DEBAK TKD | D71: ENTRENADOR CLUB FILIAL | E71: 0 | F71: $15.00 | G71: PAGADO
A72: 69 | B72: JARED VARGAS | C72: DEBAK TKD | D72: ENTRENADOR CLUB FILIAL | E72: 0 | F72: $15.00 | G72: PAGADO
A73: 70 | B73: ADRIAN LARA | C73: DEBAK TKD | D73: ENTRENADOR CLUB FILIAL | E73: 0 | F73: $15.00 | G73: PAGADO
A74: 71 | B74: SANTIAGO LLAGUNO | C74: DEBAK TKD | D74: ENTRENADOR CLUB FILIAL | E74: 0 | F74: $15.00 | G74: PAGADO
A75: 72 | B75: JOSÉ ALEJO | C75: DEBAK TKD | D75: MONITOR CLUB FILIAL | E75: 0 | F75: $15.00 | G75: PAGADO
A76: 73 | B76: BOLIVAR MELO | C76: DOYANG TKD MELO | D76: DIRECTOR CLUB FILIAL | E76: 0 | F76: $15.00 | G76: PAGADO
A77: 74 | B77: JORGE ASTUDILLO | C77: ECUADOR | D77: ENTRENADOR CLUB FILIAL | E77: 0 | F77: $15.00 | G77: PAGADO
A78: 75 | B78: EDWIN VALDIVIESO | C78: ECUADOR | D78: MONITOR CLUB FILIAL | E78: 0 | F78: $15.00 | G78: PAGADO
A79: 76 | B79: 1712775780 - LUIS LARA | C79: ECUADOR | D79: MONITOR CLUB FILIAL | E79: 0 | F79: $15.00 | G79: PAGADO
A80: 77 | B80: JHONATAN LARA | C80: ECUADOR | D80: DEPORTISTA AVANZADO | E80: 0 | F80: $15.00 | G80: PAGADO
A81: 78 | B81: ROBERTA ZARUMEÑO | C81: ECUADOR | D81: DEPORTISTA AVANZADO | E81: 0 | F81: $15.00 | G81: PAGADO
A82: 79 | B82: RAPHAELLA ZARUMEÑO | C82: ECUADOR | D82: DEPORTISTA AVANZADO | E82: 0 | F82: $15.00 | G82: PAGADO
A83: 80 | B83: STEPHANY ARMIJOS | C83: ECUADOR | D83: DEPORTISTA AVANZADO | E83: 0 | F83: $15.00 | G83: PAGADO
A84: 81 | B84: LUIS PEÑALOZA | C84: ECUADOR | D84: MONITOR CLUB FILIAL | E84: 0 | F84: $15.00 | G84: PAGADO
A85: 82 | B85: EMILIA PEÑALOZA | C85: ECUADOR | D85: MONITOR CLUB FILIAL | E85: 0 | F85: $15.00 | G85: PAGADO
A86: 83 | B86: DAYANA ZAPATA | C86: ECUADOR | D86: DEPORTISTA AVANZADO | E86: 0 | F86: $15.00 | G86: PAGADO
A87: 84 | B87: MARLON QUIJIJE | C87: ECUADOR | D87: MONITOR CLUB FILIAL | E87: 0 | F87: $15.00 | G87: PAGADO
A88: 85 | B88: JUAN VALENCIA | C88: EQUILIBRIO | D88: DIRECTOR CLUB FILIAL | E88: $15.00 | F88: 0 | G88: PAGADO
A89: 86 | B89: EDUARDO LOACHAMIN | C89: ESPE | D89: DIRECTOR CLUB FILIAL | E89: 0 | F89: $15.00 | G89: PAGADO
A90: 87 | B90: ANGELA NASAMUES | C90: ESPE | D90: ARBITRO | E90: $15.00 | F90: 0 | G90: PAGADO
A91: 88 | B91: JOSELYN YANCHAPAXI | C91: ESPE | D91: ENTRENADOR CLUB FILIAL | E91: 0 | F91: $15.00 | G91: PAGADO
A92: 89 | B92: JOSUE ROJAS | C92: FARANG | D92: ARBITRO | E92: $15.00 | F92: 0 | G92: PAGADO
A93: 90 | B93: ANDREA ZULETA | C93: FIRST CLASS CALDERON | D93: MONITOR CLUB FILIAL | E93: 0 | F93: $15.00 | G93: PAGADO
A94: 91 | B94: FRANKLIN CAIZA | C94: FURIA NEGRA | D94: DIRECTOR CLUB FILIAL | E94: 0 | F94: $15.00 | G94: PAGADO
A95: 92 | B95: ESLENDY CAIZA | C95: FURIA NEGRA | D95: ENTRENADOR CLUB FILIAL | E95: 0 | F95: $15.00 | G95: PAGADO
A96: 93 | B96: CRISTIAN PERDOMO | C96: FURIA NEGRA | D96: ENTRENADOR CLUB FILIAL | E96: 0 | F96: $15.00 | G96: PAGADO
A97: 94 | B97: SHEILA VALLADARES | C97: HANSU CAYAMBE | D97: ENTRENADOR CLUB FILIAL | E97: $15.00 | F97: 0 | G97: PAGADO
A98: 95 | B98: GALO VALLADARES | C98: HANSU CAYAMBE | D98: DIRECTOR CLUB FILIAL | E98: 0 | F98: 0 | G98: EXONERADO
A99: 96 | B99: MIGUEL PARRA | C99: ILYO MP | D99: DIRECTOR CLUB FILIAL | E99: 0 | F99: $15.00 | G99: PAGADO
A100: 97 | B100: MATEO PARRA | C100: ILYO MP | D100: MONITOR CLUB FILIAL | E100: 0 | F100: $15.00 | G100: PAGADO
A101: 98 | B101: EMPERATRIZ QUINGA | C101: JITAE | D101: DIRECTOR CLUB FILIAL | E101: 0 | F101: $15.00 | G101: PAGADO
A102: 99 | B102: ALEXANDER DUCHI | C102: JITAE | D102: DEPORTISTA AVANZADO | E102: 0 | F102: $15.00 | G102: PAGADO
A103: 100 | B103: DAVID DELCASTILLO | C103: JIDOKWAN DC | D103: ARBITRO | E103: 0 | F103: $15.00 | G103: PAGADO
A104: 101 | B104: ANGELO CORDERO | C104: KO AMERICA | D104: ARBITRO | E104: 0 | F104: $15.00 | G104: PAGADO
A105: 102 | B105: JENNY LUNA | C105: LEON | D105: ARBITRO | E105: $15.00 | F105: 0 | G105: PAGADO
A106: 104 | B106: INELIA PILAQUINGA | C106: LEON | D106: ENTRENADOR CLUB FILIAL | E106: $15.00 | F106: 0 | G106: PAGADO
A107: 105 | B107: JOSE CHAURAN | C107: LEON | D107: OYENTE | E107: 0 | F107: $15.00 | G107: PAGADO
A108: 106 | B108: NORMA ORTIZ | C108: LITHE BODY | D108: DIRECTOR CLUB FILIAL | E108: 0 | F108: $15.00 | G108: PAGADO
A109: 107 | B109: FERNANDO INDA | C109: LITHE BODY | D109: ENTRENADOR CLUB FILIAL | E109: 0 | F109: $15.00 | G109: PAGADO
A110: 108 | B110: ERIK ENRIQUEZ | C110: LITHE BODY | D110: DEPORTISTA AVANZADO | E110: 0 | F110: $15.00 | G110: PAGADO
A111: 110 | B111: ANDRES HERRERA | C111: PANDADEMON | D111: DIRECTOR CLUB FILIAL | E111: $15.00 | F111: 0 | G111: PAGADO
A112: 111 | B112: HUGO SIGCHOS | C112: PYONGYANG | D112: ARBITRO | E112: 0 | F112: $15.00 | G112: PAGADO
A113: 112 | B113: JOE GAVILANEZ | C113: PUMAS | D113: ENTRENADOR CLUB FILIAL | E113: 0 | F113: $15.00 | G113: PAGADO
A114: 113 | B114: GALO GAVILANEZ | C114: PUMAS | D114: DIRECTOR CLUB FILIAL | E114: 0 | F114: $15.00 | G114: PAGADO
A115: 114 | B115: GUSTAVO SUNTAXI | C115: PUMAS | D115: ARBITRO | E115: $15.00 | F115: 0 | G115: PAGADO
A116: 115 | B116: LORENA SUNTAXI | C116: PUMAS | D116: ENTRENADOR CLUB FILIAL | E116: 0 | F116: $15.00 | G116: PAGADO
A117: 116 | B117: LUIS GRANDA | C117: MARCIAL CLUB GRANDA | D117: DIRECTOR CLUB FILIAL | E117: 0 | F117: $15.00 | G117: PAGADO
A118: 117 | B118: ERICK GRANDA | C118: MARCIAL CLUB GRANDA | D118: DEPORTISTA AVANZADO | E118: 0 | F118: $15.00 | G118: PAGADO
A119: 118 | B119: WELLINGTON SANCHEZ | C119: MICHAY DO | D119: DIRECTOR CLUB FILIAL | E119: 0 | F119: $15.00 | G119: PAGADO
A120: 120 | B120: JORGE ROJAS | C120: PVM | D120: DIRECTOR CLUB FILIAL | E120: $15.00 | F120: 0 | G120: PAGADO
A121: 121 | B121: MILTON RAMOS | C121: RENACER | D121: ARBITRO | E121: 0 | F121: $15.00 | G121: PAGADO
A122: 122 | B122: ANDY COLUMBA | C122: SAN SEBASTIAN | D122: ENTRENADOR CLUB FILIAL | E122: $15.00 | F122: 0 | G122: PAGADO
A123: 124 | B123: RAUL TIPAN | C123: SAN SEBASTIAN | D123: DIRECTOR CLUB FILIAL | E123: 0 | F123: $15.00 | G123: PAGADO
A124: 125 | B124: CARLOS MEJIA | C124: SAN FRANCISCO TIGRES | D124: DIRECTOR CLUB FILIAL | E124: 0 | F124: 0 | G124: EXONERADO
A125: 126 | B125: GALO GARZON | C125: SEUL | D125: DIRECTOR CLUB FILIAL | E125: 0 | F125: 0 | G125: EXONERADO
A126: 128 | B126: JOSÉ PALACIOS | C126: SEUL | D126: ENTRENADOR CLUB FILIAL | E126: $15.00 | F126: 0 | G126: PAGADO
A127: 129 | B127: VICTOR GARZON | C127: SEUL | D127: ARBITRO | E127: 0 | F127: $15.00 | G127: PAGADO
A128: 130 | B128: JOSE MIZQUERO | C128: SEUL | D128: ENTRENADOR CLUB FILIAL | E128: $15.00 | F128: 0 | G128: PAGADO
A129: 131 | B129: MARCO RIVERA | C129: SEUL | D129: ARBITRO | E129: $15.00 | F129: 0 | G129: PAGADO
A130: 132 | B130: DANNY YEROVI | C130: SEUL | D130: DEPORTISTA AVANZADO | E130: $15.00 | F130: 0 | G130: PAGADO
A131: 133 | B131: CARLOS MOLINA | C131: SEUL | D131: ENTRENADOR CLUB FILIAL | E131: $15.00 | F131: 0 | G131: PAGADO
A132: 134 | B132: ARELIZ MAYORGA | C132: SEUL | D132: ARBITRO | E132: 0 | F132: $15.00 | G132: PAGADO
A133: 135 | B133: MAYRA MANOTO | C133: SEUL | D133: DEPORTISTA AVANZADO | E133: $15.00 | F133: 0 | G133: PAGADO
A134: 136 | B134: MARISOL REATEGUI | C134: SEUL | D134: MONITOR CLUB FILIAL | E134: $15.00 | F134: 0 | G134: PAGADO
A135: 137 | B135: MARCO MOGOLLÓN | C135: SIMJANG TEAM | D135: DIRECTOR CLUB FILIAL | E135: 0 | F135: $15.00 | G135: PAGADO
A136: 138 | B136: KERLY QUINTANA | C136: SIMJANG TEAM | D136: MONITOR CLUB FILIAL | E136: 0 | F136: $15.00 | G136: PAGADO
A137: 139 | B137: MARIUXI NIETO | C137: SIMJANG TEAM | D137: MONITOR CLUB FILIAL | E137: 0 | F137: $15.00 | G137: PAGADO
A138: 140 | B138: JOSE MORAN | C138: SDC | D138: ENTRENADOR CLUB FILIAL | E138: $15.00 | F138: 0 | G138: PAGADO
A139: 141 | B139: JHONNY SUNTAXI | C139: SDC | D139: MONITOR CLUB FILIAL | E139: 0 | F139: $15.00 | G139: PAGADO
A140: 142 | B140: JULIO ALVAREZ | C140: SDC | D140: MONITOR CLUB FILIAL | E140: $15.00 | F140: 0 | G140: PAGADO
A141: 143 | B141: CARLOR REINOSO | C141: SDC | D141: DIRECTOR CLUB FILIAL | E141: $15.00 | F141: 0 | G141: PAGADO
A142: 144 | B142: ANDRES REINOSO | C142: SDC | D142: ENTRENADOR CLUB FILIAL | E142: $15.00 | F142: 0 | G142: PAGADO
A143: 145 | B143: KEYNA TONATO | C143: SDC | D143: MONITOR CLUB FILIAL | E143: $15.00 | F143: 0 | G143: PAGADO
A144: 146 | B144: CAMILA MARTINEZ | C144: SDC | D144: ENTRENADOR CLUB FILIAL | E144: $15.00 | F144: 0 | G144: PAGADO
A145: 147 | B145: MATHEU TULCAN | C145: SDC | D145: ARBITRO | E145: 0 | F145: $15.00 | G145: PAGADO
A146: 148 | B146: JOSET PEREZ | C146: SDC | D146: ARBITRO | E146: 0 | F146: $15.00 | G146: PAGADO
A147: 149 | B147: ISABELLA BARRAZUETA | C147: SDC | D147: MONITOR CLUB FILIAL | E147: $15.00 | F147: 0 | G147: PAGADO
A148: 150 | B148: JONATHAN PAZPUR | C148: SDC | D148: DEPORTISTA AVANZADO | E148: 0 | F148: $15.00 | G148: PAGADO
A149: 151 | B149: JEAN ARTEAGA | C149: TAE BAEK | D149: ENTRENADOR CLUB FILIAL | E149: 0 | F149: $15.00 | G149: PAGADO
A150: 152 | B150: EDWIN ARTEAGA | C150: TAE BAEK | D150: DIRECTOR CLUB FILIAL | E150: 0 | F150: $15.00 | G150: PAGADO
A151: 153 | B151: VANESSA SIERRA | C151: TAE BAEK | D151: ENTRENADOR CLUB FILIAL | E151: 0 | F151: $15.00 | G151: PAGADO
A152: 154 | B152: NICOLAS GUALACATA | C152: TAEDO | D152: MONITOR CLUB FILIAL | E152: 0 | F152: $15.00 | G152: PAGADO
A153: 155 | B153: EDWIN MONTENEGRO | C153: TAE SHO KU | D153: MONITOR CLUB FILIAL | E153: 0 | F153: $15.00 | G153: PAGADO
A154: 156 | B154: JHON TAPIA | C154: TAE SHO KU | D154: MONITOR CLUB FILIAL | E154: 0 | F154: $15.00 | G154: PAGADO
A155: 157 | B155: JOEL CUNALATA | C155: TAE SHO KU | D155: MONITOR CLUB FILIAL | E155: $15.00 | F155: 0 | G155: PAGADO
A156: 158 | B156: EDWIN OCHOA | C156: TAE SHO KU | D156: DIRECTOR CLUB FILIAL | E156: 0 | F156: $15.00 | G156: PAGADO
A157: 159 | B157: JUAN VERDEZOTO | C157: TAE SHO KU | D157: MONITOR CLUB FILIAL | E157: $15.00 | F157: 0 | G157: PAGADO
A158: 160 | B158: GISSELL ESTRELLA | C158: TAE SHO KU | D158: ARBITRO | E158: 0 | F158: $15.00 | G158: PAGADO
A159: 161 | B159: ARIANNA ARIAS | C159: TAE SHO KU | D159: DEPORTISTA AVANZADO | E159: 0 | F159: $15.00 | G159: PAGADO
A160: 162 | B160: ANAHI ARIAS | C160: TAE SHO KU | D160: DEPORTISTA AVANZADO | E160: 0 | F160: $15.00 | G160: PAGADO
A161: 163 | B161: SHIRLEY SIGCHA | C161: TAE SHO KU | D161: ARBITRO | E161: 0 | F161: $15.00 | G161: PAGADO
A162: 164 | B162: JUAN LOYA | C162: TAE SHO KU | D162: ENTRENADOR CLUB FILIAL | E162: 0 | F162: $15.00 | G162: PAGADO
A163: 165 | B163: CAMILA CHAMBA | C163: TAE SHO KU | D163: DEPORTISTA AVANZADO | E163: 0 | F163: $15.00 | G163: PAGADO
A164: 166 | B164: DANILO PEREZ | C164: TAEGUK JUCARO | D164: DIRECTOR CLUB FILIAL | E164: $15.00 | F164: 0 | G164: PAGADO
A165: 167 | B165: BRITANI PEREZ | C165: TAEGUK JUCARO | D165: ENTRENADOR CLUB FILIAL | E165: $15.00 | F165: 0 | G165: PAGADO
A166: 168 | B166: RAÚL AUCANCELA | C166: TOTAL KOMBAT | D166: DIRECTOR CLUB FILIAL | E166: 0 | F166: $15.00 | G166: PAGADO
A167: 169 | B167: SANDRA CONGO | C167: TOTAL KOMBAT | D167: ENTRENADOR CLUB FILIAL | E167: 0 | F167: $15.00 | G167: PAGADO
A168: 170 | B168: DAYANA VALDIVIESO | C168: TOTAL KOMBAT | D168: MONITOR CLUB FILIAL | E168: 0 | F168: $15.00 | G168: PAGADO
A169: 171 | B169: CARLOS CAIZA | C169: TOTAL KOMBAT | D169: ENTRENADOR CLUB FILIAL | E169: $15.00 | F169: 0 | G169: PAGADO
A170: 172 | B170: BRYAN PAREDES | C170: TOTAL KOMBAT | D170: ENTRENADOR CLUB FILIAL | E170: $15.00 | F170: 0 | G170: PAGADO
A171: 173 | B171: GUSTAVO LLAMUCA | C171: TOTAL KOMBAT | D171: ENTRENADOR CLUB FILIAL | E171: 0 | F171: $15.00 | G171: PAGADO
A172: 174 | B172: JAVIER TASIGUANO | C172: TOTAL KOMBAT | D172: MONITOR CLUB FILIAL | E172: $15.00 | F172: 0 | G172: PAGADO
A173: 175 | B173: BRYAN ENRIQUEZ | C173: MARCIAL GRANDA | D173: ENTRENADOR CLUB FILIAL | E173: 0 | F173: $15.00 | G173: PAGADO
A174: 176 | B174: JENNY BARROS | C174: KUNGANDUK | D174: ENTRENADOR CLUB FILIAL | E174: $15.00 | F174: 0 | G174: PAGADO
A175: 177 | B175: SHARON LOPEZ | C175: KORYO | D175: ENTRENADOR CLUB FILIAL | E175: 0 | F175: $15.00 | G175: PAGADO
A176: 178 | B176: GUILLERMO PUGA | C176: KORYO | D176: DIRECTOR CLUB FILIAL | E176: 0 | F176: $15.00 | G176: PAGADO
A177: 179 | B177: DENISSE PACHACAMA | C177: KORYO | D177: DEPORTISTA AVANZADO | E177: 0 | F177: $15.00 | G177: PAGADO
A178: 180 | B178: NICOL BALSECA | C178: TEEN VENCEDORES | D178: MONITOR CLUB FILIAL | E178: 0 | F178: $15.00 | G178: PAGADO
A179: 181 | B179: DOMINIC GRANDA | C179: TEEN VENCEDORES | D179: MONITOR CLUB FILIAL | E179: 0 | F179: $15.00 | G179: PAGADO
A180: 182 | B180: CARLOS GONZÑALEZ | C180: TEEN VENCEDORES | D180: MONITOR CLUB FILIAL | E180: 0 | F180: $15.00 | G180: PAGADO
A181: 183 | B181: CECILIA CASTILLO | C181: TEEN VENCEDORES | D181: ENTRENADOR CLUB FILIAL | E181: 0 | F181: $15.00 | G181: PAGADO
A182: 184 | B182: MARLON LEMA | C182: MASTER HOME | D182: DIRECTOR CLUB FILIAL | E182: 0 | F182: $15.00 | G182: PAGADO
A183: 185 | B183: JORGE NARANJO | C183: MASTER HOME | D183: ENTRENADOR CLUB FILIAL | E183: 0 | F183: $15.00 | G183: PAGADO
A184: 186 | B184: DANILO NARANJO | C184: MASTER HOME | D184: ENTRENADOR CLUB FILIAL | E184: $15.00 | F184: 0 | G184: PAGADO
A185: 187 | B185: DARIO SUNTAXI | C185: MASTER HOME | D185: MONITOR CLUB FILIAL | E185: 0 | F185: $15.00 | G185: PAGADO
A186: 188 | B186: GUSTAVO QUISHPE | C186: APOLO | D186: MONITOR CLUB FILIAL | E186: $7.50 | F186: 0 | G186: PAGADO
A187: 189 | B187: KEVIN ZAPATA | C187: ILYO MP | D187: ENTRENADOR CLUB FILIAL | E187: 0 | F187: $15.00 | G187: PAGADO
A188: 190 | B188: EDGAR VASCONEZ | C188: APOLO | D188: MONITOR CLUB FILIAL | E188: 0 | F188: $15.00 | G188: PAGADO
A189: 191 | B189: DANIL FLORES | C189: HANSU CAYAMBE | D189: ENTRENADOR CLUB FILIAL | E189: $15.00 | F189: 0 | G189: PAGADO
A190: 192 | B190: FABIAN ROMAN | C190: JUVENTUS | D190: ARBITRO | E190: 0 | F190: $15.00 | G190: PAGADO
A191: 193 | B191: DIEGO MORILLO | C191: JUVENTUS | D191: ARBITRO | E191: 0 | F191: $15.00 | G191: PAGADO
A192: TOTAL | E192: =SUM(E6:E191) -> $892.50 | F192: =SUM(F6:F191) -> $1,725.00 | G192: =SUM(E192:F192) -> $2,617.50
B195: INGRESOS
B196: INSCRIPCIONES EFECTIVO | C196: =E192 -> $ 892.50
B197: INSCRIPCIONES TRANSFERENCIA | C197: =F192 -> $ 1,725.00
B198: TOTAL | C198: =SUM(C196:C197) -> $ 2,617.50
B201: EGRESOS
B202: ALIMENTACIÓN STAFF 18-07-2025 | C202: $ 23.00
B203: IMPRESIÓN DE CERTIFICADOS Y MOVILIZACIÓN | C203: $ 68.00
B204: SOBRES MANILA PARA CERTIFICADOS | C204: $ 10.50
B205: PRODUCTOS DE CAFETERÍA PARA EVENTO | C205: $ 36.44
... 18 more rows

Sheet HANMADANG - OPEN CLASIFICADOS
A1: ASOCIACIÓN DE TAEKWONDO DE PICHINCHA
A2: TORNEO HANMADANG - OPEN CLASIFICADOS
A3: COLISEO "LOS QUITUS" 9-08-2025
A5: Nº | B5: CLUB | C5: SIGLAS | D5: HANMADANG | E5: OPEN CLASIFICADOS | F5: ENTRENADOR | G5: CAMBIO DE CATEGORÍA | H5: PAGO EFECT. | I5: PAGO TRANSF. | J5: TOTAL
A6: 1 | B6: ARES | C6: ARE | D6: 6 | E6: - | F6: 2 | G6: - | H6: 0 | I6: $100.00 | J6: PAGADO
A7: 2 | B7: DEBAK TKD | C7: DBK | D7: 1 | E7: - | F7: - | G7: - | H7: $16.00 | I7: 0 | J7: PAGADO
A8: 3 | B8: DRAGON GYM | C8: DRG | D8: 6 | E8: - | F8: 2 | G8: - | H8: $40.00 | I8: $60.00 | J8: PAGADO
A9: 4 | B9: ESPE | C9: ESP | D9: 4 | E9: 1 | F9: 1 | G9: - | H9: 0 | I9: $82.00 | J9: PAGADO
A10: 5 | B10: LOS PUMAS | C10: PUM | D10: 8 | E10: 4 | F10: 2 | G10: - | H10: 0 | I10: $196.00 | J10: PAGADO
A11: 6 | B11: SEUL | C11: SEU | D11: 1 | E11: 1 | F11: - | G11: - | H11: $22.00 | I11: $10.00 | J11: PAGADO
A12: 7 | B12: S.D.CENTRAL | C12: SDC | D12: 13 | E12: 12 | F12: 2 | G12: - | H12: $30.00 | I12: $374.00 | J12: PAGADO
A13: 8 | B13: TOTAL KOMBAT | C13: TKT | D13: 1 | E13: - | F13: 1 | G13: - | H13: 0 | I13: $18.00 | J13: PAGADO
A14: 9 | B14: BAEKJUL TKD | C14: BJK | D14: 0 | E14: 9 | F14: 3 | G14: 1 | H14: $155.00 | I14: 0 | J14: PAGADO
A15: 10 | B15: BLUE DRAGONS | C15: BDR | D15: 0 | E15: 1 | F15: 1 | G15: - | H15: 0 | I15: $18.00 | J15: PAGADO
A16: 11 | B16: BORJA'S LIONS | C16: BLS | D16: 0 | E16: 3 | F16: 2 | G16: - | H16: $52.00 | I16: 0 | J16: PAGADO
A17: 12 | B17: JERATHEL | C17: JER | D17: 0 | E17: 2 | F17: 2 | G17: - | H17: $36.00 | I17: 0 | J17: PAGADO
A18: 13 | B18: KO AMERICA | C18: KOA | D18: 0 | E18: 1 | F18: - | G18: - | H18: $16.00 | I18: 0 | J18: PAGADO
A19: TOTAL | D19: 40 | E19: =SUM(E6:E18) -> 34 | F19: =SUM(F6:F18) -> 18 | G19: =SUM(G6:G18) -> 1 | H19: =SUM(H6:H18) -> $367.00 | I19: =SUM(I6:I18) -> $858.00 | J19: =SUM(H19:I19) -> $1,225.00
B22: INGRESOS
B23: INSCRIPCIONES EFECTIVO | C23: =H19 -> $ 367.00
B24: INSCRIPCIONES TRANSFERENCIA | C24: =I19 -> $ 858.00
B25: TAQUILLA | C25: $ 105.00
B26: TOTAL | C26: =SUM(C23:C25) -> $ 1,330.00
B29: EGRESOS
B30: TABLAS DE ROMPIMIENTOS (100) | C30: $ 50.00
B31: ARREGLOS FLORALES (2) | C31: $ 32.00
B32: BLOQUES Y LABRILLOS | C32: $ 19.65
B33: TROFEOS (6) - MEDALLAS (89) | C33: $ 306.80
B34: PAGO ARBITRAJE | C34: $ 305.00
B35: PAGO MONTAJE Y DESMONTAJE DE ESCENARIO | C35: $ 50.00
B36: PAGO STAFF (5 PERSONAS) | C36: $ 100.00
B37: ALIMENTACIÓN STAFF (ÁRBITROS Y PERSONAL DE APOYO) | C37: $ 80.00
B38: REFRIGERIO | C38: $ 7.50
B39: LIMPIEZA | C39: $ 20.00
B40: DIFUSIÓN Y COBERTURA DURANTE EL EVENTO | C40: $ 20.00
B41: ORGANIZACIÓN Y DIRECCIÓN DEL EVENTO | C41: $ 60.00
B42: TRANSPORTE (MEDALLAS Y TROFEOS) | C42: $ 12.00
B43: PRODUCTOS DE ASEO Y LIMPIEZA | C43: $ 4.50
B44: MEDICAMENTOS | C44: $ 23.50
B45: ELABORACIÓN DE LLAVES Y DÍA DE TRABAJO FERNANDO MOYA | C45: $ 40.00
B46: PERSONAL MÉDICO (1 PERSONA) | C46: $ 20.00
B47: TOTAL | C47: =SUM(C30:C46) -> $ 1,150.95
B50: INGRESOS | C50: =C26 -> $ 1,330.00
B51: EGRESOS | C51: =-C47 -> $ (1,150.95)
B52: SALDO | C52: =C50+C51 -> $ 179.05

Sheet EGRESOS
A2: EGRESOS | G2: TOTAL
G3: =SUM(F6:F318) -> $ 30,176.26
F5: SUBTOTAL
A6: FECHA | B6: OFICINA Y TECNOLOGÍA | C6: DETALLE | D6: VALOR | F6: =SUM(D7:D36) -> $ 339.00
A7: 2025-03-20 | C7: COMPRA DE RESALTADOR | D7: $ 0.75
A8: 2025-03-21 | C8: COMPRA DE 20 CARTULINAS BLANCAS (VOCATIVOS PARA EVENTOS Y CEREMONIAS ASOTKD-P) | D8: $ 1.00
A9: 2025-03-23 | C9: COMPRA DE GRAPADORA | D9: $ 3.50
A10: 2025-03-26 | C10: COMPRA DE RESMA DE PAPEL | D10: $ 5.00
A11: 2025-03-26 | C11: COMPRA DE ARCHIVADOR (ENTREGA DE INFORME ECONÓMICO PRESIDENCIA CDP) | D11: $ 3.50
A12: 2025-03-26 | C12: COMPRA DE 10 CARTULINAS BLANCAS (VOCATIVOS PARA EVENTOS Y CEREMONIAS ASOTKD-P) | D12: $ 0.50
A13: 2025-03-31 | C13: COMPRA DE MASKING Y CINTA ADHESIVA TRANSPARENTE | D13: $ 3.60
A14: 2025-04-04 | C14: COMPRA DE RESMA DE PAPEL | D14: $ 4.00
A15: 2025-04-08 | C15: COMPRA DE ARTÍCULOS VARIOS (ACETONA, ALGODÓN Y GUANTES) | D15: $ 5.70
A16: 2025-04-08 | C16: COMPRA DE CUADERNO DE NOTA TIPO AGENDA PARA SECRETARÍA | D16: $ 2.25
A17: 2025-04-10 | C17: COMPRA DE 20 CARTULINAS BLANCAS (VOCATIVOS PARA EVENTOS Y CEREMONIAS ASOTKD-P) | D17: $ 1.00
A18: 2025-04-14 | C18: CARPETAS DE CARTÓN | D18: $ 3.00
A19: 2025-04-19 | C19: COMPRA DE RESMA DE PAPEL Y GLOBOS (PARA FESTIVALES INFANTILES) | D19: $ 8.00
A20: 2025-04-28 | C20: COMPRA DE PILAS PARA CONTROLES DE TV ASOTKDP | D20: $ 2.00
A21: 2025-05-03 | C21: COMPRA DE CINTA ADHESIVA | D21: $ 3.00
A22: 2025-05-12 | C22: COMPRA DE CAJAS ESFEROS | D22: $ 8.50
A23: 2025-05-13 | C23: IMPRESIÓN DE VOCATIVOS EN CARTULINAS A4 (COLABORACIÓN LANZAMIENTO DEL LIBRO ESTALIN VILLARROEL) | D23: $ 5.35
A24: 2025-05-15 | C24: COMPRA DE CARTULINAS | D24: $ 0.75
A25: 2025-05-16 | C25: COMPRA DE CINTA ADHESIVA (X2) | D25: $ 3.60
A26: 2025-05-17 | C26: COMPRA DE RESMA DE PAPEL | D26: $ 4.00
A27: 2025-05-19 | C27: COMPRA DE MASKING | D27: $ 3.00
A28: 2025-06-12 | C28: COMPRA DE PAQUETE DE CARTULINAS BLANCAS | D28: $ 2.81
A29: 2025-06-12 | C29: COMPRA DE PORTACREDENCIAL VERTICAL GRADE DE PLÁSTICO (100 UNIDADES) | D29: $ 22.49
A30: 2025-06-13 | C30: COMPRA DE CARTULINAS BLANCAS | D30: $ 1.00
A31: 2025-07-04 | C31: COMPRA DE MARCADOR PERMANENTE PUNTA FINA | D31: $ 1.15
A32: 2025-07-07 | C32: COMPRA DE RESMA DE PAPEL | D32: $ 4.00
A33: 2025-08-08 | C33: COMPRA DE CINTA DE EMBALAJE (X2) | D33: $ 3.00
A34: 2025-08-21 | C34: REPARACIÓN IMPRESORA EPSON DE OFICINA ASOTKDP | D34: $ 75.00
A35: 2025-08-27 | C35: COMPRA DE TONER PARA IMPRESORA HP LASER (TONER, CABLE USB, CABLE DE PODER) | D35: $ 111.55
A36: 2025-08-28 | C36: REPARACIÓN IMPRESORA HP LASER DE OFICINA ASOTKDP | D36: $ 46.00
C37: TOTAL | D37: =SUM(D7:D36) -> $ 339.00
A40: FECHA | B40: SUELDOS Y SALARIOS | C40: DETALLE | D40: VALOR | F40: =SUM(D41:D67) -> $ 10,107.50
A41: 2025-04-08 | C41: PAGO AUXILIAR Y APOYO TATIANA SIMBAÑA MARZO (MEDIO TIEMPO) | D41: $ 250.00
A42: 2025-04-21 | C42: PAGO AUXILIAR Y APOYO MICAELA PARRA ABRIL (MEDIO TIEMPO) | D42: $ 100.00
A43: 2025-05-09 | C43: PAGO AUXILIAR Y APOYO LOREN BRICEÑO MAYO (MEDIO TIEMPO) | D43: $ 250.00
A44: 2025-07-07 | C44: PAGO AUXILIAR Y APOYO LOREN BRICEÑO JUNIO (MEDIO TIEMPO) | D44: $ 250.00
A45: 2025-07-31 | C45: PAGO AUXILIAR Y APOYO LOREN BRICEÑO JULIO (MEDIO TIEMPO) | D45: $ 250.00
A46: 2025-04-15 | C46: PAGO RUTH GUANO SERVICIO DE LIMPIEZA MES DE MARZO (MEDIO TIEMPO) | D46: $ 250.00
A47: 2025-05-05 | C47: PAGO RUTH GUANO SERVICIO DE LIMPIEZA MES DE ABRIL (MEDIO TIEMPO) | D47: $ 250.00
A48: 2025-06-09 | C48: PAGO RUTH GUANO SERVICIO DE LIMPIEZA MES DE MAYO (MEDIO TIEMPO) | D48: $ 250.00
A49: 2025-07-08 | C49: PAGO RUTH GUANO SERVICIO DE LIMPIEZA MES DE JUNIO (MEDIO TIEMPO) | D49: $ 250.00
A50: 2025-07-31 | C50: PAGO RUTH GUANO SERVICIO DE LIMPIEZA MES DE JULIO (MEDIO TIEMPO) | D50: $ 250.00
A51: 2025-09-02 | C51: PAGO RUTH GUANO SERVICIO DE LIMPIEZA MES DE AGOSTO (MEDIO TIEMPO) | D51: $ 250.00
A52: 2025-04-08 | C52: PAGO SECRETARIA DAYANA FOLLECO MARZO | D52: $ 470.00
A53: 2025-05-05 | C53: PAGO SECRETARIA DAYANA FOLLECO ABRIL | D53: $ 470.00
A54: 2025-06-09 | C54: PAGO SECRETARIA DAYANA FOLLECO MAYO | D54: $ 470.00
A55: 2025-07-07 | C55: PAGO SECRETARIA DAYANA FOLLECO JUNIO | D55: $ 470.00
A56: 2025-07-31 | C56: PAGO SECRETARIA DAYANA FOLLECO JULIO | D56: $ 470.00
A57: 2025-09-02 | C57: PAGO SECRETARIA DAYANA FOLLECO AGOSTO | D57: $ 470.00
A58: 2025-04-24 | C58: PAGO MARCELO TROYA SERVICIOS ENTRENADOR PROVINCIAL DE APOYO MARZO | D58: $ 650.00
A59: 2025-05-05 | C59: PAGO MARCELO TROYA SERVICIOS ENTRENADOR PROVINCIAL DE APOYO ABRIL | D59: $ 650.00
A60: 2025-06-09 | C60: PAGO MARCELO TROYA SERVICIOS ENTRENADOR PROVINCIAL DE APOYO MAYO | D60: $ 650.00
A61: 2025-07-07 | C61: PAGO MARCELO TROYA SERVICIOS ENTRENADOR PROVINCIAL DE APOYO JUNIO | D61: $ 650.00
A62: 2025-08-05 | C62: PAGO MARCELO TROYA SERVICIOS ENTRENADOR PROVINCIAL DE APOYO JULIO | D62: $ 650.00
A63: 2025-09-02 | C63: PAGO MARCELO TROYA SERVICIOS ENTRENADOR PROVINCIAL DE APOYO AGOSTO | D63: $ 400.00
A64: 2025-05-10 | C64: ESTALIN FERNANDO VILLARROEL SERVICIO DE ENTRENAMIENTO MENTAL SALDO PENDIENTE | D64: $ 900.00
A65: 2025-08-26 | C65: PAGO AUXILIAR Y APOYO MICAELA PARRA REALIZACIÓN DE INVENTARIO EN BODEGA ASOTKDP | D65: $ 36.00
A66: 2025-04-30 | C66: TRÁMITES Y ASESORÍA SRI EDUARDO LOACHAMIN CRUCE POR TRÁMITE 30-04-2025 | D66: $ 31.50
A67: 2025-04-30 | C67: CRUCE DE DEUDAS PERMISO DE FUNCIONAMIENTO POR TRÁMITES DE SRI DE ASOTKDP | D67: $ 70.00
C68: TOTAL | D68: =SUM(D41:D67) -> $ 10,107.50
A71: FECHA | B71: INTERNET Y TELEFONÍA | C71: DETALLE | D71: VALOR | F71: =SUM(D72:D81) -> $ 407.38
A72: 2025-04-08 | C72: SERVICIO DE INTERNET FIJO CELERITY ABRIL | D72: $ 40.50
A73: 2025-04-15 | C73: PAGO PLAN CELULAR ASOTKDP ABRIL | D73: $ 36.59
A74: 2025-05-07 | C74: SERVICIO DE INTERNET FIJO CELERITY MAYO | D74: $ 42.80
A75: 2025-05-12 | C75: PAGO PLAN CELULAR ASOTKDP MAYO | D75: $ 41.68
A76: 2025-06-09 | C76: SERVICIO DE INTERNET FIJO CELERITY JUNIO | D76: $ 42.80
A77: 2025-06-09 | C77: PAGO PLAN CELULAR ASOTKDP JUNIO | D77: $ 40.44
A78: 2025-07-08 | C78: SERVICIO DE INTERNET FIJO CELERITYJULIO | D78: $ 42.80
A79: 2025-07-11 | C79: PAGO PLAN CELULAR ASOTKDP JULIO | D79: $ 40.44
A80: 2025-08-08 | C80: SERVICIO DE INTERNET FIJO CELERITY AGOSTO | D80: $ 42.80
A81: 2025-08-08 | C81: PAGO PLAN CELULAR ASOTKDP AGOSTO | D81: $ 36.53
C82: TOTAL | D82: =SUM(D72:D81) -> $ 407.38
A85: FECHA | B85: ARREGLO Y MANTENIMIENTO DE INSTALACIONES | C85: DETALLE | D85: VALOR | F85: =SUM(D86:D126) -> $ 4,048.37
A86: 2025-04-08 | B86: JUAN CARLOS PIARPUSAN PEREIRA | C86: MANTENIMIENTO Y ALBAÑILERÍA PAGO DE UNA SEMANA (SALA DE AUDIOVISUALES Y CAMERINOS) | D86: $ 160.00
A87: 2025-04-09 | B87: CORAL HIPERMERCADOS | C87: COMPRA DE LUCES LED PARA CAMBIO EN ESCENARIOS ASOTKDP | D87: $ 30.27
A88: 2025-04-11 | B88: FERRETEROS BS | C88: COMPRA DE MATERIALES DE FERRETERÍA PARA ARREGLOS EN VICENTINA (CADENA, CÁNCAMO, SIFÓN FLEXIBLE, MOQUETÓN, CEMENTO, BROCAS Y SOPORTE DE TV) | D88: $ 41.48
A89: 2025-04-11 | B89: FERRETEROS BS | C89: COMPRA DE MATERIALES DE FERRETERÍA PARA ARREGLOS EN VICENTINA (CADENA, THINNER, MOQUETÓN Y EMPAQUES CÓNICOS) | D89: $ 39.78
A90: 2025-04-14 | B90: SAMUEL ARDILA | C90: CAMBIO DE LUMINARIAS Y MANTENIMIENTO ÁREA SUPERIOR ASOTKDP | D90: $ 200.00
A91: 2025-04-16 | B91: FERRETEROS BS | C91: COMPRA DE MATERIALES DE FERRETERÍA PARA ARREGLOS EN VICENTINA (SIFÓN FLEXIBLE, VIKINGO LLAVE, BROCA, TORNILLO, GUATES DE CAUCHO) | D91: $ 11.27
A92: 2025-04-16 | B92: FERRETEROS BS | C92: COMPRA DE MATERIALES DE FERRETERÍA PARA ARREGLOS EN VICENTINA (SIFÓN FLEXIBLE, BISAGRA, TORNILLO MDF, DESARMADOR, MANGUERA ABASTO METAL) | D92: $ 10.17
A93: 2025-04-16 | B93: FERRETEROS BS | C93: COMPRA DE MATERIALES DE FERRETERÍA PARA ARREGLOS EN VICENTINA (CABLE, CINTA TEFLÓN, ENCHUFE, TOMA, CAJA DEXSON, DESARMADOR, SILICON CARTUCHO, PUNTA DE TALADRO, TACO FISCHER, BROCA, BONDEX)) | D93: $ 20.03
A94: 2025-04-16 | B94: SAMUEL ARDILA | C94: SERVICIOS EN PINTURA DE TECHO ÁREA SUPERIOR ASOTKDP | D94: $ 1,000.00
A95: 2025-04-16 | B95: SAMUEL ARDILA | C95: ABONO POR INSTALACIONES Y COMPRA DE LUMINARIAS EN ASOTKDP | D95: $ 712.80
A96: 2025-04-17 | B96: FERRETEROS BS | C96: COMPRA DE MATERIALES DE FERRETERÍA PARA ARREGLOS EN VICENTINA (GUANTE CAUCHO, LLANA CABO, LIJA DE AGUA, EMPASTE) | D96: $ 16.42
A97: 2025-04-17 | B97: FERRETEROS BS | C97: COMPRA DE MATERIALES DE FERRETERÍA PARA ARREGLOS EN VICENTINA (BREAKER SQD 50 AMP) | D97: $ 7.71
A98: 2025-04-17 | B98: FERRETEROS BS | C98: COMPRA DE MATERIALES DE FERRETERÍA PARA ARREGLOS EN VICENTINA (POLWAX INCOLORO Y TRAPEADOR) | D98: $ 8.75
A99: 2025-04-17 | B99: SAMUEL ARDILA | C99: MANTENIMIENTO Y ARREGLOS EN INSTALACIONES DE ASOTKDP | D99: $ 120.00
A100: 2025-04-19 | B100: FERRETEROS BS | C100: COMPRA DE MATERIALES DE FERRETERÍA PARA ARREGLOS EN VICENTINA (ABRO MASTIKO 110CMX25CM) | D100: $ 5.70
A101: 2025-04-21 | B101: FERRETEROS BS | C101: COMPRA DE MATERIALES DE FERRETERÍA PARA ARREGLOS EN VICENTINA (ELECTROCABLE CONCÉNTRICO, TORNILLO TIPO LENTEJA, PUNTA DE TALADRO) | D101: $ 15.05
A102: 2025-04-21 | B102: FERRETEROS BS | C102: COMPRA DE MATERIALES DE FERRETERÍA PARA ARREGLOS EN VICENTINA (TOMA, CANALETA,CABLE GEMELO, ENCHUFE DE CAUCHO, ABRO SILICON, GARRUCHA) | D102: $ 22.86
A103: 2025-04-22 | B103: FERRETEROS BS | C103: COMPRA DE MATERIALES DE FERRETERÍA PARA ARREGLOS EN VICENTINA (ADAPTADOR 3 EN 1) | D103: $ 1.60
A104: 2025-04-25 | B104: SAMUEL ARDILA | C104: TRABAJOS DE CARPINTERÍA PARA REPARACIÓN DE PATAS DE LOS MUEBLES | D104: $ 15.00
A105: 2025-04-25 | B105: SAMUEL ARDILA | C105: CAMBIO DE LUMINARIAS Y MANTENIMIENTO ÁREA SUPERIOR ASOTKDP | D105: $ 100.00
A106: 2025-04-25 | B106: SAMUEL ARDILA | C106: ARREGLOS VARIOS ASOTKDP | D106: $ 231.00
A107: 2025-04-29 | B107: FERRETEROS BS | C107: COMPRA DE MATERIALES DE FERRETERÍA PARA ARREGLOS EN VICENTINA (CINTA DE TELA GRIS, CINTA ANTIDESLIZ, PEGAMENTO, ESTILETE, BROCHA) | D107: $ 15.56
A108: 2025-04-30 | B108: FERRETEROS BS | C108: COMPRA DE MATERIALES DE FERRETERÍA PARA ARREGLOS EN VICENTINA (CINTA DE TELA GRIS) | D108: $ 6.80
A109: 2025-04-30 | B109: FERRETEROS BS | C109: COMPRA DE MATERIALES DE FERRETERÍA PARA ARREGLOS EN VICENTINA (TUBO, NEPLO, UNIÓN, LLAVE ESFÉRICA, PEGAMENTO, HOJA DE SIERRA, CINTA DE TEFLÓN,ETC) | D109: $ 19.75
A110: 2025-05-05 | B110: SAMUEL ARDILA | C110: PAGO DE SALDO FINAL POR ARREGLO Y MANTENIMIENTO DE INSTALACIONES ASOTKDP | D110: $ 987.00
A111: 2025-05-08 | C111: COPIAS LLAVES DE LA BODEGA AOTKDP EN EL COLISEO LOS QUITUS | D111: $ 0.85
A112: 2025-05-09 | B112: FERRETEROS BS | C112: COMPRA DE CINTA DE TELA GRIS PARA DIVISIÓN DE CACHAS PARA COMPETENCIAS ASOTKDP | D112: $ 6.80
A113: 2025-05-13 | B113: FERRETEROS BS | C113: COMPRA DE MATERIALES DE FERRETERÍA PARA ARREGLOS EN VICENTINA (CINTA ANTIDESLIZ Y CINTA DUCTO) | D113: $ 9.96
A114: 2025-05-15 | C114: COMPRA DE MATERIALES DE FERRETERÍA (GOMA LÍQUIDA) | D114: $ 3.50
A115: 2025-05-16 | C115: COMPRA DE MATERIALES DE FERRETERÍA (CINTA DUCTO Y AMARRAS) | D115: $ 8.20
A116: 2025-05-16 | C116: COMPRA DE MATERIALES DE FERRETERÍA (KALIPEGA, CINTA DUCTO Y PEGAMENTO LLAMA) | D116: $ 17.78
A117: 2025-05-16 | C117: COMPRA DE MATERIALES DE FERRETERÍA (DUCTO DE ALUMINIO, CINTA MASKING Y AMARRAS) | D117: $ 9.90
A118: 2025-05-20 | C118: COMPRA DE MATERIALES DE FERRETERÍA (GOMA LÍQUIDA) | D118: $ 5.49
A119: 2025-06-12 | B119: SAMUEL ARDILA | C119: PAGO POR REPARACIÓN Y MANTENIMIENTO DE TATAMI OLÍMPICO | D119: $ 29.00
A120: 2025-06-12 | C120: COMPRA DE MATERIALES DE FERRETERÍA (TORNILLOS, PIOLA PLÁSTICA, BROCA, COLA BLANCA, PEGAMENTO, ETC.) | D120: $ 26.34
A121: 2025-06-13 | C121: COMPRA DE MATERIALES DE FERRETERÍA (BONDER) | D121: $ 2.60
A122: 2025-07-17 | C122: COMPRA DE MATERIALES DE FERRETERÍA (DISPENSADOR DE JABÓN) | D122: $ 4.95
A123: 2025-07-26 | C123: COMPRA DE MATERIALES DE FERRETERÍA (CANDADO, COPIA DE LLAVES) | D123: $ 2.60
A124: 2025-07-29 | C124: COMPRA DE MATERIALES DE FERRETERÍA (CANDADO DE MUSEO DE ARTE COLONIAL) | D124: $ 19.90
A125: 2025-08-08 | C125: COMPRA DE MATERIALES DE FERRETERÍA (PAQUETE DE AMARRAS) | D125: $ 1.50
A126: 2025-09-02 | C126: ABONO POR MANTENIMIENTO Y MARCO DE MADERA PARA TATAMI OLÍMPICO | D126: $ 100.00
C127: TOTAL | D127: =SUM(D86:D126) -> $ 4,048.37
A130: FECHA | B130: AYUDA ECONÓMICA | C130: DETALLE | D130: VALOR | F130: =SUM(D131:D137) -> $ 2,547.68
A131: 2025-04-24 | C131: IMPRESIÓN DE GAL DEPORTISTA DE CAPACIDADES ESPECIALES ARLETTE GONZÁLES | D131: $ 2.00
A132: 2025-06-26 | C132: COMPRA DE RECETA PARA DEPORTISTA DE PARATKD ARLETTE GONZÁLES (COLÁGENO Y DOLTREX) | D132: $ 45.68
A133: 2025-05-10 | C133: APOYO PARA WORLD MASTER GAMES DAYANA FOLLECO | D133: $ 500.00
A134: 2255-05-18 | C134: APOYO PARA WORLD MASTER GAMES JIMMY BOLAÑOS | D134: $ 500.00
A135: 2025-05-18 | C135: APOYO PARA WORLD MASTER GAMES MARCELO PRADO | D135: $ 500.00
A136: 2025-05-18 | C136: APOYO PARA WORLD MASTER GAMES PAÚL ORELLANA | D136: $ 500.00
A137: 2025-05-18 | C137: APOYO PARA WORLD MASTER GAMES A DELEGADO | D137: $ 500.00
C138: TOTAL | D138: =SUM(D131:D137) -> $ 2,547.68
A141: FECHA | B141: TRANSPORTE | C141: DETALLE | D141: VALOR | F141: =SUM(D142:D169) -> $ 297.83
A142: 2025-04-07 | C142: MOVILIZACIÓN PARA COMPRA DE CARTONES PARA CLASIFICAR OBJETOS DE BODEGA | D142: $ 1.93
A143: 2025-04-10 | C143: MOVILIZACIÓN PARA GESTIONES BANCARIAS | D143: $ 3.70
A144: 2025-04-10 | C144: MOVILIZACIÓN PARA CAMBIO DE CHEQUE (FONDOS A NOMBRE DE PROF ANDRÉS NICOLALDE PARA TOPE JUVENIL EN BAÑOS) | D144: $ 10.00
A145: 2025-04-14 | C145: MOVILIZACIÓN PARA COMPRA DE MICAS Y GESTIONES MINISTERIO DEL DEPORTE | D145: $ 1.75
A146: 2025-04-16 | C146: MOVILIZACIÓN PARA COMPRA DE MICAS Y GESTIONES MINISTERIO DEL DEPORTE | D146: $ 1.40
A147: 2025-05-05 | C147: MOVILIZACIÓN PARA RETIRAR ENCOMIENDA (FACTURAS DE MANABÍ) | D147: $ 4.00
A148: 2025-05-07 | C148: MOVILIZACIÓN PARA NOTARIZAR DOCUMENTOS ASOTKDP | D148: $ 3.00
A149: 2025-05-09 | C149: MOVILIZACIÓN PARA STICKERS, TROFEOS Y PLACAS PARA CAMPEONATO DE EDADES ESCOLARES 2025 | D149: $ 10.00
A150: 2025-05-09 | C150: PAGO FLETES PARA TRANSPORTAR MENAJE DE COMPETENCIA DE COLISEO LOS QUITUS AL RUMIÑAHUI | D150: $ 60.00
A151: 2025-05-13 | C151: MOVILIZACIÓN PARA ENTREGA DE ENTRADAS INVITADOS ESPECIALES EXHIBICIÓN KUKKIWON | D151: $ 6.50
A152: 2025-05-22 | C152: MOVILIZACIÓN PARA ESTAMPADOS EN CAMISETAS PARA VIAJE A TAIWÁN | D152: $5.00
A153: 2025-06-09 | C153: PAGO FLETE MENAJE DE COMPETENCIA A SELECTIVO EN MITAD DEL MUNDO (22-03-2025) | D153: $35.00
A154: 2025-06-12 | C154: MOVILIZACIÓN PARA COMPRA DE MATERIALES DE FERRETERÍA | D154: $5.00
A155: 2025-06-16 | C155: PAGO ENVÍO POR ENCOMIENDA A ESMERALDAS DE UNIFORMES ASOTKDP | D155: $5.00
A156: 2025-06-16 | C156: PAGO ENVÍO POR ENCOMIENDA A MANABÍ DE UNIFORMES ASOTKDP | D156: $6.00
A157: 2025-06-18 | C157: MOVILIZACIÓN PARA ENTREGA DE UNIFORMES ASOTKDP PARA VIAJE A PERÚ | D157: $10.65
A158: 2025-06-27 | C158: MOVILIZACIÓN PROF. WILSON RODRÍGUEZ APOYO TÉCNICO JUEGOS NACIONALES JUVENILES | D158: $ 20.00
A159: 2025-07-04 | C159: PAGO FLETE MENAJE DE COMPETENCIA DE LOS QUITUS AL RUMIÑAHUI PARA II OPEN NOV. INTERM. | D159: $ 50.00
A160: 2025-08-12 | C160: PAGO ENVÍO POR ENCOMIENDA A EL ORO DE UNIFORMES ASOTKDP | D160: $ 4.50
A161: 2025-08-12 | C161: MOVILIZACIÓN PARA ENCOMIENDA A EL ORO DE UNIFORMES ASOTKDP | D161: $ 4.00
A162: 2025-07-21 | C162: MOVILIZACIÓN PARA ENTREGA DE INVITACIONES A SESIÓN SOLEMNE (MINISTERIO DEL DEPORTE) | D162: $ 5.00
A163: 2025-07-22 | C163: MOVILIZACIÓN PARA ENTREGA DE INVITACIONES A SESIÓN SOLEMNE (EMBAJADA Y VICEPRESIDENCIA) | D163: $ 14.80
A164: 2025-07-31 | C164: MOVILIZACIÓN OFICINA - MUSEO DE ARTE COLONIAL PARA SESIÓN SOLEMNE | D164: $ 3.10
A165: 2025-07-31 | C165: MOVILIZACIÓN RETIRAR DONACIÓN DE BANDERAS DE ECUADOR EMBAJADA DE COREA | D165: $ 7.10
A166: 2025-08-12 | C166: MOVILIZACIÓNTABLAS DE ROMPIMIENTO PARA EXHIBICIÓN EMBAJADA DE COREA | D166: $ 4.00
A167: 2025-08-14 | C167: MOVILIZACIÓN PARA GESTIONES MINISTERIO DEL DEPORTE | D167: $ 6.00
A168: 2025-08-18 | C168: MOVILIZACIÓN POR JORNADA DE TRABAJO EXTENDIDA | D168: $ 4.40
A169: 2025-08-19 | C169: MOVILIZACIÓN PARA REPARACIÓN DE IMPRESORA LÁSER HP | D169: $ 6.00
C170: TOTAL | D170: =SUM(D142:D169) -> $ 297.83
A173: FECHA | B173: REDES Y PUBLICACIONES | C173: DETALLE | D173: VALOR | F173: =SUM(D174:D178) -> $ 750.00
A174: 2025-04-10 | C174: MANEJO DE MEDIOS Y REDES SOCIALES MARZO | D174: $ 150.00 | E174: DEPÓSITO
A175: 2025-05-05 | C175: MANEJO DE MEDIOS Y REDES SOCIALES ABRIL | D175: $ 150.00 | E175: DEPÓSITO
A176: 2025-06-09 | C176: MANEJO DE MEDIOS Y REDES SOCIALES MAYO | D176: $ 150.00 | E176: DEPÓSITO
A177: 2025-08-07 | C177: MANEJO DE MEDIOS Y REDES SOCIALES JUNIO | D177: $ 150.00
A178: 2025-09-02 | C178: MANEJO DE MEDIOS Y REDES SOCIALES JULIO | D178: $ 150.00
C179: TOTAL | D179: =SUM(D174:D178) -> $ 750.00
A182: FECHA | B182: MATERIAL IMPRESO Y MICAS (GAL) | C182: DETALLE | D182: VALOR | F182: =SUM(D183:D189) -> $ 319.90
A183: 2025-03-19 | C183: COMPRA DE 5 PAQUETES (50 UNIDADES) MICAS PARA CARNETS | D183: $ 20.00
A184: 2025-03-20 | C184: IMPRESIÓN DE SEÑALÉTICA PARA EVENTOS | D184: $ 11.10
A185: 2025-04-04 | C185: IMPRESIÓN DE PERMISOS DE FUNCIONAMIENTO 2025 | D185: $ 50.80
A186: 2025-04-14 | C186: COMPRA DE 10 PAQUETES DE MICAS PARA CARNETS | D186: $ 40.00
A187: 2025-05-09 | C187: IMPRESIÓN DE 260 STICKERS PARA MEDALLAS DE CAMPEONATO EDADES ESCOLARES 2025 | D187: $ 18.00
A188: 2025-07-23 | C188: IMPRESIÓN DE BOLETOS DE ($2) PARA TAQUILLA DE EVENTOS ASOTKDP | D188: $ 160.00
A189: 2025-08-22 | C189: COMPRA DE 5 PAQUETES DE MICAS PARA CARNETS | D189: $ 20.00
C190: TOTAL | D190: =SUM(D183:D189) -> $ 319.90
A193: FECHA | B193: ALIMENTACIÓN Y CAFETERÍA | C193: DETALLE | D193: VALOR | F193: =SUM(D194:D236) -> $ 1,331.71
A194: 2025-03-18 | C194: COMPRA DE BOTELLAS DE AGUA PARA CEREMONIA DE ASCENSO ASOTKD-P | D194: $ 2.50
A195: 2025-03-19 | C195: RECARGA DE AGUA EN BOTELLONES (HIDRATACIÓN DEPORTISTAS) | D195: $ 4.05
A196: 2025-03-19 | C196: COMPRA DE DETALLE FALTANTE PARA DEPORTISTA DE INICICACIÓN POR ASCENSO DE CINTURÓN | D196: $ 1.55
A197: 2025-03-19 | C197: COMPRA DE REFRIGERIO EN REUNIÓN DE DIRECTORIO INCLUÍDO DELIVERY | D197: $ 51.00
A198: 2025-03-20 | C198: COMPRA DE PRODUCTOS DE CAFETERÍA (SALA DE ESTAR ASOTKD-P) | D198: $ 4.04
A199: 2025-03-21 | C199: COMPRA DE PRODUCTOS DE CAFETERÍA EVENTO POOMSAE CIUDAD MITAD DEL MUNDO | D199: $ 25.00
A200: 2025-03-26 | C200: COMPRA DE AGUA PARA MESA DIRECTIVA ASAMBLEA ORDINARIA (INFORME DE ACTIVIDADES Y ECONÓMICO) | D200: $ 0.80
A201: 2025-03-26 | C201: COMPRA DE PRODUCTOS DE CAFETERÍA PARA ASAMBLEA ORDINARIA (INFORME DE ACTIVIDADES Y ECONÓMICO) | D201: $ 39.69
A202: 2025-03-28 | C202: COMPRA DE PRODUCTOS DE CAFETERÍA (OFICINA DE ESTAR ASOTKD-P) | D202: $ 3.40
A203: 2025-04-01 | C203: RECARGA DE AGUA EN BOTELLONES (HIDRATACIÓN DEPORTISTAS) | D203: $ 6.07
A204: 2025-04-04 | C204: PAGO ALIMENTACIÓN (ALMUERZO) DEPORTISTAS DE SELECCIÓN Y DELEGACIONES INVITADAS A CAMPAMENTOS | D204: $ 250.00
A205: 2025-04-09 | C205: RECARGA DE AGUA EN BOTELLONES (HIDRATACIÓN DEPORTISTAS) | D205: $ 2.02
A206: 2025-04-10 | C206: COMPRA DE BOTELLAS DE AGUA PARA CEREMONIA FIRMA DE CONVENIO ASOTKD P - UNIVERSIDAD UDET | D206: $ 3.50
A207: 2025-04-14 | C207: COMPRA DE PRODUCTOS DE CAFEERÍA | D207: $ 1.05
A208: 2025-04-14 | C208: COMPRA DE EMPANADAS | D208: $ 1.40
A209: 2025-04-16 | C209: RECARGA DE AGUA EN BOTELLONES (HIDRATACIÓN DEPORTISTAS) | D209: $ 2.02
A210: 2025-04-22 | C210: RECARGA DE AGUA EN BOTELLONES (HIDRATACIÓN DEPORTISTAS) | D210: $ 4.05
A211: 2025-05-08 | C211: RECARGA DE AGUA EN BOTELLONES (HIDRATACIÓN DEPORTISTAS) | D211: $ 8.10
A212: 2025-05-13 | C212: COMPRA DE TÉ (COLABORACIÓN LANZAMIENTO DEL LIBRO ESTALIN VILLARROEL) | D212: $ 2.45
A213: 2025-05-13 | C213: COMPRA DE PRODUCTOS DE CAFETERÍA (COLABORACIÓN LANZAMIENTO DEL LIBRO ESTALIN VILLARROEL) | D213: $ 23.65
A214: 2025-05-14 | C214: COMPRA DE REFRIGERO REUNIÓN CON PERSONAL DE LA EMBAJADA DE COREA | D214: $ 10.00
A215: 2025-05-16 | C215: COMPRA DE GASEOSA PARA REFRIGERIO PERSONAL DE APOYO COPA EMBAJADOR DE COREA | D215: $ 1.85
A216: 2025-05-18 | C216: COMPRA DE AGUA PARA MESA DIRECTIVA CLAUSURA COPA EMBAJADOR DE COREA | D216: $ 1.73
A217: 2025-05-22 | C217: RECARGA DE AGUA EN BOTELLONES (HIDRATACIÓN DEPORTISTAS) | D217: $ 2.02
A218: 2025-05-22 | C218: RECARGA DE AGUA EN BOTELLONES (HIDRATACIÓN DEPORTISTAS) | D218: $ 4.05
... 99 more rows

Sheet CUENTAS POR COBRAR Y POR PAGAR
B2: POR COBRAR | G2: =SUM(F4:F78) -> $ 3,637.00
B4: AFILIACIONES Y PERMISOS DE FUNCIONAMIENTO 2024 | F4: =SUM(E6:E8) -> $ 240.00
C5: CLUB | D5: REPRESENTANTE | E5: DEUDA
C6: ='AFILIACIONES Y PERMISOS 2024'!E32 -> Deciap Norte | D6: ='AFILIACIONES Y PERMISOS 2024'!F32 -> Joel Mogollon | E6: ='AFILIACIONES Y PERMISOS 2024'!J32 -> $ 50.00
C7: ='AFILIACIONES Y PERMISOS 2024'!E107 -> Tae Baek Junior Sucursal Solanda | D7: ='AFILIACIONES Y PERMISOS 2024'!F107 -> Edwin Arteaga Jr. | E7: ='AFILIACIONES Y PERMISOS 2024'!J107 -> $ 50.00
C8: ='AFILIACIONES Y PERMISOS 2024'!E126 -> Valle | D8: ='AFILIACIONES Y PERMISOS 2024'!F126 -> Jorge Portilla | E8: ='AFILIACIONES Y PERMISOS 2024'!J126 -> $ 140.00 | F8: REAFILIACIÓN
B11: AFILIACIONES Y PERMISOS DE FUNCIONAMIENTO 2025 | F11: =SUM(E13:E59) -> $ 3,289.00
C12: CLUB | D12: REPRESENTANTE | E12: DEUDA
C13: ='AFILIACIONES Y PERMISOS 2025'!E11 -> Apolo | D13: ='AFILIACIONES Y PERMISOS 2025'!F11 -> Mario Pinto | E13: ='AFILIACIONES Y PERMISOS 2025'!J11 -> $70.00
C14: ='AFILIACIONES Y PERMISOS 2025'!E19 -> Bas Panthers | D14: ='AFILIACIONES Y PERMISOS 2025'!F19 -> Jonatan Bastidas | E14: ='AFILIACIONES Y PERMISOS 2025'!J19 -> $70.00
C15: ='AFILIACIONES Y PERMISOS 2025'!E20 -> Bas Panthers Pintag (Sucursal) | D15: ='AFILIACIONES Y PERMISOS 2025'!F20 -> Jonatan Bastidas | E15: ='AFILIACIONES Y PERMISOS 2025'!J20 -> $50.00
C16: ='AFILIACIONES Y PERMISOS 2025'!E24 -> Ciudad de Quito (Sucursal) | D16: ='AFILIACIONES Y PERMISOS 2025'!F24 -> Adriana Obando | E16: ='AFILIACIONES Y PERMISOS 2025'!J24 -> $50.00
C17: ='AFILIACIONES Y PERMISOS 2025'!E25 -> Condor | D17: ='AFILIACIONES Y PERMISOS 2025'!F25 -> Efren Torres | E17: ='AFILIACIONES Y PERMISOS 2025'!J25 -> $70.00
C18: ='AFILIACIONES Y PERMISOS 2025'!E28 -> Chonkwon | D18: ='AFILIACIONES Y PERMISOS 2025'!F28 -> Christian Javier Huaraca | E18: ='AFILIACIONES Y PERMISOS 2025'!J28 -> $70.00
C19: ='AFILIACIONES Y PERMISOS 2025'!E31 -> Daigoro Sector El Beaterio (Sucursal) | D19: ='AFILIACIONES Y PERMISOS 2025'!F31 -> Edison Pérez V. | E19: ='AFILIACIONES Y PERMISOS 2025'!J31 -> $50.00
C20: ='AFILIACIONES Y PERMISOS 2025'!E36 -> Deciap Norte (Sucursal) | D20: ='AFILIACIONES Y PERMISOS 2025'!F36 -> Joel Mogollon | E20: ='AFILIACIONES Y PERMISOS 2025'!J36 -> $50.00
C21: ='AFILIACIONES Y PERMISOS 2025'!E41 -> Ecuadcuba/ Black Panthers | D21: ='AFILIACIONES Y PERMISOS 2025'!F41 -> Eddy Cajigal Kindelan | E21: ='AFILIACIONES Y PERMISOS 2025'!J41 -> $70.00
C22: ='AFILIACIONES Y PERMISOS 2025'!E45 -> Farang | D22: ='AFILIACIONES Y PERMISOS 2025'!F45 -> Mesias Rojas | E22: ='AFILIACIONES Y PERMISOS 2025'!J45 -> $70.00
C23: ='AFILIACIONES Y PERMISOS 2025'!E46 -> Fitt kwon do | D23: ='AFILIACIONES Y PERMISOS 2025'!F46 -> Galo Garzón | E23: ='AFILIACIONES Y PERMISOS 2025'!J46 -> $70.00
C24: ='AFILIACIONES Y PERMISOS 2025'!E47 -> First Class Calderon | D24: ='AFILIACIONES Y PERMISOS 2025'!F47 -> Lenin Plazarte | E24: ='AFILIACIONES Y PERMISOS 2025'!J47 -> $20.00
C25: ='AFILIACIONES Y PERMISOS 2025'!E49 -> Grand Master | D25: ='AFILIACIONES Y PERMISOS 2025'!F49 -> César Tayo | E25: ='AFILIACIONES Y PERMISOS 2025'!J49 -> $70.00
C26: ='AFILIACIONES Y PERMISOS 2025'!E50 -> Goyang - Ideul | D26: ='AFILIACIONES Y PERMISOS 2025'!F50 -> Luis Elias Pisuña | E26: ='AFILIACIONES Y PERMISOS 2025'!J50 -> $70.00
C27: ='AFILIACIONES Y PERMISOS 2025'!E52 -> Han Kum Do | D27: ='AFILIACIONES Y PERMISOS 2025'!F52 -> Nicole Tapia | E27: ='AFILIACIONES Y PERMISOS 2025'!J52 -> $200.00
C28: ='AFILIACIONES Y PERMISOS 2025'!E55 -> Ilyo MP | D28: ='AFILIACIONES Y PERMISOS 2025'!F55 -> Miguel Parra | E28: ='AFILIACIONES Y PERMISOS 2025'!J55 -> $70.00
C29: ='AFILIACIONES Y PERMISOS 2025'!E57 -> Joseon Legacy | D29: ='AFILIACIONES Y PERMISOS 2025'!F57 -> Fernando Moya | E29: ='AFILIACIONES Y PERMISOS 2025'!J57 -> $70.00
C30: ='AFILIACIONES Y PERMISOS 2025'!E58 -> JR Sport | D30: ='AFILIACIONES Y PERMISOS 2025'!F58 -> Juan Carlos Ramírez | E30: ='AFILIACIONES Y PERMISOS 2025'!J58 -> $70.00
C31: ='AFILIACIONES Y PERMISOS 2025'!E59 -> Juventus | D31: ='AFILIACIONES Y PERMISOS 2025'!F59 -> Jhony Pavón | E31: ='AFILIACIONES Y PERMISOS 2025'!J59 -> $70.00
C32: ='AFILIACIONES Y PERMISOS 2025'!E65 -> Ko América Dragon de Fuego (Sucursal) | D32: ='AFILIACIONES Y PERMISOS 2025'!F65 -> Luis Sandoval | E32: ='AFILIACIONES Y PERMISOS 2025'!J65 -> $50.00
C33: ='AFILIACIONES Y PERMISOS 2025'!E66 -> Korean Dragon | D33: ='AFILIACIONES Y PERMISOS 2025'!F66 -> Fabián Moreno | E33: ='AFILIACIONES Y PERMISOS 2025'!J66 -> $35.00
C34: ='AFILIACIONES Y PERMISOS 2025'!E67 -> Koryo | D34: ='AFILIACIONES Y PERMISOS 2025'!F67 -> Guillermo Puga - Sharon López | E34: ='AFILIACIONES Y PERMISOS 2025'!J67 -> $70.00
C35: ='AFILIACIONES Y PERMISOS 2025'!E68 -> Koryo Sucursal | D35: ='AFILIACIONES Y PERMISOS 2025'!F68 -> Guillermo Puga - Sharon López | E35: ='AFILIACIONES Y PERMISOS 2025'!J68 -> $50.00
C36: ='AFILIACIONES Y PERMISOS 2025'!E70 -> Kumgan Dul | D36: ='AFILIACIONES Y PERMISOS 2025'!F70 -> Fabián García | E36: ='AFILIACIONES Y PERMISOS 2025'!J70 -> $70.00
C37: ='AFILIACIONES Y PERMISOS 2025'!E74 -> Liga Deportiva Cantonal Mejía | D37: ='AFILIACIONES Y PERMISOS 2025'!F74 -> Vladimir Viana | E37: ='AFILIACIONES Y PERMISOS 2025'!J74 -> $70.00
C38: ='AFILIACIONES Y PERMISOS 2025'!E76 -> Lobos | D38: ='AFILIACIONES Y PERMISOS 2025'!F76 -> Cristian Flores | E38: ='AFILIACIONES Y PERMISOS 2025'!J76 -> $70.00
C39: ='AFILIACIONES Y PERMISOS 2025'!E78 -> Master Home | D39: ='AFILIACIONES Y PERMISOS 2025'!F78 -> Marlon Lema | E39: ='AFILIACIONES Y PERMISOS 2025'!J78 -> $70.00
C40: ='AFILIACIONES Y PERMISOS 2025'!E80 -> Mercenarios | D40: ='AFILIACIONES Y PERMISOS 2025'!F80 -> Luis Cano | E40: ='AFILIACIONES Y PERMISOS 2025'!J80 -> $70.00
C41: ='AFILIACIONES Y PERMISOS 2025'!E82 -> Millenium | D41: ='AFILIACIONES Y PERMISOS 2025'!F82 -> Jean Galora | E41: ='AFILIACIONES Y PERMISOS 2025'!J82 -> $70.00
C42: ='AFILIACIONES Y PERMISOS 2025'!E87 -> Pandademon | D42: ='AFILIACIONES Y PERMISOS 2025'!F87 -> Andrés Herrera | E42: ='AFILIACIONES Y PERMISOS 2025'!J87 -> $70.00
C43: ='AFILIACIONES Y PERMISOS 2025'!E95 -> Rojas Iron First | D43: ='AFILIACIONES Y PERMISOS 2025'!F95 -> Jorge Rojas | E43: ='AFILIACIONES Y PERMISOS 2025'!J95 -> $70.00
C44: ='AFILIACIONES Y PERMISOS 2025'!E98 -> San Francisco Tigres | D44: ='AFILIACIONES Y PERMISOS 2025'!F98 -> Carlos Mejía | E44: ='AFILIACIONES Y PERMISOS 2025'!J98 -> $30.00
C45: ='AFILIACIONES Y PERMISOS 2025'!E100 -> Sabonim | D45: ='AFILIACIONES Y PERMISOS 2025'!F100 -> Esteban Altamirano | E45: ='AFILIACIONES Y PERMISOS 2025'!J100 -> $200.00
C46: ='AFILIACIONES Y PERMISOS 2025'!E101 -> Scorpius | D46: ='AFILIACIONES Y PERMISOS 2025'!F101 -> Dario Flores | E46: ='AFILIACIONES Y PERMISOS 2025'!J101 -> $70.00
C47: ='AFILIACIONES Y PERMISOS 2025'!E103 -> Seúl Capelo (Sucursal) | D47: ='AFILIACIONES Y PERMISOS 2025'!F103 -> Fredy Castillo | E47: ='AFILIACIONES Y PERMISOS 2025'!J103 -> $50.00
C48: ='AFILIACIONES Y PERMISOS 2025'!E104 -> Seúl Carapungo (Sucursal) | D48: ='AFILIACIONES Y PERMISOS 2025'!F104 -> José Donoso | E48: ='AFILIACIONES Y PERMISOS 2025'!J104 -> $50.00
C49: ='AFILIACIONES Y PERMISOS 2025'!E105 -> Seúl Yeong-Gu Carcelen | D49: ='AFILIACIONES Y PERMISOS 2025'!F105 -> Brusby Muñoz | E49: ='AFILIACIONES Y PERMISOS 2025'!J105 -> $50.00
C50: ='AFILIACIONES Y PERMISOS 2025'!E106 -> Seúl Gedeon (Sucursal) | D50: ='AFILIACIONES Y PERMISOS 2025'!F106 -> José Luís Palacios | E50: ='AFILIACIONES Y PERMISOS 2025'!J106 -> $50.00
C51: ='AFILIACIONES Y PERMISOS 2025'!E112 -> Tae Baek Junior | D51: ='AFILIACIONES Y PERMISOS 2025'!F112 -> Edwin Arteaga Jr. | E51: ='AFILIACIONES Y PERMISOS 2025'!J112 -> $70.00
C52: ='AFILIACIONES Y PERMISOS 2025'!E113 -> Tae Baek Junior Sucursal Solanda | D52: ='AFILIACIONES Y PERMISOS 2025'!F113 -> Edwin Arteaga Jr. | E52: ='AFILIACIONES Y PERMISOS 2025'!J113 -> $50.00
C53: ='AFILIACIONES Y PERMISOS 2025'!E115 -> Tae Kings | D53: ='AFILIACIONES Y PERMISOS 2025'!F115 -> Jorge Astudillo S. | E53: ='AFILIACIONES Y PERMISOS 2025'!J115 -> $70.00
C54: ='AFILIACIONES Y PERMISOS 2025'!E117 -> Tae Sho Ku Team Valle (Sucursal) | D54: ='AFILIACIONES Y PERMISOS 2025'!F117 -> Gissela Estrella | E54: ='AFILIACIONES Y PERMISOS 2025'!J117 -> $50.00
C55: ='AFILIACIONES Y PERMISOS 2025'!E125 -> Team Tauro Taekwondo | D55: ='AFILIACIONES Y PERMISOS 2025'!F125 -> José Chiriboga | E55: ='AFILIACIONES Y PERMISOS 2025'!J125 -> $220.00
C56: ='AFILIACIONES Y PERMISOS 2025'!E126 -> Team Vencedores | D56: ='AFILIACIONES Y PERMISOS 2025'!F126 -> Victor Hugo Quishpe | E56: ='AFILIACIONES Y PERMISOS 2025'!J126 -> $70.00
C57: ='AFILIACIONES Y PERMISOS 2025'!E132 -> U. San Francisco USFQ | D57: ='AFILIACIONES Y PERMISOS 2025'!F132 -> Carlos Reinoso | E57: ='AFILIACIONES Y PERMISOS 2025'!J132 -> $70.00
C58: ='AFILIACIONES Y PERMISOS 2025'!E136 -> Venom | D58: ='AFILIACIONES Y PERMISOS 2025'!F136 -> Eddy Cajigal K. | E58: ='AFILIACIONES Y PERMISOS 2025'!J136 -> $24.00
C59: ='AFILIACIONES Y PERMISOS 2025'!E138 -> Yong Tiger | D59: ='AFILIACIONES Y PERMISOS 2025'!F138 -> Wilson Rodríguez | E59: ='AFILIACIONES Y PERMISOS 2025'!J138 -> $70.00
B62: CAMPEONATO ESCOLAR - COLEGIAL | F62: =SUM(E64:E64) -> $15.00
C63: CLUB | D63: INSCRIPCIÓN | E63: VALOR
C64: ='CAMPEONATO ESCOLAR - COLEGIAL'!B152 -> UE POMASQUI | D64: 1 DEPORTISTA | E64: ='CAMPEONATO ESCOLAR - COLEGIAL'!C152 -> $15.00
B67: CAMPEONATO ESCOLAR - COLEGIAL | F67: =SUM(E69) -> $48.00
C68: CLUB | D68: INSCRIPCIÓN | E68: VALOR
C69: ='II OPEN INT NOV AVA POOM'!B109 -> YONG TIGER | D69: 1 DEPORTISTA | E69: ='II OPEN INT NOV AVA POOM'!C109 -> $48.00
B72: ACTUALIZACIÓN DE ARBITRAJE COMBATE | F72: =SUM(E74:E76) -> $45.00
C73: CLUB | D73: INSCRIPCIÓN | E73: VALOR
C74: ='ACTUALIZACIÓN DE ARBITRAJE'!B224 -> ASO. TKDP (CARLOS MAGALLANES) | D74: 1 ENTRENADOR | E74: ='ACTUALIZACIÓN DE ARBITRAJE'!C224 -> $15.00
C75: ='ACTUALIZACIÓN DE ARBITRAJE'!B225 -> ATLAS CLUB (KEVIN ROSADO) | D75: 1 ENTRENADOR | E75: ='ACTUALIZACIÓN DE ARBITRAJE'!C225 -> $15.00
C76: ='ACTUALIZACIÓN DE ARBITRAJE'!B226 -> JOSEON LEGACY (ELLIOTH FREIRE) | D76: 1 ENTRENADOR | E76: ='ACTUALIZACIÓN DE ARBITRAJE'!C226 -> $15.00
B79: POR PAGAR | F79: =SUM(E81:E85) -> $ 863.50
B80: ACREEDORES | C80: DETALLE | E80: VALOR
B81: SAMUEL ARDILA | C81: ANTENIMIENTO Y MARCO DE MADERA PARA TATAMI OLÍMPICO | E81: $ 400.00
B82: PROF. MARCELO TROYA | C82: SERVICIOS ENTRENADOR PROVINCIAL DE APOYO AGOSTO | E82: $ 250.00
B83: GEOVANNY ESPINOZA | C83: MANEJO DE MEDIOS Y REDES SOCIALES AGOSTO | E83: $ 150.00
B84: CLUBES | C84: SALDO A FAVOR DE CLUBES EN TRÁMITES DE CERTIFICADOS DE ASCENSO | E84: ='CERTIFICADOS DE ASCENSO 2025'!C135 -> $ 31.50
B85: CLUBES | C85: SALDO A FAVOR DE CLUBES EN TRÁMITES DE GAL'S | E85: ='GAL''S 2025 '!C226 -> $ 32.00
